Workbook

Sheet BASIS
A1: =bestand_naam -> Format MDZ | U1: Tabblad beveiligen
A2: U kunt de gele cellen wijzigen en/of aanvullen. | U2: Tabblad niet verbergen
U3: B6
A5: =CONCATENATE("Gegevens ",swv) -> Gegevens Regionale Huisartsen Organisatie
A6: Naam | U6: ='DATA INPUT (VERBERGEN)'!A95 -> 0
A7: AGB-code | U7: ='DATA INPUT (VERBERGEN)'!A96 -> 0
A8: Naam contactpersoon | U8: ='DATA INPUT (VERBERGEN)'!A97 -> 0
A9: Telefoon contactpersoon | U9: ='DATA INPUT (VERBERGEN)'!A98 -> 0
A10: E-mail contactpersoon | U10: ='DATA INPUT (VERBERGEN)'!A99 -> 0
A11: Datum | U11: ='DATA INPUT (VERBERGEN)'!D100 -> 0
A14: Wij vragen u dit compleet ingevulde format te mailen naar de u bekende regionale zorginkoper.
A15: Beveiligd verzenden kan via https://secureshare.cz.nl
A18: Dit format is onder voorbehoud van wijzigingen in de wet- en regelgeving.

Sheet O&I
D1: O&I | H1: U kunt de gele cellen invullen/wijzigen | U1: Tabblad beveiligen
D2: =swv_naam -> Naam Regionale Huisartsen Organisatie: Invullen op tabblad basis. | U2: Tabblad niet verbergen
D3: =CONCATENATE("AGB-code: ",swv_agb) -> AGB-code: Invullen op tabblad basis. | U3: D6
D5: BEGROTING
D6: Vul hieronder de begroting voor 2024 voor het totaal van de kosten. Bij algemene kosten vult u indirecte kosten, niet direct verbandhoudend met O&I-onderdelen in. Bij specifieke kosten vult u kosten voor O&I ketenmanagement, regiomanagement en wijkmanagement in. We verzoeken u deze nader te specificeren per soort. De samenvatting en berekening treft u op het tabblad O&I regio aan.
D8: Aantallen | H8: =kolom2 -> Begroting 2024
D9: Totaal aantal ingeschreven patiënten van alle aangesloten huisartsen (ook de patiënten die niet aan een zorgprogramma deelnemen; de patiënten van alle zorgverzekeraars)
D10: Totaal aantal ingeschreven patiënten van alle aangesloten huisartsen, alleen de CZ-verzekerden (ook de patiënten die niet aan een zorgprogramma deelnemen)
D12: ALGEMENE KOSTEN
D13: Personeelskosten
D14: Loonkosten
D15: Vacatiegelden
D16: Scholing
D19: Totaal personeelskosten | H19: =SUM(H14:H18) -> 0
D21: Huisvestingskosten
D24: Totaal huisvestingskosten | H24: =SUM(H22:H23) -> 0
D26: Algemene kosten
D27: ICT (o.a. KIS en overige informatiesystemen)
D28: Bureaukosten
D29: Vergaderkosten
D30: Representatiekosten
D31: Administratie- en facturatiekosten
D32: Accountantskosten
D33: Advieskosten
D34: Abonnementen en contributies
D35: Verzekeringen
D36: Bankkosten
D37: Vennootschapsbelasting
D38: Patiënttevredenheidsonderzoek
D44: Totaal algemene kosten | H44: =SUM(H27:H43) -> 0
D46: Totaal algemene kosten O&I keten-, regio en wijkmanagement | H46: =+H19+H24+H44 -> 0
D48: SPECIFIEKE KOSTEN
D49: Overige kosten, specifiek voor O&I keten-, regio- en wijkmanagement
D50: O&I keten
D56: O&I regio
D62: O&I wijk
D68: Totaal overige kosten, specifiek voor O&I | H68: =SUM(H51:H67) -> 0
D71: Totale O&I kosten | H71: =SUM(H19,H24,H44,H68) -> 0

Sheet 11611 O&I regio
A1: =MID(CELL("bestandsnaam",A1),SEARCH("]",CELL("bestandsnaam",A1),1)+1,99) -> 11611 O&I regio | U1: Tabblad beveiligen
A2: =swv_naam -> Naam Regionale Huisartsen Organisatie: Invullen op tabblad basis. | U2: Tabblad niet verbergen
A3: =CONCATENATE("AGB-code: ",swv_agb) -> AGB-code: Invullen op tabblad basis. | U3: D6
A5: Aantallen | B5: =kolom1 ->  | D5: =kolom2 -> Begroting 2024 | F5: Verschil
A6: Totaal aantal ingeschreven patiënten van alle aangesloten huisartsen (ook de patiënten die niet aan een zorgprogramma deelnemen; de patiënten van alle zorgverzekeraars) | B6: ='DATA INPUT (VERBERGEN)'!A6 -> 0 | D6: ='O&I'!H9 -> 0 | F6: =IFERROR(IF($A6="","",(D6-B6)/B6),"") -> 
A7: Totaal aantal ingeschreven patiënten van alle aangesloten huisartsen, alleen de CZ-verzekerden (ook de patiënten die niet aan een zorgprogramma deelnemen) | B7: ='DATA INPUT (VERBERGEN)'!A7 -> 0 | D7: ='O&I'!H10 -> 0 | F7: =IFERROR(IF($A7="","",(D7-B7)/B7),"") -> 
A8: Percentage CZ-verzekerden | B8: =IFERROR(B7/B6,"") ->  | D8: =IFERROR(D7/D6,"") -> 
A10: Personeelskosten | B10: =kolom1 ->  | D10: =kolom2 -> Begroting 2024 | F10: Verschil
A11: Loonkosten | B11: ='DATA INPUT (VERBERGEN)'!A11 -> 0 | D11: ='O&I'!H14 -> 0 | F11: =IFERROR(IF($A11="","",(D11-B11)/B11),"") -> 
A12: Vacatiegelden | B12: ='DATA INPUT (VERBERGEN)'!A12 -> 0 | D12: ='O&I'!H15 -> 0 | F12: =IFERROR(IF($A12="","",(D12-B12)/B12),"") -> 
A13: Scholing | B13: ='DATA INPUT (VERBERGEN)'!A13 -> 0 | D13: ='O&I'!H16 -> 0
A14: =IF('O&I'!D17="","",'O&I'!D17) ->  | B14: ='DATA INPUT (VERBERGEN)'!A14 -> 0 | D14: ='O&I'!H17 -> 0
A15: =IF('O&I'!D18="","",'O&I'!D18) ->  | B15: ='DATA INPUT (VERBERGEN)'!A15 -> 0 | D15: ='O&I'!H18 -> 0
A16: Totaal personeelskosten | B16: =SUM(B11:B15) -> 0 | D16: =SUM(D11:D15) -> 0
A18: Huisvestingskosten | B18: =kolom1 ->  | D18: =kolom2 -> Begroting 2024 | F18: Verschil
A19: =IF('O&I'!D22="","",'O&I'!D22) ->  | B19: ='DATA INPUT (VERBERGEN)'!A19 -> 0 | D19: ='O&I'!H22 -> 0 | F19: =IFERROR(IF($A19="","",(D19-B19)/B19),"") -> 
A20: =IF('O&I'!D23="","",'O&I'!D23) ->  | B20: ='DATA INPUT (VERBERGEN)'!A20 -> 0 | D20: ='O&I'!H23 -> 0 | F20: =IFERROR(IF($A20="","",(D20-B20)/B20),"") -> 
A21: Totaal huisvestingskosten | B21: =SUM(B19:B20) -> 0 | D21: =SUM(D19:D20) -> 0
A23: Algemene kosten | B23: =kolom1 ->  | D23: =kolom2 -> Begroting 2024 | F23: Verschil
A24: ICT (o.a. KIS en overige informatiesystemen) | B24: ='DATA INPUT (VERBERGEN)'!A24 -> 0 | D24: ='O&I'!H27 -> 0 | F24: =IFERROR(IF($A24="","",(D24-B24)/B24),"") -> 
A25: Bureaukosten | B25: ='DATA INPUT (VERBERGEN)'!A25 -> 0 | D25: ='O&I'!H28 -> 0 | F25: =IFERROR(IF($A25="","",(D25-B25)/B25),"") -> 
A26: Vergaderkosten | B26: ='DATA INPUT (VERBERGEN)'!A26 -> 0 | D26: ='O&I'!H29 -> 0
A27: Representatiekosten | B27: ='DATA INPUT (VERBERGEN)'!A27 -> 0 | D27: ='O&I'!H30 -> 0
A28: Administratie- en facturatiekosten | B28: ='DATA INPUT (VERBERGEN)'!A28 -> 0 | D28: ='O&I'!H31 -> 0
A29: Accountantskosten | B29: ='DATA INPUT (VERBERGEN)'!A29 -> 0 | D29: ='O&I'!H32 -> 0
A30: Advieskosten | B30: ='DATA INPUT (VERBERGEN)'!A30 -> 0 | D30: ='O&I'!H33 -> 0
A31: Abonnementen en contributies | B31: ='DATA INPUT (VERBERGEN)'!A31 -> 0 | D31: ='O&I'!H34 -> 0
A32: Verzekeringen | B32: ='DATA INPUT (VERBERGEN)'!A32 -> 0 | D32: ='O&I'!H35 -> 0
A33: Bankkosten | B33: ='DATA INPUT (VERBERGEN)'!A33 -> 0 | D33: ='O&I'!H36 -> 0
A34: Vennootschapsbelasting | B34: ='DATA INPUT (VERBERGEN)'!A34 -> 0 | D34: ='O&I'!H37 -> 0
A35: Patiënttevredenheidsonderzoek | B35: ='DATA INPUT (VERBERGEN)'!A35 -> 0 | D35: ='O&I'!H38 -> 0 | F35: =IFERROR(IF($A35="","",(D35-B35)/B35),"") -> 
A36: Overig | B36: ='DATA INPUT (VERBERGEN)'!A36 -> 0 | D36: =SUM('O&I'!H39:H43) -> 0
B37: ='DATA INPUT (VERBERGEN)'!A37 -> 0
A38: Totaal algemene kosten | B38: =SUM(B24:B37) -> 0 | D38: =SUM(D24:D37) -> 0
A40: Overige kosten | B40: =kolom1 ->  | D40: =kolom2 -> Begroting 2024 | F40: Verschil
A41: ='O&I'!D48 -> SPECIFIEKE KOSTEN | B41: ='DATA INPUT (VERBERGEN)'!A41 -> 0 | D41: ='O&I'!H68 -> 0 | F41: =IFERROR(IF($A41="","",(D41-B41)/B41),"") -> 
A42: =IF('DATA INPUT (VERBERGEN)'!A85="","",'DATA INPUT (VERBERGEN)'!A85) ->  | B42: ='DATA INPUT (VERBERGEN)'!A42 -> 0 | F42: =IFERROR(IF($A42="","",(D42-B42)/B42),"") -> 
A43: Totaal overige kosten | B43: =SUM(B41:B42) -> 0 | D43: =SUM(D41:D42) -> 0
A45: Totaal | B45: =kolom1 ->  | D45: =kolom2 -> Begroting 2024 | F45: Verschil
A46: Totale O&I kosten | B46: =SUM(B16,B21,B38,B43) -> 0 | D46: =SUM(D16,D21,D38,D43) -> 0 | F46: =IFERROR(IF($A46="","",(D46-B46)/B46),"") -> 
A48: Per ingeschreven verzekerde per jaar en per kwartaal | B48: =kolom1 ->  | D48: =kolom2 -> Begroting 2024
A49: Per jaar per ingeschreven verzekerde | B49: =IFERROR(B50*4,"") ->  | D49: =IFERROR(D50*4,"") ->  | F49: =IFERROR(IF($A49="","",(D49-B49)/B49),"") -> 
A50: Per kwartaal per ingeschreven verzekerde | B50: =IFERROR(ROUND(B46/B6/4,2),"") ->  | D50: =IFERROR(ROUND(D46/D6/4,2),"") -> 
A52: =IFERROR(IF(OR(B49<>ROUND(B46/B6,2),D49<>ROUND(D46/D6,2)),CONCATENATE("N.B. Bij het berekenen van het tarief vindt afronding plaats op deze wijze:"),""),"") -> 
A53: =IF(A52="","","Er wordt per kwartaal gedeclareerd, dus het kwartaalbedrag is afgerond op hele centen. Dit bedrag is met vier vermenigvuldigd om de jaarkosten te berekenen.") -> 
A55: Geïncludeerde patiënten | B55: =kolom1 ->  | D55: =kolom2 -> Begroting 2024 | F55: Verschil
A56: ='11616 DM2 ex.O&I'!A1 -> 11616 DM2 ex.O&I | B56: ='11616 DM2 ex.O&I'!B6 -> 0 | D56: ='11616 DM2 ex.O&I'!D6 -> 0 | F56: =IFERROR(IF($A56="","",(D56-B56)/B56),"") -> 
A57: ='11623 COPD ex.O&I'!A1 -> 11623 COPD ex.O&I | B57: ='11623 COPD ex.O&I'!B6 -> 0 | D57: ='11623 COPD ex.O&I'!D6 -> 0 | F57: =IFERROR(IF($A57="","",(D57-B57)/B57),"") -> 
A58: ='11618 ASTMA ex.O&I'!A1 -> 11618 ASTMA ex.O&I | B58: ='11618 ASTMA ex.O&I'!B6 -> 0 | D58: ='11618 ASTMA ex.O&I'!D6 -> 0
A59: ='11617 VRM (HVZ en VVR) ex.O&I'!A1 -> 11617 VRM (HVZ en VVR) ex.O&I | B59: ='11617 VRM (HVZ en VVR) ex.O&I'!B6 -> 0 | D59: ='11617 VRM (HVZ en VVR) ex.O&I'!D6 -> 0
A60: ='11614 VRM (HVZ) ex.O&I'!A1 -> 11614 VRM (HVZ) ex.O&I | B60: ='11614 VRM (HVZ) ex.O&I'!B6 -> 0 | D60: ='11614 VRM (HVZ) ex.O&I'!D6 -> 0
A61: ='11615 VRM (VVR) ex.O&I'!A1 -> 11615 VRM (VVR) ex.O&I | B61: ='11615 VRM (VVR) ex.O&I'!B6 -> 0 | D61: ='11615 VRM (VVR) ex.O&I'!D6 -> 0
A62: =VERBERGEN1!A1 -> VERBERGEN1 | B62: =VERBERGEN1!B6 -> 0 | D62: =VERBERGEN1!D6 -> 0 | F62: =IFERROR(IF($A62="","",(D62-B62)/B62),"") -> 
A63: =VERBERGEN2!A1 -> VERBERGEN2 | B63: =VERBERGEN2!B6 -> 0 | D63: =VERBERGEN2!D6 -> 0
A64: =VERBERGEN3!A1 -> VERBERGEN3 | B64: =VERBERGEN3!B6 -> 0 | D64: =VERBERGEN3!D6 -> 0
A65: Totaal | B65: =SUM(B56:B64) -> 0 | D65: =SUM(D56:D64) -> 0
A67: Per geïncludeerde patiënt en vergelijking voorgaande jaren | B67: Bedrag | D67: Vergelijking met | F67: Verschil
A68: =CONCATENATE("Kosten O&I per geincludeerde patiënt per jaar ",kolom1) -> Kosten O&I per geincludeerde patiënt per jaar | B68: =IFERROR(4*ROUND(B46/'11611 O&I regio'!B65/4,2),"") -> 
A69: =CONCATENATE("Kosten O&I per geincludeerde patiënt per jaar ",vergelijking1pp) -> Kosten O&I per geincludeerde patiënt per jaar
A70: =CONCATENATE("Kosten O&I per geincludeerde patiënt per jaar ",kolom2) -> Kosten O&I per geincludeerde patiënt per jaar Begroting 2024 | B70: =IFERROR(4*ROUND(D46/'11611 O&I regio'!D65/4,2),"") ->  | D70: =kolom1 ->  | F70: =IFERROR((B70-$B$68)/$B$68,"") -> 
A71: =CONCATENATE("Kosten O&I per geincludeerde patiënt per jaar ",kolom2) -> Kosten O&I per geincludeerde patiënt per jaar Begroting 2024 | B71: =B70 ->  | D71: =vergelijking1pp -> 0 | F71: =IFERROR((B71-$B$69)/$B$69,"") -> 
A72: =CONCATENATE("Kosten O&I per geincludeerde patiënt per kwartaal ",kolom1) -> Kosten O&I per geincludeerde patiënt per kwartaal | B72: 0 | D72: t.b.v tabblad RZ
A73: =CONCATENATE("Kosten O&I per geincludeerde patiënt per kwartaal ",kolom2) -> Kosten O&I per geincludeerde patiënt per kwartaal Begroting 2024 | B73: 0 | D73: =D72 -> t.b.v tabblad RZ
A75: =IFERROR(IF(OR(B68<>ROUND(B46/B65,2),B70<>ROUND(D46/D65,2)),CONCATENATE("N.B. Bij het berekenen van het tarief vindt afronding plaats op deze wijze:"),""),"") -> 

Sheet SPECIFICATIES O&I
A1: Extra toelichting en specifaties | U1: Tabblad niet beveiligen
A2: =CONCATENATE("Indien nodig kan de ",swv," dit tabblad gebruiken voor toelichtingen en/of specificaties.") -> Indien nodig kan de Regionale Huisartsen Organisatie dit tabblad gebruiken voor toelichtingen en/of specificaties. | U2: Tabblad niet verbergen
U3: A4

Sheet 11616 DM2 ex.O&I
A1: =MID(CELL("bestandsnaam",A1),SEARCH("]",CELL("bestandsnaam",A1),1)+1,99) -> 11616 DM2 ex.O&I | H1: ='11611 O&I regio'!$F$1 -> 0 | U1: Tabblad beveiligen
A2: =swv_naam -> Naam Regionale Huisartsen Organisatie: Invullen op tabblad basis. | U2: Tabblad niet verbergen
A3: =CONCATENATE("AGB-code: ",swv_agb) -> AGB-code: Invullen op tabblad basis. | U3: D6
A5: Aantallen (blauw = begroting nog invullen) | B5: =kolom1 ->  | D5: =kolom2 -> Begroting 2024 | F5: Verschil
A6: Aantal geïncludeerde patiënten in dit zorgprogramma (de patiënten van alle zorgverzekeraars) | B6: ='DATA INPUT (VERBERGEN)'!A106 -> 0 | F6: =IFERROR(IF($A6="","",(D6-B6)/B6),"") -> 
A7: Aantal geïncludeerde patiënten in dit zorgprogramma (alleen CZ-verzekerden) | B7: ='DATA INPUT (VERBERGEN)'!A107 -> 0 | F7: =IFERROR(IF($A7="","",(D7-B7)/B7),"") -> 
A8: Percentage CZ-verzekerden | B8: =IFERROR(B7/B6,"") ->  | D8: =IFERROR(D7/D6,"") -> 
A9: Totaal aantal ingeschreven patiënten van alle huisartsen die bij dit zorgprogramma zijn aangesloten (ook de patiënten die niet aan dit zorgprogramma deelnemen; de patiënten van alle zorgverzekeraars) | B9: ='DATA INPUT (VERBERGEN)'!A109 -> 0
A10: Prevalentie | B10: =IFERROR(B6/B9,"") ->  | D10: =IFERROR(D6/D9,"") -> 
A12: Omschrijving (blauw = begroting nog invullen) | B12: =kolom1 ->  | D12: =kolom2 -> Begroting 2024 | F12: Verschil
A13: Huisarts* | B13: ='DATA INPUT (VERBERGEN)'!A113 -> 0 | F13: =IFERROR(IF($A13="","",(D13-B13)/B13),"") ->  | H13: =IF(A13<>"",IFERROR(IF(TEXT(A13,"@")=TEXT(VLOOKUP(A30,'BEHEER (VERBERGEN)'!$C$27:$C$36,1,FALSE),"@"),"","fout-ha-comp"),"fout-ha-comp"),"") -> 
A14: Praktijkondersteuner Somatiek* | B14: ='DATA INPUT (VERBERGEN)'!A114 -> 0 | F14: =IFERROR(IF($A14="","",(D14-B14)/B14),"") ->  | H14: =IF(A14<>"",IFERROR(IF(TEXT(A14,"@")=TEXT(VLOOKUP(A31,'BEHEER (VERBERGEN)'!$C$27:$C$36,1,FALSE),"@"),"","fout-ha-comp"),"fout-ha-comp"),"") -> 
A15: Gespecialiseerd verpleegkundige* | B15: ='DATA INPUT (VERBERGEN)'!A115 -> 0 | H15: =IF(A15<>"",IFERROR(IF(TEXT(A15,"@")=TEXT(VLOOKUP(A32,'BEHEER (VERBERGEN)'!$C$27:$C$36,1,FALSE),"@"),"","fout-ha-comp"),"fout-ha-comp"),"") -> 
A16: Diëtist | B16: ='DATA INPUT (VERBERGEN)'!A116 -> 0 | H16: =IF(A16<>"",IFERROR(IF(TEXT(A16,"@")=TEXT(VLOOKUP(A33,'BEHEER (VERBERGEN)'!$C$27:$C$36,1,FALSE),"@"),"","fout-ha-comp"),"fout-ha-comp"),"") -> 
A17: Fundus | B17: ='DATA INPUT (VERBERGEN)'!A117 -> 0 | H17: =IF(A17<>"",IFERROR(IF(TEXT(A17,"@")=TEXT(VLOOKUP(A34,'BEHEER (VERBERGEN)'!$C$27:$C$36,1,FALSE),"@"),"","fout-ha-comp"),"fout-ha-comp"),"") -> 
A18: Specialist | B18: ='DATA INPUT (VERBERGEN)'!A118 -> 0 | H18: =IF(A18<>"",IFERROR(IF(TEXT(A18,"@")=TEXT(VLOOKUP(A35,'BEHEER (VERBERGEN)'!$C$27:$C$36,1,FALSE),"@"),"","fout-ha-comp"),"fout-ha-comp"),"") -> 
A19: Gedragsondersteuning SMR* | B19: ='DATA INPUT (VERBERGEN)'!A119 -> 0 | H19: =IF(A19<>"",IFERROR(IF(TEXT(A19,"@")=TEXT(VLOOKUP(A36,'BEHEER (VERBERGEN)'!$C$27:$C$36,1,FALSE),"@"),"","fout-ha-comp"),"fout-ha-comp"),"") -> 
A20: =IF('DATA INPUT (VERBERGEN)'!A180="","",'DATA INPUT (VERBERGEN)'!A180) ->  | B20: ='DATA INPUT (VERBERGEN)'!A120 -> 0 | H20: =IF(A20<>"",IFERROR(IF(TEXT(A20,"@")=TEXT(VLOOKUP(A37,'BEHEER (VERBERGEN)'!$C$27:$C$36,1,FALSE),"@"),"","fout-ha-comp"),"fout-ha-comp"),"") -> 
A21: =IF('DATA INPUT (VERBERGEN)'!A181="","",'DATA INPUT (VERBERGEN)'!A181) ->  | B21: ='DATA INPUT (VERBERGEN)'!A121 -> 0 | H21: =IF(A21<>"",IFERROR(IF(TEXT(A21,"@")=TEXT(VLOOKUP(A38,'BEHEER (VERBERGEN)'!$C$27:$C$36,1,FALSE),"@"),"","fout-ha-comp"),"fout-ha-comp"),"") -> 
A22: =IF('DATA INPUT (VERBERGEN)'!A182="","",'DATA INPUT (VERBERGEN)'!A182) ->  | B22: ='DATA INPUT (VERBERGEN)'!A122 -> 0 | H22: =IF(A22<>"",IFERROR(IF(TEXT(A22,"@")=TEXT(VLOOKUP(A39,'BEHEER (VERBERGEN)'!$C$27:$C$36,1,FALSE),"@"),"","fout-ha-comp"),"fout-ha-comp"),"") -> 
A23: =IF('DATA INPUT (VERBERGEN)'!A183="","",'DATA INPUT (VERBERGEN)'!A183) ->  | B23: ='DATA INPUT (VERBERGEN)'!A123 -> 0 | H23: =IF(A23<>"",IFERROR(IF(TEXT(A23,"@")=TEXT(VLOOKUP(A40,'BEHEER (VERBERGEN)'!$C$27:$C$36,1,FALSE),"@"),"","fout-ha-comp"),"fout-ha-comp"),"") -> 
A24: =IF('DATA INPUT (VERBERGEN)'!A184="","",'DATA INPUT (VERBERGEN)'!A184) ->  | B24: ='DATA INPUT (VERBERGEN)'!A124 -> 0 | H24: =IF(A24<>"",IFERROR(IF(TEXT(A24,"@")=TEXT(VLOOKUP(A41,'BEHEER (VERBERGEN)'!$C$27:$C$36,1,FALSE),"@"),"","fout-ha-comp"),"fout-ha-comp"),"") -> 
A25: =IF('DATA INPUT (VERBERGEN)'!A185="","",'DATA INPUT (VERBERGEN)'!A185) ->  | B25: ='DATA INPUT (VERBERGEN)'!A125 -> 0 | H25: =IF(A25<>"",IFERROR(IF(TEXT(A25,"@")=TEXT(VLOOKUP(A42,'BEHEER (VERBERGEN)'!$C$27:$C$36,1,FALSE),"@"),"","fout-ha-comp"),"fout-ha-comp"),"") -> 
A26: =IF('DATA INPUT (VERBERGEN)'!A186="","",'DATA INPUT (VERBERGEN)'!A186) ->  | B26: ='DATA INPUT (VERBERGEN)'!A126 -> 0 | H26: =IF(A26<>"",IFERROR(IF(TEXT(A26,"@")=TEXT(VLOOKUP(A43,'BEHEER (VERBERGEN)'!$C$27:$C$36,1,FALSE),"@"),"","fout-ha-comp"),"fout-ha-comp"),"") -> 
A27: Totaal begrote zorgkosten | B27: =SUM(B13:B26) -> 0 | D27: =SUM(D13:D26) -> 0
A29: Omschrijving | B29: =kolom1pp ->  | D29: =kolom2pp -> Begr.p.p. 2024 | F29: Verschil | H29: CZ-kader p.p.
A30: =IF(A13="","",A13) -> Huisarts* | B30: =IFERROR(IF(B13="","",B13/B$6),"") ->  | C30: =IF(RIGHT($A13,1)="*",B30,0) ->  | D30: =IFERROR(IF(D13="","",D13/D$6),"") ->  | E30: =IF(RIGHT($A13,1)="*",D30,0) ->  | F30: =IFERROR(IF($A30="","",(D30-B30)/B30),"") ->  | G30: =IF(RIGHT($A13,1)="*",H30,0) -> 40.55 | H30: 40.55
A31: =IF(A14="","",A14) -> Praktijkondersteuner Somatiek* | B31: =IFERROR(IF(B14="","",B14/B$6),"") ->  | F31: =IFERROR(IF($A31="","",(D31-B31)/B31),"") ->  | G31: 110 | H31: 110
A32: Gespecialiseerd verpleegkundige* | B32: =IFERROR(IF(B15="","",B15/B$6),"") ->  | G32: 16.5 | H32: 16.5
A33: Diëtist | C33: 0 | E33: 0 | G33: 0 | H33: 32.57
A34: Fundus | C34: 0 | E34: 0 | G34: 0 | H34: 20.94
A35: Specialist | C35: 0 | D35: =IFERROR(IF(D18="","",D18/D$6),"") ->  | E35: 0 | G35: 0 | H35: 2.33
A36: Gedragsondersteuning SMR* | G36: 8.93 | H36: 8.93
C37: 0 | E37: 0 | G37: 0
C38: 0 | E38: 0 | G38: 0
C39: 0 | E39: 0 | G39: 0
C40: 0 | E40: 0 | G40: 0
C41: 0 | E41: 0 | G41: 0
C42: 0 | E42: 0 | G42: 0
C43: 0 | E43: 0 | G43: 0
A44: Totaal begrote zorgkosten per geïncludeerde patiënt | B44: =SUM(B30:B43) -> 0 | D44: =SUM(D30:D43) -> 0 | E44: =IF(D44>_xlfn.XLOOKUP($A$1,'BEHEER (VERBERGEN)'!A65:A73,'BEHEER (VERBERGEN)'!B65:B73),"*","") ->  | H44: =SUM(H30:H43) -> 231.82
A45: =IF(OR(E44="*",E47="*"),"De rode cel is hoger dan het maximum. Stel uw begroting naar beneden bij.","") -> 
A46: * = Huisartsgebonden component zorgkosten | B46: =kolom1pp ->  | D46: =kolom2pp -> Begr.p.p. 2024 | F46: Verschil | H46: CZ-kader p.p.
A47: Huisartsgebonden component | B47: =SUM(C30:C43) -> 0 | D47: =SUM(E30:E43) -> 0 | E47: =IF(D47>_xlfn.XLOOKUP($A$1,'BEHEER (VERBERGEN)'!A65:A73,'BEHEER (VERBERGEN)'!D65:D73),"*","") ->  | F47: =IFERROR(IF($A47="","",(D47-B47)/B47),"") ->  | H47: =SUM(G30:G43) -> 175.98
A48: Overige zorgverleners | B48: =B44-B47 -> 0 | D48: =D44-D47 -> 0 | F48: =IFERROR(IF($A48="","",(D48-B48)/B48),"") ->  | H48: =H44-H47 -> 55.84
A50: * = Huisartsgebonden component zorgkosten percentages | B50: =kolom1pp ->  | D50: =kolom2pp -> Begr.p.p. 2024 | H50: CZ-kader p.p.
A51: Huisartsgebonden component | B51: =IFERROR(B47/B44,"") ->  | D51: =IFERROR(D47/D44,"") ->  | H51: =IFERROR(H47/H44,"") -> 0.7591234579
A52: Overige zorgverleners | B52: =IFERROR(B48/B44,"") ->  | D52: =IFERROR(D48/D44,"") ->  | H52: =IFERROR(H48/H44,"") -> 0.2408765421
A55: Geïncludeerde patiënten | B55: =kolom1pp ->  | D55: =kolom2pp -> Begr.p.p. 2024
A56: Zorgkosten per jaar per geïncludeerde patiënt | B56: =IFERROR(B57*4,"") -> 0 | D56: =IFERROR(D57*4,"") -> 0
A57: Zorgkosten per kwartaal per geïncludeerde patiënt | B57: =IFERROR(ROUND(B44/4,2),"") -> 0 | D57: =IFERROR(ROUND(D44/4,2),"") -> 0
A59: =IF(OR(ROUND($B$56,2)<>ROUND($B$44,2),ROUND($D$56,2)<>ROUND($D$44,2)),CONCATENATE("N.B. De zorgkosten per jaar per geïncluderde patiënt wijken mogelijk iets af van de totale begrote zorgkosten per geïncludeerde patiënt. Reden:"),"") -> 
A60: =IF(A59="","","Er wordt per kwartaal gedeclareerd, dus het kwartaalbedrag is afgerond op hele centen. Dit bedrag is met vier vermenigvuldigd om de jaarkosten te berekenen.") -> 
A62: Vergelijking voorgaande jaren | B62: Bedrag | D62: Vergelijking met | F62: Verschil
A63: =CONCATENATE("Zorgkosten per geincludeerde patiënt ",kolom1) -> Zorgkosten per geincludeerde patiënt | B63: =B56 -> 0
A64: =CONCATENATE("Zorgkosten per geincludeerde patiënt ",vergelijking1pp) -> Zorgkosten per geincludeerde patiënt
A65: =CONCATENATE("Zorgkosten per geincludeerde patiënt ",kolom2) -> Zorgkosten per geincludeerde patiënt Begroting 2024 | B65: =$D$56 -> 0 | D65: =kolom1 ->  | F65: =IFERROR((B65-B63)/B63,"") -> 
A66: =CONCATENATE("Zorgkosten per geincludeerde patiënt ",kolom2) -> Zorgkosten per geincludeerde patiënt Begroting 2024 | B66: =$D$56 -> 0 | D66: =vergelijking1pp -> 0 | F66: =IFERROR((B66-B64)/B64,"") -> 
D67: =CONCATENATE("Verschil t.o.v. ",vergelijking1pp) -> Verschil t.o.v.
A68: Per patiënt zorgkosten + O&I | B68: =kolom1pp ->  | D68: =kolom2pp -> Begr.p.p. 2024
A69: Zorgkosten + O&I-kosten per jaar per geïncludeerde patiënt | B69: =IFERROR(B56+'11611 O&I regio'!$B$68,"") ->  | D69: =IFERROR(D56+'11611 O&I regio'!B70,"") ->  | F69: t.b.v. tabblad RZ
A70: Zorgkosten + O&I-kosten per kwartaal per geïncludeerde patiënt | B70: =IFERROR(B57+'11611 O&I regio'!B72,"") -> 0 | D70: =IFERROR(D57+'11611 O&I regio'!B73,"") -> 0 | F70: =F69 -> t.b.v. tabblad RZ

Sheet 11623 COPD ex.O&I
A1: =MID(CELL("bestandsnaam",A1),SEARCH("]",CELL("bestandsnaam",A1),1)+1,99) -> 11623 COPD ex.O&I | H1: ='11611 O&I regio'!$F$1 -> 0 | U1: Tabblad beveiligen
A2: =swv_naam -> Naam Regionale Huisartsen Organisatie: Invullen op tabblad basis. | U2: Tabblad niet verbergen
A3: =CONCATENATE("AGB-code: ",swv_agb) -> AGB-code: Invullen op tabblad basis. | U3: D6
A5: Aantallen (blauw = begroting nog invullen) | B5: =kolom1 ->  | D5: =kolom2 -> Begroting 2024 | F5: Verschil
A6: Aantal geïncludeerde patiënten in dit zorgprogramma (de patiënten van alle zorgverzekeraars) | B6: ='DATA INPUT (VERBERGEN)'!A206 -> 0 | F6: =IFERROR(IF($A6="","",(D6-B6)/B6),"") -> 
A7: Aantal geïncludeerde patiënten in dit zorgprogramma (alleen CZ-verzekerden) | B7: ='DATA INPUT (VERBERGEN)'!A207 -> 0 | F7: =IFERROR(IF($A7="","",(D7-B7)/B7),"") -> 
A8: Percentage CZ-verzekerden | B8: =IFERROR(B7/B6,"") ->  | D8: =IFERROR(D7/D6,"") -> 
A9: Totaal aantal ingeschreven patiënten van alle huisartsen die bij dit zorgprogramma zijn aangesloten (ook de patiënten die niet aan dit zorgprogramma deelnemen; de patiënten van alle zorgverzekeraars) | B9: ='DATA INPUT (VERBERGEN)'!A209 -> 0
A10: Prevalentie | B10: =IFERROR(B6/B9,"") ->  | D10: =IFERROR(D6/D9,"") -> 
A12: Omschrijving (blauw = begroting nog invullen) | B12: =kolom1 ->  | D12: =kolom2 -> Begroting 2024 | F12: Verschil
A13: Huisarts* | B13: ='DATA INPUT (VERBERGEN)'!A213 -> 0 | F13: =IFERROR(IF($A13="","",(D13-B13)/B13),"") ->  | H13: =IF(A13<>"",IFERROR(IF(TEXT(A13,"@")=TEXT(VLOOKUP(A30,'BEHEER (VERBERGEN)'!$C$27:$C$36,1,FALSE),"@"),"","fout-ha-comp"),"fout-ha-comp"),"") -> 
A14: Praktijkondersteuner Somatiek* | B14: ='DATA INPUT (VERBERGEN)'!A214 -> 0 | F14: =IFERROR(IF($A14="","",(D14-B14)/B14),"") ->  | H14: =IF(A14<>"",IFERROR(IF(TEXT(A14,"@")=TEXT(VLOOKUP(A31,'BEHEER (VERBERGEN)'!$C$27:$C$36,1,FALSE),"@"),"","fout-ha-comp"),"fout-ha-comp"),"") -> 
A15: Diëtist | B15: ='DATA INPUT (VERBERGEN)'!A215 -> 0 | H15: =IF(A15<>"",IFERROR(IF(TEXT(A15,"@")=TEXT(VLOOKUP(A32,'BEHEER (VERBERGEN)'!$C$27:$C$36,1,FALSE),"@"),"","fout-ha-comp"),"fout-ha-comp"),"") -> 
A16: Spirometrie (verrichting)* | B16: ='DATA INPUT (VERBERGEN)'!A216 -> 0 | H16: =IF(A16<>"",IFERROR(IF(TEXT(A16,"@")=TEXT(VLOOKUP(A33,'BEHEER (VERBERGEN)'!$C$27:$C$36,1,FALSE),"@"),"","fout-ha-comp"),"fout-ha-comp"),"") -> 
A17: Specialist | B17: ='DATA INPUT (VERBERGEN)'!A217 -> 0 | H17: =IF(A17<>"",IFERROR(IF(TEXT(A17,"@")=TEXT(VLOOKUP(A34,'BEHEER (VERBERGEN)'!$C$27:$C$36,1,FALSE),"@"),"","fout-ha-comp"),"fout-ha-comp"),"") -> 
A18: Gedragsondersteuning SMR* | B18: ='DATA INPUT (VERBERGEN)'!A218 -> 0 | H18: =IF(A18<>"",IFERROR(IF(TEXT(A18,"@")=TEXT(VLOOKUP(A35,'BEHEER (VERBERGEN)'!$C$27:$C$36,1,FALSE),"@"),"","fout-ha-comp"),"fout-ha-comp"),"") -> 
A19: =IF('DATA INPUT (VERBERGEN)'!A279="","",'DATA INPUT (VERBERGEN)'!A279) ->  | B19: ='DATA INPUT (VERBERGEN)'!A219 -> 0 | H19: =IF(A19<>"",IFERROR(IF(TEXT(A19,"@")=TEXT(VLOOKUP(A36,'BEHEER (VERBERGEN)'!$C$27:$C$36,1,FALSE),"@"),"","fout-ha-comp"),"fout-ha-comp"),"") -> 
A20: =IF('DATA INPUT (VERBERGEN)'!A280="","",'DATA INPUT (VERBERGEN)'!A280) ->  | B20: ='DATA INPUT (VERBERGEN)'!A220 -> 0 | H20: =IF(A20<>"",IFERROR(IF(TEXT(A20,"@")=TEXT(VLOOKUP(A37,'BEHEER (VERBERGEN)'!$C$27:$C$36,1,FALSE),"@"),"","fout-ha-comp"),"fout-ha-comp"),"") -> 
A21: =IF('DATA INPUT (VERBERGEN)'!A281="","",'DATA INPUT (VERBERGEN)'!A281) ->  | B21: ='DATA INPUT (VERBERGEN)'!A221 -> 0 | H21: =IF(A21<>"",IFERROR(IF(TEXT(A21,"@")=TEXT(VLOOKUP(A38,'BEHEER (VERBERGEN)'!$C$27:$C$36,1,FALSE),"@"),"","fout-ha-comp"),"fout-ha-comp"),"") -> 
A22: =IF('DATA INPUT (VERBERGEN)'!A282="","",'DATA INPUT (VERBERGEN)'!A282) ->  | B22: ='DATA INPUT (VERBERGEN)'!A222 -> 0 | H22: =IF(A22<>"",IFERROR(IF(TEXT(A22,"@")=TEXT(VLOOKUP(A39,'BEHEER (VERBERGEN)'!$C$27:$C$36,1,FALSE),"@"),"","fout-ha-comp"),"fout-ha-comp"),"") -> 
A23: =IF('DATA INPUT (VERBERGEN)'!A283="","",'DATA INPUT (VERBERGEN)'!A283) ->  | B23: ='DATA INPUT (VERBERGEN)'!A223 -> 0 | H23: =IF(A23<>"",IFERROR(IF(TEXT(A23,"@")=TEXT(VLOOKUP(A40,'BEHEER (VERBERGEN)'!$C$27:$C$36,1,FALSE),"@"),"","fout-ha-comp"),"fout-ha-comp"),"") -> 
A24: =IF('DATA INPUT (VERBERGEN)'!A284="","",'DATA INPUT (VERBERGEN)'!A284) ->  | B24: ='DATA INPUT (VERBERGEN)'!A224 -> 0 | H24: =IF(A24<>"",IFERROR(IF(TEXT(A24,"@")=TEXT(VLOOKUP(A41,'BEHEER (VERBERGEN)'!$C$27:$C$36,1,FALSE),"@"),"","fout-ha-comp"),"fout-ha-comp"),"") -> 
A25: =IF('DATA INPUT (VERBERGEN)'!A285="","",'DATA INPUT (VERBERGEN)'!A285) ->  | B25: ='DATA INPUT (VERBERGEN)'!A225 -> 0 | H25: =IF(A25<>"",IFERROR(IF(TEXT(A25,"@")=TEXT(VLOOKUP(A42,'BEHEER (VERBERGEN)'!$C$27:$C$36,1,FALSE),"@"),"","fout-ha-comp"),"fout-ha-comp"),"") -> 
A26: =IF('DATA INPUT (VERBERGEN)'!A286="","",'DATA INPUT (VERBERGEN)'!A286) ->  | B26: ='DATA INPUT (VERBERGEN)'!A226 -> 0 | H26: =IF(A26<>"",IFERROR(IF(TEXT(A26,"@")=TEXT(VLOOKUP(A43,'BEHEER (VERBERGEN)'!$C$27:$C$36,1,FALSE),"@"),"","fout-ha-comp"),"fout-ha-comp"),"") -> 
A27: Totaal begrote zorgkosten | B27: =SUM(B13:B26) -> 0 | D27: =SUM(D13:D26) -> 0
A29: Omschrijving | B29: =kolom1pp ->  | D29: =kolom2pp -> Begr.p.p. 2024 | F29: Verschil | H29: CZ-kader p.p.
A30: =IF(A13="","",A13) -> Huisarts* | B30: =IFERROR(IF(B13="","",B13/B$6),"") ->  | C30: =IF(RIGHT($A13,1)="*",B30,0) ->  | D30: =IFERROR(IF(D13="","",D13/D$6),"") ->  | E30: =IF(RIGHT($A13,1)="*",D30,0) ->  | F30: =IFERROR(IF($A30="","",(D30-B30)/B30),"") ->  | G30: =IF(RIGHT($A13,1)="*",H30,0) -> 63.64 | H30: 63.64
A31: =IF(A14="","",A14) -> Praktijkondersteuner Somatiek* | B31: =IFERROR(IF(B14="","",B14/B$6),"") ->  | F31: =IFERROR(IF($A31="","",(D31-B31)/B31),"") ->  | G31: 82 | H31: 82
A32: Diëtist | C32: 0 | E32: 0 | G32: 0 | H32: 15.93
A33: Spirometrie (verrichting)* | G33: 38.14 | H33: 38.14
A34: Specialist | C34: 0 | E34: 0 | G34: 0 | H34: 5.89
A35: Gedragsondersteuning SMR* | D35: =IFERROR(IF(D18="","",D18/D$6),"") ->  | G35: 8.93 | H35: 8.93
C36: 0 | E36: 0 | G36: 0
C37: 0 | E37: 0 | G37: 0
C38: 0 | E38: 0 | G38: 0
C39: 0 | E39: 0 | G39: 0
C40: 0 | E40: 0 | G40: 0
C41: 0 | E41: 0 | G41: 0
C42: 0 | E42: 0 | G42: 0
C43: 0 | E43: 0 | G43: 0
A44: Totaal begrote zorgkosten per geïncludeerde patiënt | B44: =SUM(B30:B43) -> 0 | D44: =SUM(D30:D43) -> 0 | E44: =IF(D44>_xlfn.XLOOKUP($A$1,'BEHEER (VERBERGEN)'!A65:A73,'BEHEER (VERBERGEN)'!B65:B73),"*","") ->  | H44: =SUM(H30:H43) -> 214.53
A45: =IF(OR(E44="*",E47="*"),"De rode cel is hoger dan het maximum. Stel uw begroting naar beneden bij.","") -> 
A46: * = Huisartsgebonden component zorgkosten | B46: =kolom1pp ->  | D46: =kolom2pp -> Begr.p.p. 2024 | F46: Verschil | H46: CZ-kader p.p.
A47: Huisartsgebonden component | B47: =SUM(C30:C43) -> 0 | D47: =SUM(E30:E43) -> 0 | E47: =IF(D47>_xlfn.XLOOKUP($A$1,'BEHEER (VERBERGEN)'!A65:A73,'BEHEER (VERBERGEN)'!D65:D73),"*","") ->  | F47: =IFERROR(IF($A47="","",(D47-B47)/B47),"") ->  | H47: =SUM(G30:G43) -> 192.71
A48: Overige zorgverleners | B48: =B44-B47 -> 0 | D48: =D44-D47 -> 0 | F48: =IFERROR(IF($A48="","",(D48-B48)/B48),"") ->  | H48: =H44-H47 -> 21.82
A50: * = Huisartsgebonden component zorgkosten percentages | B50: =kolom1pp ->  | D50: =kolom2pp -> Begr.p.p. 2024 | H50: CZ-kader p.p.
A51: Huisartsgebonden component | B51: =IFERROR(B47/B44,"") ->  | D51: =IFERROR(D47/D44,"") ->  | H51: =IFERROR(H47/H44,"") -> 0.8982892836
A52: Overige zorgverleners | B52: =IFERROR(B48/B44,"") ->  | D52: =IFERROR(D48/D44,"") ->  | H52: =IFERROR(H48/H44,"") -> 0.1017107164
A55: Geïncludeerde patiënten | B55: =kolom1pp ->  | D55: =kolom2pp -> Begr.p.p. 2024
A56: Zorgkosten per jaar per geïncludeerde patiënt | B56: =IFERROR(B57*4,"") -> 0 | D56: =IFERROR(D57*4,"") -> 0
A57: Zorgkosten per kwartaal per geïncludeerde patiënt | B57: =IFERROR(ROUND(B44/4,2),"") -> 0 | D57: =IFERROR(ROUND(D44/4,2),"") -> 0
A59: =IF(OR(ROUND($B$56,2)<>ROUND($B$44,2),ROUND($D$56,2)<>ROUND($D$44,2)),CONCATENATE("N.B. De zorgkosten per jaar per geïncluderde patiënt wijken mogelijk iets af van de totale begrote zorgkosten per geïncludeerde patiënt. Reden:"),"") -> 
A60: =IF(A59="","","Er wordt per kwartaal gedeclareerd, dus het kwartaalbedrag is afgerond op hele centen. Dit bedrag is met vier vermenigvuldigd om de jaarkosten te berekenen.") -> 
A62: Vergelijking voorgaande jaren | B62: Bedrag | D62: Vergelijking met | F62: Verschil
A63: =CONCATENATE("Zorgkosten per geincludeerde patiënt ",kolom1) -> Zorgkosten per geincludeerde patiënt | B63: =B56 -> 0
A64: =CONCATENATE("Zorgkosten per geincludeerde patiënt ",vergelijking1pp) -> Zorgkosten per geincludeerde patiënt
A65: =CONCATENATE("Zorgkosten per geincludeerde patiënt ",kolom2) -> Zorgkosten per geincludeerde patiënt Begroting 2024 | B65: =$D$56 -> 0 | D65: =kolom1 ->  | F65: =IFERROR((B65-B63)/B63,"") -> 
A66: =CONCATENATE("Zorgkosten per geincludeerde patiënt ",kolom2) -> Zorgkosten per geincludeerde patiënt Begroting 2024 | B66: =$D$56 -> 0 | D66: =vergelijking1pp -> 0 | F66: =IFERROR((B66-B64)/B64,"") -> 
D67: =CONCATENATE("Verschil t.o.v. ",vergelijking1pp) -> Verschil t.o.v.
A68: Per patiënt zorgkosten + O&I | B68: =kolom1pp ->  | D68: =kolom2pp -> Begr.p.p. 2024
A69: Zorgkosten + O&I-kosten per jaar per geïncludeerde patiënt | B69: =IFERROR(B56+'11611 O&I regio'!$B$68,"") ->  | D69: =IFERROR(D56+'11611 O&I regio'!B70,"") ->  | F69: t.b.v. tabblad RZ
A70: Zorgkosten + O&I-kosten per kwartaal per geïncludeerde patiënt | B70: =IFERROR(B57+'11611 O&I regio'!B72,"") -> 0 | D70: =IFERROR(D57+'11611 O&I regio'!B73,"") -> 0 | F70: =F69 -> t.b.v. tabblad RZ

Sheet 11618 ASTMA ex.O&I
A1: =MID(CELL("bestandsnaam",A1),SEARCH("]",CELL("bestandsnaam",A1),1)+1,99) -> 11618 ASTMA ex.O&I | H1: ='11611 O&I regio'!$F$1 -> 0 | U1: Tabblad beveiligen
A2: =swv_naam -> Naam Regionale Huisartsen Organisatie: Invullen op tabblad basis. | U2: Tabblad niet verbergen
A3: =CONCATENATE("AGB-code: ",swv_agb) -> AGB-code: Invullen op tabblad basis. | U3: D6
A5: Aantallen (blauw = begroting nog invullen) | B5: =kolom1 ->  | D5: =kolom2 -> Begroting 2024 | F5: Verschil
A6: Aantal geïncludeerde patiënten in dit zorgprogramma (de patiënten van alle zorgverzekeraars) | B6: ='DATA INPUT (VERBERGEN)'!A306 -> 0 | F6: =IFERROR(IF($A6="","",(D6-B6)/B6),"") -> 
A7: Aantal geïncludeerde patiënten in dit zorgprogramma (alleen CZ-verzekerden) | B7: ='DATA INPUT (VERBERGEN)'!A307 -> 0 | F7: =IFERROR(IF($A7="","",(D7-B7)/B7),"") -> 
A8: Percentage CZ-verzekerden | B8: =IFERROR(B7/B6,"") ->  | D8: =IFERROR(D7/D6,"") -> 
A9: Totaal aantal ingeschreven patiënten van alle huisartsen die bij dit zorgprogramma zijn aangesloten (ook de patiënten die niet aan dit zorgprogramma deelnemen; de patiënten van alle zorgverzekeraars) | B9: ='DATA INPUT (VERBERGEN)'!A309 -> 0
A10: Prevalentie | B10: =IFERROR(B6/B9,"") ->  | D10: =IFERROR(D6/D9,"") -> 
A12: Omschrijving (blauw = begroting nog invullen) | B12: =kolom1 ->  | D12: =kolom2 -> Begroting 2024 | F12: Verschil
A13: Huisarts* | B13: ='DATA INPUT (VERBERGEN)'!A313 -> 0 | F13: =IFERROR(IF($A13="","",(D13-B13)/B13),"") ->  | H13: =IF(A13<>"",IFERROR(IF(TEXT(A13,"@")=TEXT(VLOOKUP(A30,'BEHEER (VERBERGEN)'!$C$27:$C$36,1,FALSE),"@"),"","fout-ha-comp"),"fout-ha-comp"),"") -> 
A14: Praktijkondersteuner Somatiek* | B14: ='DATA INPUT (VERBERGEN)'!A314 -> 0 | F14: =IFERROR(IF($A14="","",(D14-B14)/B14),"") ->  | H14: =IF(A14<>"",IFERROR(IF(TEXT(A14,"@")=TEXT(VLOOKUP(A31,'BEHEER (VERBERGEN)'!$C$27:$C$36,1,FALSE),"@"),"","fout-ha-comp"),"fout-ha-comp"),"") -> 
A15: Gespecialiseerd verpleegkundige* | B15: ='DATA INPUT (VERBERGEN)'!A315 -> 0 | H15: =IF(A15<>"",IFERROR(IF(TEXT(A15,"@")=TEXT(VLOOKUP(A32,'BEHEER (VERBERGEN)'!$C$27:$C$36,1,FALSE),"@"),"","fout-ha-comp"),"fout-ha-comp"),"") -> 
A16: Spirometrie (verrichting)* | B16: ='DATA INPUT (VERBERGEN)'!A316 -> 0 | H16: =IF(A16<>"",IFERROR(IF(TEXT(A16,"@")=TEXT(VLOOKUP(A33,'BEHEER (VERBERGEN)'!$C$27:$C$36,1,FALSE),"@"),"","fout-ha-comp"),"fout-ha-comp"),"") -> 
A17: Specialist | B17: ='DATA INPUT (VERBERGEN)'!A317 -> 0 | H17: =IF(A17<>"",IFERROR(IF(TEXT(A17,"@")=TEXT(VLOOKUP(A34,'BEHEER (VERBERGEN)'!$C$27:$C$36,1,FALSE),"@"),"","fout-ha-comp"),"fout-ha-comp"),"") -> 
A18: Gedragsondersteuning SMR* | B18: ='DATA INPUT (VERBERGEN)'!A318 -> 0 | H18: =IF(A18<>"",IFERROR(IF(TEXT(A18,"@")=TEXT(VLOOKUP(A35,'BEHEER (VERBERGEN)'!$C$27:$C$36,1,FALSE),"@"),"","fout-ha-comp"),"fout-ha-comp"),"") -> 
A19: =IF('DATA INPUT (VERBERGEN)'!A379="","",'DATA INPUT (VERBERGEN)'!A379) ->  | B19: ='DATA INPUT (VERBERGEN)'!A319 -> 0 | H19: =IF(A19<>"",IFERROR(IF(TEXT(A19,"@")=TEXT(VLOOKUP(A36,'BEHEER (VERBERGEN)'!$C$27:$C$36,1,FALSE),"@"),"","fout-ha-comp"),"fout-ha-comp"),"") -> 
A20: =IF('DATA INPUT (VERBERGEN)'!A380="","",'DATA INPUT (VERBERGEN)'!A380) ->  | B20: ='DATA INPUT (VERBERGEN)'!A320 -> 0 | H20: =IF(A20<>"",IFERROR(IF(TEXT(A20,"@")=TEXT(VLOOKUP(A37,'BEHEER (VERBERGEN)'!$C$27:$C$36,1,FALSE),"@"),"","fout-ha-comp"),"fout-ha-comp"),"") -> 
A21: =IF('DATA INPUT (VERBERGEN)'!A381="","",'DATA INPUT (VERBERGEN)'!A381) ->  | B21: ='DATA INPUT (VERBERGEN)'!A321 -> 0 | H21: =IF(A21<>"",IFERROR(IF(TEXT(A21,"@")=TEXT(VLOOKUP(A38,'BEHEER (VERBERGEN)'!$C$27:$C$36,1,FALSE),"@"),"","fout-ha-comp"),"fout-ha-comp"),"") -> 
A22: =IF('DATA INPUT (VERBERGEN)'!A382="","",'DATA INPUT (VERBERGEN)'!A382) ->  | B22: ='DATA INPUT (VERBERGEN)'!A322 -> 0 | H22: =IF(A22<>"",IFERROR(IF(TEXT(A22,"@")=TEXT(VLOOKUP(A39,'BEHEER (VERBERGEN)'!$C$27:$C$36,1,FALSE),"@"),"","fout-ha-comp"),"fout-ha-comp"),"") -> 
A23: =IF('DATA INPUT (VERBERGEN)'!A383="","",'DATA INPUT (VERBERGEN)'!A383) ->  | B23: ='DATA INPUT (VERBERGEN)'!A323 -> 0 | H23: =IF(A23<>"",IFERROR(IF(TEXT(A23,"@")=TEXT(VLOOKUP(A40,'BEHEER (VERBERGEN)'!$C$27:$C$36,1,FALSE),"@"),"","fout-ha-comp"),"fout-ha-comp"),"") -> 
A24: =IF('DATA INPUT (VERBERGEN)'!A384="","",'DATA INPUT (VERBERGEN)'!A384) ->  | B24: ='DATA INPUT (VERBERGEN)'!A324 -> 0 | H24: =IF(A24<>"",IFERROR(IF(TEXT(A24,"@")=TEXT(VLOOKUP(A41,'BEHEER (VERBERGEN)'!$C$27:$C$36,1,FALSE),"@"),"","fout-ha-comp"),"fout-ha-comp"),"") -> 
A25: =IF('DATA INPUT (VERBERGEN)'!A385="","",'DATA INPUT (VERBERGEN)'!A385) ->  | B25: ='DATA INPUT (VERBERGEN)'!A325 -> 0 | H25: =IF(A25<>"",IFERROR(IF(TEXT(A25,"@")=TEXT(VLOOKUP(A42,'BEHEER (VERBERGEN)'!$C$27:$C$36,1,FALSE),"@"),"","fout-ha-comp"),"fout-ha-comp"),"") -> 
A26: =IF('DATA INPUT (VERBERGEN)'!A386="","",'DATA INPUT (VERBERGEN)'!A386) ->  | B26: ='DATA INPUT (VERBERGEN)'!A326 -> 0 | H26: =IF(A26<>"",IFERROR(IF(TEXT(A26,"@")=TEXT(VLOOKUP(A43,'BEHEER (VERBERGEN)'!$C$27:$C$36,1,FALSE),"@"),"","fout-ha-comp"),"fout-ha-comp"),"") -> 
A27: Totaal begrote zorgkosten | B27: =SUM(B13:B26) -> 0 | D27: =SUM(D13:D26) -> 0
A29: Omschrijving | B29: =kolom1pp ->  | D29: =kolom2pp -> Begr.p.p. 2024 | F29: Verschil | H29: CZ-kader p.p.
A30: =IF(A13="","",A13) -> Huisarts* | B30: =IFERROR(IF(B13="","",B13/B$6),"") ->  | C30: =IF(RIGHT($A13,1)="*",B30,0) ->  | D30: =IFERROR(IF(D13="","",D13/D$6),"") ->  | E30: =IF(RIGHT($A13,1)="*",D30,0) ->  | F30: =IFERROR(IF($A30="","",(D30-B30)/B30),"") ->  | G30: =IF(RIGHT($A13,1)="*",H30,0) -> 50.22 | H30: 50.22
A31: =IF(A14="","",A14) -> Praktijkondersteuner Somatiek* | B31: =IFERROR(IF(B14="","",B14/B$6),"") ->  | F31: =IFERROR(IF($A31="","",(D31-B31)/B31),"") ->  | G31: 81.7 | H31: 81.7
A32: Gespecialiseerd verpleegkundige* | G32: 1 | H32: 1
A33: Spirometrie (verrichting)* | G33: 27.63 | H33: 27.63
A34: Specialist | C34: 0 | E34: 0 | G34: 0 | H34: 4.08
A35: Gedragsondersteuning SMR* | D35: =IFERROR(IF(D18="","",D18/D$6),"") ->  | G35: 8.93 | H35: 8.93
C36: 0 | E36: 0 | G36: 0
C37: 0 | E37: 0 | G37: 0
C38: 0 | E38: 0 | G38: 0
C39: 0 | E39: 0 | G39: 0
C40: 0 | E40: 0 | G40: 0
C41: 0 | E41: 0 | G41: 0
C42: 0 | E42: 0 | G42: 0
C43: 0 | E43: 0 | G43: 0
A44: Totaal begrote zorgkosten per geïncludeerde patiënt | B44: =SUM(B30:B43) -> 0 | D44: =SUM(D30:D43) -> 0 | E44: =IF(D44>_xlfn.XLOOKUP($A$1,'BEHEER (VERBERGEN)'!A65:A73,'BEHEER (VERBERGEN)'!B65:B73),"*","") ->  | H44: =SUM(H30:H43) -> 173.56
A45: =IF(OR(E44="*",E47="*"),"De rode cel is hoger dan het maximum. Stel uw begroting naar beneden bij.","") -> 
A46: * = Huisartsgebonden component zorgkosten | B46: =kolom1pp ->  | D46: =kolom2pp -> Begr.p.p. 2024 | F46: Verschil | H46: CZ-kader p.p.
A47: Huisartsgebonden component | B47: =SUM(C30:C43) -> 0 | D47: =SUM(E30:E43) -> 0 | E47: =IF(D47>_xlfn.XLOOKUP($A$1,'BEHEER (VERBERGEN)'!A65:A73,'BEHEER (VERBERGEN)'!D65:D73),"*","") ->  | F47: =IFERROR(IF($A47="","",(D47-B47)/B47),"") ->  | H47: =SUM(G30:G43) -> 169.48
A48: Overige zorgverleners | B48: =B44-B47 -> 0 | D48: =D44-D47 -> 0 | F48: =IFERROR(IF($A48="","",(D48-B48)/B48),"") ->  | H48: =H44-H47 -> 4.08
A50: * = Huisartsgebonden component zorgkosten percentages | B50: =kolom1pp ->  | D50: =kolom2pp -> Begr.p.p. 2024 | H50: CZ-kader p.p.
A51: Huisartsgebonden component | B51: =IFERROR(B47/B44,"") ->  | D51: =IFERROR(D47/D44,"") ->  | H51: =IFERROR(H47/H44,"") -> 0.9764922793
A52: Overige zorgverleners | B52: =IFERROR(B48/B44,"") ->  | D52: =IFERROR(D48/D44,"") ->  | H52: =IFERROR(H48/H44,"") -> 0.02350772067
A55: Geïncludeerde patiënten | B55: =kolom1pp ->  | D55: =kolom2pp -> Begr.p.p. 2024
A56: Zorgkosten per jaar per geïncludeerde patiënt | B56: =IFERROR(B57*4,"") -> 0 | D56: =IFERROR(D57*4,"") -> 0
A57: Zorgkosten per kwartaal per geïncludeerde patiënt | B57: =IFERROR(ROUND(B44/4,2),"") -> 0 | D57: =IFERROR(ROUND(D44/4,2),"") -> 0
A59: =IF(OR(ROUND($B$56,2)<>ROUND($B$44,2),ROUND($D$56,2)<>ROUND($D$44,2)),CONCATENATE("N.B. De zorgkosten per jaar per geïncluderde patiënt wijken mogelijk iets af van de totale begrote zorgkosten per geïncludeerde patiënt. Reden:"),"") -> 
A60: =IF(A59="","","Er wordt per kwartaal gedeclareerd, dus het kwartaalbedrag is afgerond op hele centen. Dit bedrag is met vier vermenigvuldigd om de jaarkosten te berekenen.") -> 
A62: Vergelijking voorgaande jaren | B62: Bedrag | D62: Vergelijking met | F62: Verschil
A63: =CONCATENATE("Zorgkosten per geincludeerde patiënt ",kolom1) -> Zorgkosten per geincludeerde patiënt | B63: =B56 -> 0
A64: =CONCATENATE("Zorgkosten per geincludeerde patiënt ",vergelijking1pp) -> Zorgkosten per geincludeerde patiënt
A65: =CONCATENATE("Zorgkosten per geincludeerde patiënt ",kolom2) -> Zorgkosten per geincludeerde patiënt Begroting 2024 | B65: =$D$56 -> 0 | D65: =kolom1 ->  | F65: =IFERROR((B65-B63)/B63,"") -> 
A66: =CONCATENATE("Zorgkosten per geincludeerde patiënt ",kolom2) -> Zorgkosten per geincludeerde patiënt Begroting 2024 | B66: =$D$56 -> 0 | D66: =vergelijking1pp -> 0 | F66: =IFERROR((B66-B64)/B64,"") -> 
D67: =CONCATENATE("Verschil t.o.v. ",vergelijking1pp) -> Verschil t.o.v.
A68: Per patiënt zorgkosten + O&I | B68: =kolom1pp ->  | D68: =kolom2pp -> Begr.p.p. 2024
A69: Zorgkosten + O&I-kosten per jaar per geïncludeerde patiënt | B69: =IFERROR(B56+'11611 O&I regio'!$B$68,"") ->  | D69: =IFERROR(D56+'11611 O&I regio'!B70,"") ->  | F69: t.b.v. tabblad RZ
A70: Zorgkosten + O&I-kosten per kwartaal per geïncludeerde patiënt | B70: =IFERROR(B57+'11611 O&I regio'!B72,"") -> 0 | D70: =IFERROR(D57+'11611 O&I regio'!B73,"") -> 0 | F70: =F69 -> t.b.v. tabblad RZ

Sheet 11617 VRM (HVZ en VVR) ex.O&I
A1: =MID(CELL("bestandsnaam",A1),SEARCH("]",CELL("bestandsnaam",A1),1)+1,99) -> 11617 VRM (HVZ en VVR) ex.O&I | H1: ='11611 O&I regio'!$F$1 -> 0 | U1: Tabblad beveiligen
A2: =swv_naam -> Naam Regionale Huisartsen Organisatie: Invullen op tabblad basis. | U2: Tabblad niet verbergen
A3: =CONCATENATE("AGB-code: ",swv_agb) -> AGB-code: Invullen op tabblad basis. | U3: D6
A5: Aantallen (blauw = begroting nog invullen) | B5: =kolom1 ->  | D5: =kolom2 -> Begroting 2024 | F5: Verschil
A6: Aantal geïncludeerde patiënten in dit zorgprogramma (de patiënten van alle zorgverzekeraars) | B6: ='DATA INPUT (VERBERGEN)'!A406 -> 0 | F6: =IFERROR(IF($A6="","",(D6-B6)/B6),"") -> 
A7: Aantal geïncludeerde patiënten in dit zorgprogramma (alleen CZ-verzekerden) | B7: ='DATA INPUT (VERBERGEN)'!A407 -> 0 | F7: =IFERROR(IF($A7="","",(D7-B7)/B7),"") -> 
A8: Percentage CZ-verzekerden | B8: =IFERROR(B7/B6,"") ->  | D8: =IFERROR(D7/D6,"") -> 
A9: Totaal aantal ingeschreven patiënten van alle huisartsen die bij dit zorgprogramma zijn aangesloten (ook de patiënten die niet aan dit zorgprogramma deelnemen; de patiënten van alle zorgverzekeraars) | B9: ='DATA INPUT (VERBERGEN)'!A409 -> 0
A10: Prevalentie | B10: =IFERROR(B6/B9,"") ->  | D10: =IFERROR(D6/D9,"") -> 
A12: Omschrijving (blauw = begroting nog invullen) | B12: =kolom1 ->  | D12: =kolom2 -> Begroting 2024 | F12: Verschil
A13: Huisarts* | B13: ='DATA INPUT (VERBERGEN)'!A413 -> 0 | F13: =IFERROR(IF($A13="","",(D13-B13)/B13),"") ->  | H13: =IF(A13<>"",IFERROR(IF(TEXT(A13,"@")=TEXT(VLOOKUP(A30,'BEHEER (VERBERGEN)'!$C$27:$C$36,1,FALSE),"@"),"","fout-ha-comp"),"fout-ha-comp"),"") -> 
A14: Praktijkondersteuner Somatiek* | B14: ='DATA INPUT (VERBERGEN)'!A414 -> 0 | F14: =IFERROR(IF($A14="","",(D14-B14)/B14),"") ->  | H14: =IF(A14<>"",IFERROR(IF(TEXT(A14,"@")=TEXT(VLOOKUP(A31,'BEHEER (VERBERGEN)'!$C$27:$C$36,1,FALSE),"@"),"","fout-ha-comp"),"fout-ha-comp"),"") -> 
A15: Diëtist | B15: ='DATA INPUT (VERBERGEN)'!A415 -> 0 | H15: =IF(A15<>"",IFERROR(IF(TEXT(A15,"@")=TEXT(VLOOKUP(A32,'BEHEER (VERBERGEN)'!$C$27:$C$36,1,FALSE),"@"),"","fout-ha-comp"),"fout-ha-comp"),"") -> 
B16: ='DATA INPUT (VERBERGEN)'!A416 -> 0 | H16: =IF(A16<>"",IFERROR(IF(TEXT(A16,"@")=TEXT(VLOOKUP(A33,'BEHEER (VERBERGEN)'!$C$27:$C$36,1,FALSE),"@"),"","fout-ha-comp"),"fout-ha-comp"),"") -> 
A17: Specialist | B17: ='DATA INPUT (VERBERGEN)'!A417 -> 0 | H17: =IF(A17<>"",IFERROR(IF(TEXT(A17,"@")=TEXT(VLOOKUP(A34,'BEHEER (VERBERGEN)'!$C$27:$C$36,1,FALSE),"@"),"","fout-ha-comp"),"fout-ha-comp"),"") -> 
A18: Gedragsondersteuning SMR* | B18: ='DATA INPUT (VERBERGEN)'!A418 -> 0 | H18: =IF(A18<>"",IFERROR(IF(TEXT(A18,"@")=TEXT(VLOOKUP(A35,'BEHEER (VERBERGEN)'!$C$27:$C$36,1,FALSE),"@"),"","fout-ha-comp"),"fout-ha-comp"),"") -> 
A19: 24 uurs bloeddrukmeting | B19: ='DATA INPUT (VERBERGEN)'!A419 -> 0 | H19: =IF(A19<>"",IFERROR(IF(TEXT(A19,"@")=TEXT(VLOOKUP(A36,'BEHEER (VERBERGEN)'!$C$27:$C$36,1,FALSE),"@"),"","fout-ha-comp"),"fout-ha-comp"),"") -> fout-ha-comp
A20: =IF('DATA INPUT (VERBERGEN)'!A480="","",'DATA INPUT (VERBERGEN)'!A480) ->  | B20: ='DATA INPUT (VERBERGEN)'!A420 -> 0 | H20: =IF(A20<>"",IFERROR(IF(TEXT(A20,"@")=TEXT(VLOOKUP(A37,'BEHEER (VERBERGEN)'!$C$27:$C$36,1,FALSE),"@"),"","fout-ha-comp"),"fout-ha-comp"),"") -> 
A21: =IF('DATA INPUT (VERBERGEN)'!A481="","",'DATA INPUT (VERBERGEN)'!A481) ->  | B21: ='DATA INPUT (VERBERGEN)'!A421 -> 0 | H21: =IF(A21<>"",IFERROR(IF(TEXT(A21,"@")=TEXT(VLOOKUP(A38,'BEHEER (VERBERGEN)'!$C$27:$C$36,1,FALSE),"@"),"","fout-ha-comp"),"fout-ha-comp"),"") -> 
A22: =IF('DATA INPUT (VERBERGEN)'!A482="","",'DATA INPUT (VERBERGEN)'!A482) ->  | B22: ='DATA INPUT (VERBERGEN)'!A422 -> 0 | H22: =IF(A22<>"",IFERROR(IF(TEXT(A22,"@")=TEXT(VLOOKUP(A39,'BEHEER (VERBERGEN)'!$C$27:$C$36,1,FALSE),"@"),"","fout-ha-comp"),"fout-ha-comp"),"") -> 
A23: =IF('DATA INPUT (VERBERGEN)'!A483="","",'DATA INPUT (VERBERGEN)'!A483) ->  | B23: ='DATA INPUT (VERBERGEN)'!A423 -> 0 | H23: =IF(A23<>"",IFERROR(IF(TEXT(A23,"@")=TEXT(VLOOKUP(A40,'BEHEER (VERBERGEN)'!$C$27:$C$36,1,FALSE),"@"),"","fout-ha-comp"),"fout-ha-comp"),"") -> 
A24: =IF('DATA INPUT (VERBERGEN)'!A484="","",'DATA INPUT (VERBERGEN)'!A484) ->  | B24: ='DATA INPUT (VERBERGEN)'!A424 -> 0 | H24: =IF(A24<>"",IFERROR(IF(TEXT(A24,"@")=TEXT(VLOOKUP(A41,'BEHEER (VERBERGEN)'!$C$27:$C$36,1,FALSE),"@"),"","fout-ha-comp"),"fout-ha-comp"),"") -> 
A25: =IF('DATA INPUT (VERBERGEN)'!A485="","",'DATA INPUT (VERBERGEN)'!A485) ->  | B25: ='DATA INPUT (VERBERGEN)'!A425 -> 0 | H25: =IF(A25<>"",IFERROR(IF(TEXT(A25,"@")=TEXT(VLOOKUP(A42,'BEHEER (VERBERGEN)'!$C$27:$C$36,1,FALSE),"@"),"","fout-ha-comp"),"fout-ha-comp"),"") -> 
A26: =IF('DATA INPUT (VERBERGEN)'!A486="","",'DATA INPUT (VERBERGEN)'!A486) ->  | B26: ='DATA INPUT (VERBERGEN)'!A426 -> 0 | H26: =IF(A26<>"",IFERROR(IF(TEXT(A26,"@")=TEXT(VLOOKUP(A43,'BEHEER (VERBERGEN)'!$C$27:$C$36,1,FALSE),"@"),"","fout-ha-comp"),"fout-ha-comp"),"") -> 
A27: Totaal begrote zorgkosten | B27: =SUM(B13:B26) -> 0 | D27: =SUM(D13:D26) -> 0
A29: Omschrijving | B29: =kolom1pp ->  | D29: =kolom2pp -> Begr.p.p. 2024 | F29: Verschil | H29: CZ-kader p.p.
A30: =IF(A13="","",A13) -> Huisarts* | B30: =IFERROR(IF(B13="","",B13/B$6),"") ->  | C30: =IF(RIGHT($A13,1)="*",B30,0) ->  | D30: =IFERROR(IF(D13="","",D13/D$6),"") ->  | E30: =IF(RIGHT($A13,1)="*",D30,0) ->  | F30: =IFERROR(IF($A30="","",(D30-B30)/B30),"") ->  | G30: =IF(RIGHT($A13,1)="*",H30,0) -> 21.6 | H30: 21.6
A31: =IF(A14="","",A14) -> Praktijkondersteuner Somatiek* | B31: =IFERROR(IF(B14="","",B14/B$6),"") ->  | F31: =IFERROR(IF($A31="","",(D31-B31)/B31),"") ->  | G31: 48.43 | H31: 48.43
A32: Diëtist | C32: 0 | E32: 0 | G32: 0 | H32: 12.27
C33: 0 | E33: 0 | G33: 0 | H33: 5.92
A34: Specialist | C34: 0 | E34: 0 | G34: 0 | H34: 1.05
A35: Gedragsondersteuning SMR* | D35: =IFERROR(IF(D18="","",D18/D$6),"") ->  | G35: 8.93 | H35: 8.93
A36: 24 uurs bloeddrukmeting | C36: 0 | E36: 0 | G36: 0
C37: 0 | E37: 0 | G37: 0
C38: 0 | E38: 0 | G38: 0
C39: 0 | E39: 0 | G39: 0
C40: 0 | E40: 0 | G40: 0
C41: 0 | E41: 0 | G41: 0
C42: 0 | E42: 0 | G42: 0
C43: 0 | E43: 0 | G43: 0
A44: Totaal begrote zorgkosten per geïncludeerde patiënt | B44: =SUM(B30:B43) -> 0 | D44: =SUM(D30:D43) -> 0 | E44: =IF(D44>_xlfn.XLOOKUP($A$1,'BEHEER (VERBERGEN)'!A65:A73,'BEHEER (VERBERGEN)'!B65:B73),"*","") ->  | H44: =SUM(H30:H43) -> 98.2
A45: =IF(OR(E44="*",E47="*"),"De rode cel is hoger dan het maximum. Stel uw begroting naar beneden bij.","") -> 
A46: * = Huisartsgebonden component zorgkosten | B46: =kolom1pp ->  | D46: =kolom2pp -> Begr.p.p. 2024 | F46: Verschil | H46: CZ-kader p.p.
A47: Huisartsgebonden component | B47: =SUM(C30:C43) -> 0 | D47: =SUM(E30:E43) -> 0 | E47: =IF(D47>_xlfn.XLOOKUP($A$1,'BEHEER (VERBERGEN)'!A65:A73,'BEHEER (VERBERGEN)'!D65:D73),"*","") ->  | F47: =IFERROR(IF($A47="","",(D47-B47)/B47),"") ->  | H47: =SUM(G30:G43) -> 78.96
A48: Overige zorgverleners | B48: =B44-B47 -> 0 | D48: =D44-D47 -> 0 | F48: =IFERROR(IF($A48="","",(D48-B48)/B48),"") ->  | H48: =H44-H47 -> 19.24
A50: * = Huisartsgebonden component zorgkosten percentages | B50: =kolom1pp ->  | D50: =kolom2pp -> Begr.p.p. 2024 | H50: CZ-kader p.p.
A51: Huisartsgebonden component | B51: =IFERROR(B47/B44,"") ->  | D51: =IFERROR(D47/D44,"") ->  | H51: =IFERROR(H47/H44,"") -> 0.8040733198
A52: Overige zorgverleners | B52: =IFERROR(B48/B44,"") ->  | D52: =IFERROR(D48/D44,"") ->  | H52: =IFERROR(H48/H44,"") -> 0.1959266802
A55: Geïncludeerde patiënten | B55: =kolom1pp ->  | D55: =kolom2pp -> Begr.p.p. 2024
A56: Zorgkosten per jaar per geïncludeerde patiënt | B56: =IFERROR(B57*4,"") -> 0 | D56: =IFERROR(D57*4,"") -> 0
A57: Zorgkosten per kwartaal per geïncludeerde patiënt | B57: =IFERROR(ROUND(B44/4,2),"") -> 0 | D57: =IFERROR(ROUND(D44/4,2),"") -> 0
A59: =IF(OR(ROUND($B$56,2)<>ROUND($B$44,2),ROUND($D$56,2)<>ROUND($D$44,2)),CONCATENATE("N.B. De zorgkosten per jaar per geïncluderde patiënt wijken mogelijk iets af van de totale begrote zorgkosten per geïncludeerde patiënt. Reden:"),"") -> 
A60: =IF(A59="","","Er wordt per kwartaal gedeclareerd, dus het kwartaalbedrag is afgerond op hele centen. Dit bedrag is met vier vermenigvuldigd om de jaarkosten te berekenen.") -> 
A62: Vergelijking voorgaande jaren | B62: Bedrag | D62: Vergelijking met | F62: Verschil
A63: =CONCATENATE("Zorgkosten per geincludeerde patiënt ",kolom1) -> Zorgkosten per geincludeerde patiënt | B63: =B56 -> 0
A64: =CONCATENATE("Zorgkosten per geincludeerde patiënt ",vergelijking1pp) -> Zorgkosten per geincludeerde patiënt
A65: =CONCATENATE("Zorgkosten per geincludeerde patiënt ",kolom2) -> Zorgkosten per geincludeerde patiënt Begroting 2024 | B65: =$D$56 -> 0 | D65: =kolom1 ->  | F65: =IFERROR((B65-B63)/B63,"") -> 
A66: =CONCATENATE("Zorgkosten per geincludeerde patiënt ",kolom2) -> Zorgkosten per geincludeerde patiënt Begroting 2024 | B66: =$D$56 -> 0 | D66: =vergelijking1pp -> 0 | F66: =IFERROR((B66-B64)/B64,"") -> 
D67: =CONCATENATE("Verschil t.o.v. ",vergelijking1pp) -> Verschil t.o.v.
A68: Per patiënt zorgkosten + O&I | B68: =kolom1pp ->  | D68: =kolom2pp -> Begr.p.p. 2024
A69: Zorgkosten + O&I-kosten per jaar per geïncludeerde patiënt | B69: =IFERROR(B56+'11611 O&I regio'!$B$68,"") ->  | D69: =IFERROR(D56+'11611 O&I regio'!B70,"") ->  | F69: t.b.v. tabblad RZ
A70: Zorgkosten + O&I-kosten per kwartaal per geïncludeerde patiënt | B70: =IFERROR(B57+'11611 O&I regio'!B72,"") -> 0 | D70: =IFERROR(D57+'11611 O&I regio'!B73,"") -> 0 | F70: =F69 -> t.b.v. tabblad RZ

Sheet 11614 VRM (HVZ) ex.O&I
A1: =MID(CELL("bestandsnaam",A1),SEARCH("]",CELL("bestandsnaam",A1),1)+1,99) -> 11614 VRM (HVZ) ex.O&I | H1: ='11611 O&I regio'!$F$1 -> 0 | U1: Tabblad beveiligen
A2: =swv_naam -> Naam Regionale Huisartsen Organisatie: Invullen op tabblad basis. | U2: Tabblad niet verbergen
A3: =CONCATENATE("AGB-code: ",swv_agb) -> AGB-code: Invullen op tabblad basis. | U3: D6
A5: Aantallen (blauw = begroting nog invullen) | B5: =kolom1 ->  | D5: =kolom2 -> Begroting 2024 | F5: Verschil
A6: Aantal geïncludeerde patiënten in dit zorgprogramma (de patiënten van alle zorgverzekeraars) | B6: ='DATA INPUT (VERBERGEN)'!A506 -> 0 | F6: =IFERROR(IF($A6="","",(D6-B6)/B6),"") -> 
A7: Aantal geïncludeerde patiënten in dit zorgprogramma (alleen CZ-verzekerden) | B7: ='DATA INPUT (VERBERGEN)'!A507 -> 0 | F7: =IFERROR(IF($A7="","",(D7-B7)/B7),"") -> 
A8: Percentage CZ-verzekerden | B8: =IFERROR(B7/B6,"") ->  | D8: =IFERROR(D7/D6,"") -> 
A9: Totaal aantal ingeschreven patiënten van alle huisartsen die bij dit zorgprogramma zijn aangesloten (ook de patiënten die niet aan dit zorgprogramma deelnemen; de patiënten van alle zorgverzekeraars) | B9: ='DATA INPUT (VERBERGEN)'!A509 -> 0
A10: Prevalentie | B10: =IFERROR(B6/B9,"") ->  | D10: =IFERROR(D6/D9,"") -> 
A12: Omschrijving (blauw = begroting nog invullen) | B12: =kolom1 ->  | D12: =kolom2 -> Begroting 2024 | F12: Verschil
A13: Huisarts* | B13: ='DATA INPUT (VERBERGEN)'!A513 -> 0 | F13: =IFERROR(IF($A13="","",(D13-B13)/B13),"") ->  | H13: =IF(A13<>"",IFERROR(IF(TEXT(A13,"@")=TEXT(VLOOKUP(A30,'BEHEER (VERBERGEN)'!$C$27:$C$36,1,FALSE),"@"),"","fout-ha-comp"),"fout-ha-comp"),"") -> 
A14: Praktijkondersteuner Somatiek* | B14: ='DATA INPUT (VERBERGEN)'!A514 -> 0 | F14: =IFERROR(IF($A14="","",(D14-B14)/B14),"") ->  | H14: =IF(A14<>"",IFERROR(IF(TEXT(A14,"@")=TEXT(VLOOKUP(A31,'BEHEER (VERBERGEN)'!$C$27:$C$36,1,FALSE),"@"),"","fout-ha-comp"),"fout-ha-comp"),"") -> 
A15: Diëtist | B15: ='DATA INPUT (VERBERGEN)'!A515 -> 0 | H15: =IF(A15<>"",IFERROR(IF(TEXT(A15,"@")=TEXT(VLOOKUP(A32,'BEHEER (VERBERGEN)'!$C$27:$C$36,1,FALSE),"@"),"","fout-ha-comp"),"fout-ha-comp"),"") -> 
B16: ='DATA INPUT (VERBERGEN)'!A516 -> 0 | H16: =IF(A16<>"",IFERROR(IF(TEXT(A16,"@")=TEXT(VLOOKUP(A33,'BEHEER (VERBERGEN)'!$C$27:$C$36,1,FALSE),"@"),"","fout-ha-comp"),"fout-ha-comp"),"") -> 
A17: Specialist | B17: ='DATA INPUT (VERBERGEN)'!A517 -> 0 | H17: =IF(A17<>"",IFERROR(IF(TEXT(A17,"@")=TEXT(VLOOKUP(A34,'BEHEER (VERBERGEN)'!$C$27:$C$36,1,FALSE),"@"),"","fout-ha-comp"),"fout-ha-comp"),"") -> 
A18: Gedragsondersteuning SMR* | B18: ='DATA INPUT (VERBERGEN)'!A518 -> 0 | H18: =IF(A18<>"",IFERROR(IF(TEXT(A18,"@")=TEXT(VLOOKUP(A35,'BEHEER (VERBERGEN)'!$C$27:$C$36,1,FALSE),"@"),"","fout-ha-comp"),"fout-ha-comp"),"") -> 
A19: 24 uurs bloeddrukmeting | B19: ='DATA INPUT (VERBERGEN)'!A519 -> 0 | H19: =IF(A19<>"",IFERROR(IF(TEXT(A19,"@")=TEXT(VLOOKUP(A36,'BEHEER (VERBERGEN)'!$C$27:$C$36,1,FALSE),"@"),"","fout-ha-comp"),"fout-ha-comp"),"") -> fout-ha-comp
A20: =IF('DATA INPUT (VERBERGEN)'!A580="","",'DATA INPUT (VERBERGEN)'!A580) ->  | B20: ='DATA INPUT (VERBERGEN)'!A520 -> 0 | H20: =IF(A20<>"",IFERROR(IF(TEXT(A20,"@")=TEXT(VLOOKUP(A37,'BEHEER (VERBERGEN)'!$C$27:$C$36,1,FALSE),"@"),"","fout-ha-comp"),"fout-ha-comp"),"") -> 
A21: =IF('DATA INPUT (VERBERGEN)'!A581="","",'DATA INPUT (VERBERGEN)'!A581) ->  | B21: ='DATA INPUT (VERBERGEN)'!A521 -> 0 | H21: =IF(A21<>"",IFERROR(IF(TEXT(A21,"@")=TEXT(VLOOKUP(A38,'BEHEER (VERBERGEN)'!$C$27:$C$36,1,FALSE),"@"),"","fout-ha-comp"),"fout-ha-comp"),"") -> 
B22: ='DATA INPUT (VERBERGEN)'!A522 -> 0 | H22: =IF(A22<>"",IFERROR(IF(TEXT(A22,"@")=TEXT(VLOOKUP(A39,'BEHEER (VERBERGEN)'!$C$27:$C$36,1,FALSE),"@"),"","fout-ha-comp"),"fout-ha-comp"),"") -> 
A23: =IF('DATA INPUT (VERBERGEN)'!A583="","",'DATA INPUT (VERBERGEN)'!A583) ->  | B23: ='DATA INPUT (VERBERGEN)'!A523 -> 0 | H23: =IF(A23<>"",IFERROR(IF(TEXT(A23,"@")=TEXT(VLOOKUP(A40,'BEHEER (VERBERGEN)'!$C$27:$C$36,1,FALSE),"@"),"","fout-ha-comp"),"fout-ha-comp"),"") -> 
A24: =IF('DATA INPUT (VERBERGEN)'!A584="","",'DATA INPUT (VERBERGEN)'!A584) ->  | B24: ='DATA INPUT (VERBERGEN)'!A524 -> 0 | H24: =IF(A24<>"",IFERROR(IF(TEXT(A24,"@")=TEXT(VLOOKUP(A41,'BEHEER (VERBERGEN)'!$C$27:$C$36,1,FALSE),"@"),"","fout-ha-comp"),"fout-ha-comp"),"") -> 
A25: =IF('DATA INPUT (VERBERGEN)'!A585="","",'DATA INPUT (VERBERGEN)'!A585) ->  | B25: ='DATA INPUT (VERBERGEN)'!A525 -> 0 | H25: =IF(A25<>"",IFERROR(IF(TEXT(A25,"@")=TEXT(VLOOKUP(A42,'BEHEER (VERBERGEN)'!$C$27:$C$36,1,FALSE),"@"),"","fout-ha-comp"),"fout-ha-comp"),"") -> 
A26: =IF('DATA INPUT (VERBERGEN)'!A586="","",'DATA INPUT (VERBERGEN)'!A586) ->  | B26: ='DATA INPUT (VERBERGEN)'!A526 -> 0 | H26: =IF(A26<>"",IFERROR(IF(TEXT(A26,"@")=TEXT(VLOOKUP(A43,'BEHEER (VERBERGEN)'!$C$27:$C$36,1,FALSE),"@"),"","fout-ha-comp"),"fout-ha-comp"),"") -> 
A27: Totaal begrote zorgkosten | B27: =SUM(B13:B26) -> 0 | D27: =SUM(D13:D26) -> 0
A29: Omschrijving | B29: =kolom1pp ->  | D29: =kolom2pp -> Begr.p.p. 2024 | F29: Verschil | H29: CZ-kader p.p.
A30: =IF(A13="","",A13) -> Huisarts* | B30: =IFERROR(IF(B13="","",B13/B$6),"") ->  | C30: =IF(RIGHT($A13,1)="*",B30,0) ->  | D30: =IFERROR(IF(D13="","",D13/D$6),"") ->  | E30: =IF(RIGHT($A13,1)="*",D30,0) ->  | F30: =IFERROR(IF($A30="","",(D30-B30)/B30),"") ->  | G30: =IF(RIGHT($A13,1)="*",H30,0) -> 35.42 | H30: 35.42
A31: =IF(A14="","",A14) -> Praktijkondersteuner Somatiek* | B31: =IFERROR(IF(B14="","",B14/B$6),"") ->  | F31: =IFERROR(IF($A31="","",(D31-B31)/B31),"") ->  | G31: 67.4 | H31: 67.4
A32: Diëtist | C32: 0 | E32: 0 | G32: 0 | H32: 13.39
C33: 0 | E33: 0 | G33: 0 | H33: 4.44
A34: Specialist | C34: 0 | E34: 0 | G34: 0 | H34: 4.2
A35: Gedragsondersteuning SMR* | D35: =IFERROR(IF(D18="","",D18/D$6),"") ->  | G35: 8.93 | H35: 8.93
A36: 24 uurs bloeddrukmeting | C36: 0 | E36: 0 | G36: 0
C37: 0 | E37: 0 | G37: 0
C38: 0 | E38: 0 | G38: 0
C39: 0 | E39: 0 | G39: 0
C40: 0 | E40: 0 | G40: 0
C41: 0 | E41: 0 | G41: 0
C42: 0 | E42: 0 | G42: 0
C43: 0 | E43: 0 | G43: 0
A44: Totaal begrote zorgkosten per geïncludeerde patiënt | B44: =SUM(B30:B43) -> 0 | D44: =SUM(D30:D43) -> 0 | E44: =IF(D44>_xlfn.XLOOKUP($A$1,'BEHEER (VERBERGEN)'!A65:A73,'BEHEER (VERBERGEN)'!B65:B73),"*","") ->  | H44: =SUM(H30:H43) -> 133.78
A45: =IF(OR(E44="*",E47="*"),"De rode cel is hoger dan het maximum. Stel uw begroting naar beneden bij.","") -> 
A46: * = Huisartsgebonden component zorgkosten | B46: =kolom1pp ->  | D46: =kolom2pp -> Begr.p.p. 2024 | F46: Verschil | H46: CZ-kader p.p.
A47: Huisartsgebonden component | B47: =SUM(C30:C43) -> 0 | D47: =SUM(E30:E43) -> 0 | E47: =IF(D47>_xlfn.XLOOKUP($A$1,'BEHEER (VERBERGEN)'!A65:A73,'BEHEER (VERBERGEN)'!D65:D73),"*","") ->  | F47: =IFERROR(IF($A47="","",(D47-B47)/B47),"") ->  | H47: =SUM(G30:G43) -> 111.75
A48: Overige zorgverleners | B48: =B44-B47 -> 0 | D48: =D44-D47 -> 0 | F48: =IFERROR(IF($A48="","",(D48-B48)/B48),"") ->  | H48: =H44-H47 -> 22.03
A50: * = Huisartsgebonden component zorgkosten percentages | B50: =kolom1pp ->  | D50: =kolom2pp -> Begr.p.p. 2024 | H50: CZ-kader p.p.
A51: Huisartsgebonden component | B51: =IFERROR(B47/B44,"") ->  | D51: =IFERROR(D47/D44,"") ->  | H51: =IFERROR(H47/H44,"") -> 0.8353266557
A52: Overige zorgverleners | B52: =IFERROR(B48/B44,"") ->  | D52: =IFERROR(D48/D44,"") ->  | H52: =IFERROR(H48/H44,"") -> 0.1646733443
A55: Geïncludeerde patiënten | B55: =kolom1pp ->  | D55: =kolom2pp -> Begr.p.p. 2024
A56: Zorgkosten per jaar per geïncludeerde patiënt | B56: =IFERROR(B57*4,"") -> 0 | D56: =IFERROR(D57*4,"") -> 0
A57: Zorgkosten per kwartaal per geïncludeerde patiënt | B57: =IFERROR(ROUND(B44/4,2),"") -> 0 | D57: =IFERROR(ROUND(D44/4,2),"") -> 0
A59: =IF(OR(ROUND($B$56,2)<>ROUND($B$44,2),ROUND($D$56,2)<>ROUND($D$44,2)),CONCATENATE("N.B. De zorgkosten per jaar per geïncluderde patiënt wijken mogelijk iets af van de totale begrote zorgkosten per geïncludeerde patiënt. Reden:"),"") -> 
A60: =IF(A59="","","Er wordt per kwartaal gedeclareerd, dus het kwartaalbedrag is afgerond op hele centen. Dit bedrag is met vier vermenigvuldigd om de jaarkosten te berekenen.") -> 
A62: Vergelijking voorgaande jaren | B62: Bedrag | D62: Vergelijking met | F62: Verschil
A63: =CONCATENATE("Zorgkosten per geincludeerde patiënt ",kolom1) -> Zorgkosten per geincludeerde patiënt | B63: =B56 -> 0
A64: =CONCATENATE("Zorgkosten per geincludeerde patiënt ",vergelijking1pp) -> Zorgkosten per geincludeerde patiënt
A65: =CONCATENATE("Zorgkosten per geincludeerde patiënt ",kolom2) -> Zorgkosten per geincludeerde patiënt Begroting 2024 | B65: =$D$56 -> 0 | D65: =kolom1 ->  | F65: =IFERROR((B65-B63)/B63,"") -> 
A66: =CONCATENATE("Zorgkosten per geincludeerde patiënt ",kolom2) -> Zorgkosten per geincludeerde patiënt Begroting 2024 | B66: =$D$56 -> 0 | D66: =vergelijking1pp -> 0 | F66: =IFERROR((B66-B64)/B64,"") -> 
D67: =CONCATENATE("Verschil t.o.v. ",vergelijking1pp) -> Verschil t.o.v.
A68: Per patiënt zorgkosten + O&I | B68: =kolom1pp ->  | D68: =kolom2pp -> Begr.p.p. 2024
A69: Zorgkosten + O&I-kosten per jaar per geïncludeerde patiënt | B69: =IFERROR(B56+'11611 O&I regio'!$B$68,"") ->  | D69: =IFERROR(D56+'11611 O&I regio'!B70,"") ->  | F69: t.b.v. tabblad RZ
A70: Zorgkosten + O&I-kosten per kwartaal per geïncludeerde patiënt | B70: =IFERROR(B57+'11611 O&I regio'!B72,"") -> 0 | D70: =IFERROR(D57+'11611 O&I regio'!B73,"") -> 0 | F70: =F69 -> t.b.v. tabblad RZ

Sheet 11615 VRM (VVR) ex.O&I
A1: =MID(CELL("bestandsnaam",A1),SEARCH("]",CELL("bestandsnaam",A1),1)+1,99) -> 11615 VRM (VVR) ex.O&I | H1: ='11611 O&I regio'!$F$1 -> 0 | U1: Tabblad beveiligen
A2: =swv_naam -> Naam Regionale Huisartsen Organisatie: Invullen op tabblad basis. | U2: Tabblad niet verbergen
A3: =CONCATENATE("AGB-code: ",swv_agb) -> AGB-code: Invullen op tabblad basis. | U3: D6
A5: Aantallen (blauw = begroting nog invullen) | B5: =kolom1 ->  | D5: =kolom2 -> Begroting 2024 | F5: Verschil
A6: Aantal geïncludeerde patiënten in dit zorgprogramma (de patiënten van alle zorgverzekeraars) | B6: ='DATA INPUT (VERBERGEN)'!A606 -> 0 | F6: =IFERROR(IF($A6="","",(D6-B6)/B6),"") -> 
A7: Aantal geïncludeerde patiënten in dit zorgprogramma (alleen CZ-verzekerden) | B7: ='DATA INPUT (VERBERGEN)'!A607 -> 0 | F7: =IFERROR(IF($A7="","",(D7-B7)/B7),"") -> 
A8: Percentage CZ-verzekerden | B8: =IFERROR(B7/B6,"") ->  | D8: =IFERROR(D7/D6,"") -> 
A9: Totaal aantal ingeschreven patiënten van alle huisartsen die bij dit zorgprogramma zijn aangesloten (ook de patiënten die niet aan dit zorgprogramma deelnemen; de patiënten van alle zorgverzekeraars) | B9: ='DATA INPUT (VERBERGEN)'!A609 -> 0
A10: Prevalentie | B10: =IFERROR(B6/B9,"") ->  | D10: =IFERROR(D6/D9,"") -> 
A12: Omschrijving (blauw = begroting nog invullen) | B12: =kolom1 ->  | D12: =kolom2 -> Begroting 2024 | F12: Verschil
A13: Huisarts* | B13: ='DATA INPUT (VERBERGEN)'!A613 -> 0 | F13: =IFERROR(IF($A13="","",(D13-B13)/B13),"") ->  | I13: =IF(A13<>"",IFERROR(IF(TEXT(A13,"@")=TEXT(VLOOKUP(A30,'BEHEER (VERBERGEN)'!$C$27:$C$36,1,FALSE),"@"),"","fout-ha-comp"),"fout-ha-comp"),"") -> 
A14: Praktijkondersteuner Somatiek* | B14: ='DATA INPUT (VERBERGEN)'!A614 -> 0 | F14: =IFERROR(IF($A14="","",(D14-B14)/B14),"") ->  | I14: =IF(A14<>"",IFERROR(IF(TEXT(A14,"@")=TEXT(VLOOKUP(A31,'BEHEER (VERBERGEN)'!$C$27:$C$36,1,FALSE),"@"),"","fout-ha-comp"),"fout-ha-comp"),"") -> 
A15: Diëtist | B15: ='DATA INPUT (VERBERGEN)'!A615 -> 0 | I15: =IF(A15<>"",IFERROR(IF(TEXT(A15,"@")=TEXT(VLOOKUP(A32,'BEHEER (VERBERGEN)'!$C$27:$C$36,1,FALSE),"@"),"","fout-ha-comp"),"fout-ha-comp"),"") -> 
B16: ='DATA INPUT (VERBERGEN)'!A616 -> 0 | I16: =IF(A16<>"",IFERROR(IF(TEXT(A16,"@")=TEXT(VLOOKUP(A33,'BEHEER (VERBERGEN)'!$C$27:$C$36,1,FALSE),"@"),"","fout-ha-comp"),"fout-ha-comp"),"") -> 
A17: Gedragsondersteuning SMR* | B17: ='DATA INPUT (VERBERGEN)'!A617 -> 0 | I17: =IF(A17<>"",IFERROR(IF(TEXT(A17,"@")=TEXT(VLOOKUP(A34,'BEHEER (VERBERGEN)'!$C$27:$C$36,1,FALSE),"@"),"","fout-ha-comp"),"fout-ha-comp"),"") -> 
A18: 24 uurs bloeddrukmeting | B18: ='DATA INPUT (VERBERGEN)'!A618 -> 0 | I18: =IF(A18<>"",IFERROR(IF(TEXT(A18,"@")=TEXT(VLOOKUP(A35,'BEHEER (VERBERGEN)'!$C$27:$C$36,1,FALSE),"@"),"","fout-ha-comp"),"fout-ha-comp"),"") -> fout-ha-comp
A19: =IF('DATA INPUT (VERBERGEN)'!A679="","",'DATA INPUT (VERBERGEN)'!A679) ->  | B19: ='DATA INPUT (VERBERGEN)'!A619 -> 0 | I19: =IF(A19<>"",IFERROR(IF(TEXT(A19,"@")=TEXT(VLOOKUP(A36,'BEHEER (VERBERGEN)'!$C$27:$C$36,1,FALSE),"@"),"","fout-ha-comp"),"fout-ha-comp"),"") -> 
A20: =IF('DATA INPUT (VERBERGEN)'!A680="","",'DATA INPUT (VERBERGEN)'!A680) ->  | B20: ='DATA INPUT (VERBERGEN)'!A620 -> 0 | I20: =IF(A20<>"",IFERROR(IF(TEXT(A20,"@")=TEXT(VLOOKUP(A37,'BEHEER (VERBERGEN)'!$C$27:$C$36,1,FALSE),"@"),"","fout-ha-comp"),"fout-ha-comp"),"") -> 
A21: =IF('DATA INPUT (VERBERGEN)'!A681="","",'DATA INPUT (VERBERGEN)'!A681) ->  | B21: ='DATA INPUT (VERBERGEN)'!A621 -> 0 | I21: =IF(A21<>"",IFERROR(IF(TEXT(A21,"@")=TEXT(VLOOKUP(A38,'BEHEER (VERBERGEN)'!$C$27:$C$36,1,FALSE),"@"),"","fout-ha-comp"),"fout-ha-comp"),"") -> 
B22: ='DATA INPUT (VERBERGEN)'!A622 -> 0 | I22: =IF(A22<>"",IFERROR(IF(TEXT(A22,"@")=TEXT(VLOOKUP(A39,'BEHEER (VERBERGEN)'!$C$27:$C$36,1,FALSE),"@"),"","fout-ha-comp"),"fout-ha-comp"),"") -> 
A23: =IF('DATA INPUT (VERBERGEN)'!A683="","",'DATA INPUT (VERBERGEN)'!A683) ->  | B23: ='DATA INPUT (VERBERGEN)'!A623 -> 0 | I23: =IF(A23<>"",IFERROR(IF(TEXT(A23,"@")=TEXT(VLOOKUP(A40,'BEHEER (VERBERGEN)'!$C$27:$C$36,1,FALSE),"@"),"","fout-ha-comp"),"fout-ha-comp"),"") -> 
A24: =IF('DATA INPUT (VERBERGEN)'!A684="","",'DATA INPUT (VERBERGEN)'!A684) ->  | B24: ='DATA INPUT (VERBERGEN)'!A624 -> 0 | I24: =IF(A24<>"",IFERROR(IF(TEXT(A24,"@")=TEXT(VLOOKUP(A41,'BEHEER (VERBERGEN)'!$C$27:$C$36,1,FALSE),"@"),"","fout-ha-comp"),"fout-ha-comp"),"") -> 
A25: =IF('DATA INPUT (VERBERGEN)'!A685="","",'DATA INPUT (VERBERGEN)'!A685) ->  | B25: ='DATA INPUT (VERBERGEN)'!A625 -> 0 | I25: =IF(A25<>"",IFERROR(IF(TEXT(A25,"@")=TEXT(VLOOKUP(A42,'BEHEER (VERBERGEN)'!$C$27:$C$36,1,FALSE),"@"),"","fout-ha-comp"),"fout-ha-comp"),"") -> 
A26: =IF('DATA INPUT (VERBERGEN)'!A686="","",'DATA INPUT (VERBERGEN)'!A686) ->  | B26: ='DATA INPUT (VERBERGEN)'!A626 -> 0 | I26: =IF(A26<>"",IFERROR(IF(TEXT(A26,"@")=TEXT(VLOOKUP(A43,'BEHEER (VERBERGEN)'!$C$27:$C$36,1,FALSE),"@"),"","fout-ha-comp"),"fout-ha-comp"),"") -> 
A27: Totaal begrote zorgkosten | B27: =SUM(B13:B26) -> 0 | D27: =SUM(D13:D26) -> 0
A29: Omschrijving | B29: =kolom1pp ->  | D29: =kolom2pp -> Begr.p.p. 2024 | F29: Verschil
A30: =IF(A13="","",A13) -> Huisarts* | B30: =IFERROR(IF(B13="","",B13/B$6),"") ->  | C30: =IF(RIGHT($A13,1)="*",B30,0) ->  | D30: =IFERROR(IF(D13="","",D13/D$6),"") ->  | E30: =IF(RIGHT($A13,1)="*",D30,0) ->  | F30: =IFERROR(IF($A30="","",(D30-B30)/B30),"") ->  | G30: =IF(RIGHT($A13,1)="*",H30,0) -> 17 | H30: 17
A31: =IF(A14="","",A14) -> Praktijkondersteuner Somatiek* | B31: =IFERROR(IF(B14="","",B14/B$6),"") ->  | F31: =IFERROR(IF($A31="","",(D31-B31)/B31),"") ->  | G31: 42.1 | H31: 42.1
A32: Diëtist | C32: 0 | E32: 0 | G32: 0 | H32: 11.9
C33: 0 | E33: 0 | G33: 0 | H33: 6.78
A34: Gedragsondersteuning SMR* | G34: 8.93 | H34: 8.93
A35: 24 uurs bloeddrukmeting | C35: 0 | D35: =IFERROR(IF(D18="","",D18/D$6),"") ->  | E35: 0 | G35: 0
C36: 0 | E36: 0 | G36: 0
C37: 0 | E37: 0 | G37: 0
C38: 0 | E38: 0 | G38: 0
C39: 0 | E39: 0 | G39: 0
C40: 0 | E40: 0 | G40: 0
C41: 0 | E41: 0 | G41: 0
C42: 0 | E42: 0 | G42: 0
C43: 0 | E43: 0 | G43: 0
A44: Totaal begrote zorgkosten per geïncludeerde patiënt | B44: =SUM(B30:B43) -> 0 | D44: =SUM(D30:D43) -> 0 | E44: =IF(D44>_xlfn.XLOOKUP($A$1,'BEHEER (VERBERGEN)'!A65:A73,'BEHEER (VERBERGEN)'!B65:B73),"*","") ->  | H44: =SUM(H30:H43) -> 86.71
A45: =IF(OR(E44="*",E47="*"),"De rode cel is hoger dan het maximum. Stel uw begroting naar beneden bij.","") -> 
A46: * = Huisartsgebonden component zorgkosten | B46: =kolom1pp ->  | D46: =kolom2pp -> Begr.p.p. 2024 | F46: Verschil | H46: CZ-kader p.p.
A47: Huisartsgebonden component | B47: =SUM(C30:C43) -> 0 | D47: =SUM(E30:E43) -> 0 | E47: =IF(D47>_xlfn.XLOOKUP($A$1,'BEHEER (VERBERGEN)'!A65:A73,'BEHEER (VERBERGEN)'!D65:D73),"*","") ->  | F47: =IFERROR(IF($A47="","",(D47-B47)/B47),"") ->  | H47: =SUM(G30:G43) -> 68.03
A48: Overige zorgverleners | B48: =B44-B47 -> 0 | D48: =D44-D47 -> 0 | F48: =IFERROR(IF($A48="","",(D48-B48)/B48),"") ->  | H48: =H44-H47 -> 18.68
A50: * = Huisartsgebonden component zorgkosten percentages | B50: =kolom1pp ->  | D50: =kolom2pp -> Begr.p.p. 2024 | H50: CZ-kader p.p.
A51: Huisartsgebonden component | B51: =IFERROR(B47/B44,"") ->  | D51: =IFERROR(D47/D44,"") ->  | H51: =IFERROR(H47/H44,"") -> 0.7845692538
A52: Overige zorgverleners | B52: =IFERROR(B48/B44,"") ->  | D52: =IFERROR(D48/D44,"") ->  | H52: =IFERROR(H48/H44,"") -> 0.2154307462
A55: Geïncludeerde patiënten | B55: =kolom1pp ->  | D55: =kolom2pp -> Begr.p.p. 2024
A56: Zorgkosten per jaar per geïncludeerde patiënt | B56: =IFERROR(B57*4,"") -> 0 | D56: =IFERROR(D57*4,"") -> 0
A57: Zorgkosten per kwartaal per geïncludeerde patiënt | B57: =IFERROR(ROUND(B44/4,2),"") -> 0 | D57: =IFERROR(ROUND(D44/4,2),"") -> 0
A59: =IF(OR(ROUND($B$56,2)<>ROUND($B$44,2),ROUND($D$56,2)<>ROUND($D$44,2)),CONCATENATE("N.B. De zorgkosten per jaar per geïncluderde patiënt wijken mogelijk iets af van de totale begrote zorgkosten per geïncludeerde patiënt. Reden:"),"") -> 
A60: =IF(A59="","","Er wordt per kwartaal gedeclareerd, dus het kwartaalbedrag is afgerond op hele centen. Dit bedrag is met vier vermenigvuldigd om de jaarkosten te berekenen.") -> 
A62: Vergelijking voorgaande jaren | B62: Bedrag | D62: Vergelijking met | F62: Verschil
A63: =CONCATENATE("Zorgkosten per geincludeerde patiënt ",kolom1) -> Zorgkosten per geincludeerde patiënt | B63: =B56 -> 0
A64: =CONCATENATE("Zorgkosten per geincludeerde patiënt ",vergelijking1pp) -> Zorgkosten per geincludeerde patiënt
A65: =CONCATENATE("Zorgkosten per geincludeerde patiënt ",kolom2) -> Zorgkosten per geincludeerde patiënt Begroting 2024 | B65: =$D$56 -> 0 | D65: =kolom1 ->  | F65: =IFERROR((B65-B63)/B63,"") -> 
A66: =CONCATENATE("Zorgkosten per geincludeerde patiënt ",kolom2) -> Zorgkosten per geincludeerde patiënt Begroting 2024 | B66: =$D$56 -> 0 | D66: =vergelijking1pp -> 0 | F66: =IFERROR((B66-B64)/B64,"") -> 
D67: =CONCATENATE("Verschil t.o.v. ",vergelijking1pp) -> Verschil t.o.v.
A68: Per patiënt zorgkosten + O&I | B68: =kolom1pp ->  | D68: =kolom2pp -> Begr.p.p. 2024
A69: Zorgkosten + O&I-kosten per jaar per geïncludeerde patiënt | B69: =IFERROR(B56+'11611 O&I regio'!$B$68,"") ->  | D69: =IFERROR(D56+'11611 O&I regio'!B70,"") ->  | F69: t.b.v. tabblad RZ
A70: Zorgkosten + O&I-kosten per kwartaal per geïncludeerde patiënt | B70: =IFERROR(B57+'11611 O&I regio'!B72,"") -> 0 | D70: =IFERROR(D57+'11611 O&I regio'!B73,"") -> 0 | F70: =F69 -> t.b.v. tabblad RZ

Sheet VERBERGEN1 (hidden)
A1: =MID(CELL("bestandsnaam",A1),SEARCH("]",CELL("bestandsnaam",A1),1)+1,99) -> VERBERGEN1 | H1: ='11611 O&I regio'!$F$1 -> 0 | U1: Tabblad beveiligen
A2: =swv_naam -> Naam Regionale Huisartsen Organisatie: Invullen op tabblad basis. | U2: Tabblad verbergen
A3: =CONCATENATE("AGB-code: ",swv_agb) -> AGB-code: Invullen op tabblad basis. | U3: D6
A5: Aantallen (blauw = begroting nog invullen) | B5: =kolom1 ->  | D5: =kolom2 -> Begroting 2024 | F5: Verschil
A6: Aantal geïncludeerde patiënten in dit zorgprogramma (de patiënten van alle zorgverzekeraars) | B6: ='DATA INPUT (VERBERGEN)'!A706 -> 0 | F6: =IFERROR(IF($A6="","",(D6-B6)/B6),"") -> 
A7: Aantal geïncludeerde patiënten in dit zorgprogramma (alleen CZ-verzekerden) | B7: ='DATA INPUT (VERBERGEN)'!A707 -> 0 | F7: =IFERROR(IF($A7="","",(D7-B7)/B7),"") -> 
A8: Percentage CZ-verzekerden | B8: =IFERROR(B7/B6,"") ->  | D8: =IFERROR(D7/D6,"") -> 
A9: Totaal aantal ingeschreven patiënten van alle huisartsen die bij dit zorgprogramma zijn aangesloten (ook de patiënten die niet aan dit zorgprogramma deelnemen; de patiënten van alle zorgverzekeraars) | B9: ='DATA INPUT (VERBERGEN)'!A709 -> 0
A10: Prevalentie | B10: =IFERROR(B6/B9,"") ->  | D10: =IFERROR(D6/D9,"") -> 
A12: Omschrijving (blauw = begroting nog invullen) | B12: =kolom1 ->  | D12: =kolom2 -> Begroting 2024 | F12: Verschil
A13: Huisarts* | B13: ='DATA INPUT (VERBERGEN)'!A713 -> 0 | F13: =IFERROR(IF($A13="","",(D13-B13)/B13),"") ->  | H13: =IF(A13<>"",IFERROR(IF(TEXT(A13,"@")=TEXT(VLOOKUP(A30,'BEHEER (VERBERGEN)'!$C$27:$C$36,1,FALSE),"@"),"","fout-ha-comp"),"fout-ha-comp"),"") -> 
A14: Praktijkondersteuner Somatiek* | B14: ='DATA INPUT (VERBERGEN)'!A714 -> 0 | F14: =IFERROR(IF($A14="","",(D14-B14)/B14),"") ->  | H14: =IF(A14<>"",IFERROR(IF(TEXT(A14,"@")=TEXT(VLOOKUP(A31,'BEHEER (VERBERGEN)'!$C$27:$C$36,1,FALSE),"@"),"","fout-ha-comp"),"fout-ha-comp"),"") -> 
A15: =IF('DATA INPUT (VERBERGEN)'!A775="","",'DATA INPUT (VERBERGEN)'!A775) ->  | B15: ='DATA INPUT (VERBERGEN)'!A715 -> 0 | H15: =IF(A15<>"",IFERROR(IF(TEXT(A15,"@")=TEXT(VLOOKUP(A32,'BEHEER (VERBERGEN)'!$C$27:$C$36,1,FALSE),"@"),"","fout-ha-comp"),"fout-ha-comp"),"") -> 
A16: =IF('DATA INPUT (VERBERGEN)'!A776="","",'DATA INPUT (VERBERGEN)'!A776) ->  | B16: ='DATA INPUT (VERBERGEN)'!A716 -> 0 | H16: =IF(A16<>"",IFERROR(IF(TEXT(A16,"@")=TEXT(VLOOKUP(A33,'BEHEER (VERBERGEN)'!$C$27:$C$36,1,FALSE),"@"),"","fout-ha-comp"),"fout-ha-comp"),"") -> 
A17: =IF('DATA INPUT (VERBERGEN)'!A777="","",'DATA INPUT (VERBERGEN)'!A777) ->  | B17: ='DATA INPUT (VERBERGEN)'!A717 -> 0 | H17: =IF(A17<>"",IFERROR(IF(TEXT(A17,"@")=TEXT(VLOOKUP(A34,'BEHEER (VERBERGEN)'!$C$27:$C$36,1,FALSE),"@"),"","fout-ha-comp"),"fout-ha-comp"),"") -> 
A18: =IF('DATA INPUT (VERBERGEN)'!A778="","",'DATA INPUT (VERBERGEN)'!A778) ->  | B18: ='DATA INPUT (VERBERGEN)'!A718 -> 0 | H18: =IF(A18<>"",IFERROR(IF(TEXT(A18,"@")=TEXT(VLOOKUP(A35,'BEHEER (VERBERGEN)'!$C$27:$C$36,1,FALSE),"@"),"","fout-ha-comp"),"fout-ha-comp"),"") -> 
A19: =IF('DATA INPUT (VERBERGEN)'!A779="","",'DATA INPUT (VERBERGEN)'!A779) ->  | B19: ='DATA INPUT (VERBERGEN)'!A719 -> 0 | H19: =IF(A19<>"",IFERROR(IF(TEXT(A19,"@")=TEXT(VLOOKUP(A36,'BEHEER (VERBERGEN)'!$C$27:$C$36,1,FALSE),"@"),"","fout-ha-comp"),"fout-ha-comp"),"") -> 
A20: =IF('DATA INPUT (VERBERGEN)'!A780="","",'DATA INPUT (VERBERGEN)'!A780) ->  | B20: ='DATA INPUT (VERBERGEN)'!A720 -> 0 | H20: =IF(A20<>"",IFERROR(IF(TEXT(A20,"@")=TEXT(VLOOKUP(A37,'BEHEER (VERBERGEN)'!$C$27:$C$36,1,FALSE),"@"),"","fout-ha-comp"),"fout-ha-comp"),"") -> 
A21: =IF('DATA INPUT (VERBERGEN)'!A781="","",'DATA INPUT (VERBERGEN)'!A781) ->  | B21: ='DATA INPUT (VERBERGEN)'!A721 -> 0 | H21: =IF(A21<>"",IFERROR(IF(TEXT(A21,"@")=TEXT(VLOOKUP(A38,'BEHEER (VERBERGEN)'!$C$27:$C$36,1,FALSE),"@"),"","fout-ha-comp"),"fout-ha-comp"),"") -> 
A22: =IF('DATA INPUT (VERBERGEN)'!A782="","",'DATA INPUT (VERBERGEN)'!A782) ->  | B22: ='DATA INPUT (VERBERGEN)'!A722 -> 0 | H22: =IF(A22<>"",IFERROR(IF(TEXT(A22,"@")=TEXT(VLOOKUP(A39,'BEHEER (VERBERGEN)'!$C$27:$C$36,1,FALSE),"@"),"","fout-ha-comp"),"fout-ha-comp"),"") -> 
A23: =IF('DATA INPUT (VERBERGEN)'!A783="","",'DATA INPUT (VERBERGEN)'!A783) ->  | B23: ='DATA INPUT (VERBERGEN)'!A723 -> 0 | H23: =IF(A23<>"",IFERROR(IF(TEXT(A23,"@")=TEXT(VLOOKUP(A40,'BEHEER (VERBERGEN)'!$C$27:$C$36,1,FALSE),"@"),"","fout-ha-comp"),"fout-ha-comp"),"") -> 
A24: =IF('DATA INPUT (VERBERGEN)'!A784="","",'DATA INPUT (VERBERGEN)'!A784) ->  | B24: ='DATA INPUT (VERBERGEN)'!A724 -> 0 | H24: =IF(A24<>"",IFERROR(IF(TEXT(A24,"@")=TEXT(VLOOKUP(A41,'BEHEER (VERBERGEN)'!$C$27:$C$36,1,FALSE),"@"),"","fout-ha-comp"),"fout-ha-comp"),"") -> 
A25: =IF('DATA INPUT (VERBERGEN)'!A785="","",'DATA INPUT (VERBERGEN)'!A785) ->  | B25: ='DATA INPUT (VERBERGEN)'!A725 -> 0 | H25: =IF(A25<>"",IFERROR(IF(TEXT(A25,"@")=TEXT(VLOOKUP(A42,'BEHEER (VERBERGEN)'!$C$27:$C$36,1,FALSE),"@"),"","fout-ha-comp"),"fout-ha-comp"),"") -> 
A26: =IF('DATA INPUT (VERBERGEN)'!A786="","",'DATA INPUT (VERBERGEN)'!A786) ->  | B26: ='DATA INPUT (VERBERGEN)'!A726 -> 0 | H26: =IF(A26<>"",IFERROR(IF(TEXT(A26,"@")=TEXT(VLOOKUP(A43,'BEHEER (VERBERGEN)'!$C$27:$C$36,1,FALSE),"@"),"","fout-ha-comp"),"fout-ha-comp"),"") -> 
A27: Totaal begrote zorgkosten | B27: =SUM(B13:B26) -> 0 | D27: =SUM(D13:D26) -> 0
A29: Omschrijving | B29: =kolom1pp ->  | D29: =kolom2pp -> Begr.p.p. 2024 | F29: Verschil | H29: CZ-kader p.p.
A30: =IF(A13="","",A13) -> Huisarts* | B30: =IFERROR(IF(B13="","",B13/B$6),"") ->  | C30: =IF(RIGHT($A13,1)="*",B30,0) ->  | D30: =IFERROR(IF(D13="","",D13/D$6),"") ->  | E30: =IF(RIGHT($A13,1)="*",D30,0) ->  | F30: =IFERROR(IF($A30="","",(D30-B30)/B30),"") ->  | G30: =IF(RIGHT($A13,1)="*",H30,0) -> 0
A31: =IF(A14="","",A14) -> Praktijkondersteuner Somatiek* | B31: =IFERROR(IF(B14="","",B14/B$6),"") ->  | F31: =IFERROR(IF($A31="","",(D31-B31)/B31),"") ->  | G31: 0
C32: 0 | E32: 0 | G32: 0
C33: 0 | E33: 0 | G33: 0
C34: 0 | E34: 0 | G34: 0
C35: 0 | D35: =IFERROR(IF(D18="","",D18/D$6),"") ->  | E35: 0 | G35: 0
C36: 0 | E36: 0 | G36: 0
C37: 0 | E37: 0 | G37: 0
C38: 0 | E38: 0 | G38: 0
C39: 0 | E39: 0 | G39: 0
C40: 0 | E40: 0 | G40: 0
C41: 0 | E41: 0 | G41: 0
C42: 0 | E42: 0 | G42: 0
C43: 0 | E43: 0 | G43: 0
A44: Totaal begrote zorgkosten per geïncludeerde patiënt | B44: =SUM(B30:B43) -> 0 | D44: =SUM(D30:D43) -> 0 | E44: =IF(D44>_xlfn.XLOOKUP($A$1,'BEHEER (VERBERGEN)'!A65:A73,'BEHEER (VERBERGEN)'!B65:B73),"*","") ->  | H44: =SUM(H30:H43) -> 0
A45: =IF(OR(E44="*",E47="*"),"De rode cel is hoger dan het maximum. Stel uw begroting naar beneden bij.","") -> 
A46: * = Huisartsgebonden component zorgkosten | B46: =kolom1pp ->  | D46: =kolom2pp -> Begr.p.p. 2024 | F46: Verschil | H46: CZ-kader p.p.
A47: Huisartsgebonden component | B47: =SUM(C30:C43) -> 0 | D47: =SUM(E30:E43) -> 0 | E47: =IF(D47>_xlfn.XLOOKUP($A$1,'BEHEER (VERBERGEN)'!A65:A73,'BEHEER (VERBERGEN)'!D65:D73),"*","") ->  | F47: =IFERROR(IF($A47="","",(D47-B47)/B47),"") ->  | H47: =SUM(G30:G43) -> 0
A48: Overige zorgverleners | B48: =B44-B47 -> 0 | D48: =D44-D47 -> 0 | F48: =IFERROR(IF($A48="","",(D48-B48)/B48),"") ->  | H48: =H44-H47 -> 0
A50: * = Huisartsgebonden component zorgkosten percentages | B50: =kolom1pp ->  | D50: =kolom2pp -> Begr.p.p. 2024 | H50: CZ-kader p.p.
A51: Huisartsgebonden component | B51: =IFERROR(B47/B44,"") ->  | D51: =IFERROR(D47/D44,"") ->  | H51: =IFERROR(H47/H44,"") -> 
A52: Overige zorgverleners | B52: =IFERROR(B48/B44,"") ->  | D52: =IFERROR(D48/D44,"") ->  | H52: =IFERROR(H48/H44,"") -> 
A55: Geïncludeerde patiënten | B55: =kolom1pp ->  | D55: =kolom2pp -> Begr.p.p. 2024
A56: Zorgkosten per jaar per geïncludeerde patiënt | B56: =IFERROR(B57*4,"") -> 0 | D56: =IFERROR(D57*4,"") -> 0
A57: Zorgkosten per kwartaal per geïncludeerde patiënt | B57: =IFERROR(ROUND(B44/4,2),"") -> 0 | D57: =IFERROR(ROUND(D44/4,2),"") -> 0
A59: =IF(OR(ROUND($B$56,2)<>ROUND($B$44,2),ROUND($D$56,2)<>ROUND($D$44,2)),CONCATENATE("N.B. De zorgkosten per jaar per geïncluderde patiënt wijken mogelijk iets af van de totale begrote zorgkosten per geïncludeerde patiënt. Reden:"),"") -> 
A60: =IF(A59="","","Er wordt per kwartaal gedeclareerd, dus het kwartaalbedrag is afgerond op hele centen. Dit bedrag is met vier vermenigvuldigd om de jaarkosten te berekenen.") -> 
A62: Vergelijking voorgaande jaren | B62: Bedrag | D62: Vergelijking met | F62: Verschil
A63: =CONCATENATE("Zorgkosten per geincludeerde patiënt ",kolom1) -> Zorgkosten per geincludeerde patiënt | B63: =B56 -> 0
A64: =CONCATENATE("Zorgkosten per geincludeerde patiënt ",vergelijking1pp) -> Zorgkosten per geincludeerde patiënt | B64: 500
A65: =CONCATENATE("Zorgkosten per geincludeerde patiënt ",kolom2) -> Zorgkosten per geincludeerde patiënt Begroting 2024 | B65: =$D$56 -> 0 | D65: =kolom1 ->  | F65: =IFERROR((B65-B63)/B63,"") -> 
A66: =CONCATENATE("Zorgkosten per geincludeerde patiënt ",kolom2) -> Zorgkosten per geincludeerde patiënt Begroting 2024 | B66: =$D$56 -> 0 | D66: =vergelijking1pp -> 0 | F66: =IFERROR((B66-B64)/B64,"") -> -1
D67: =CONCATENATE("Verschil t.o.v. ",vergelijking1pp) -> Verschil t.o.v.
A68: Per patiënt zorgkosten + O&I | B68: =kolom1pp ->  | D68: =kolom2pp -> Begr.p.p. 2024
A69: Zorgkosten + O&I per jaar per geïncludeerde patiënt | B69: =IFERROR(B56+'11611 O&I regio'!$B$68,"") ->  | D69: =IFERROR(D56+'11611 O&I regio'!B70,"") ->  | F69: t.b.v. tabblad RZ
A70: Zorgkosten + O&I per kwartaal per geïncludeerde patiënt | B70: =IFERROR(B57+'11611 O&I regio'!B72,"") -> 0 | D70: =IFERROR(D57+'11611 O&I regio'!B73,"") -> 0 | F70: =F69 -> t.b.v. tabblad RZ

Sheet VERBERGEN2 (hidden)
A1: =MID(CELL("bestandsnaam",A1),SEARCH("]",CELL("bestandsnaam",A1),1)+1,99) -> VERBERGEN2 | H1: ='11611 O&I regio'!$F$1 -> 0 | U1: Tabblad beveiligen
A2: =swv_naam -> Naam Regionale Huisartsen Organisatie: Invullen op tabblad basis. | U2: Tabblad verbergen
A3: =CONCATENATE("AGB-code: ",swv_agb) -> AGB-code: Invullen op tabblad basis. | U3: D6
A5: Aantallen (blauw = begroting nog invullen) | B5: =kolom1 ->  | D5: =kolom2 -> Begroting 2024 | F5: Verschil
A6: Aantal geïncludeerde patiënten in dit zorgprogramma (de patiënten van alle zorgverzekeraars) | B6: ='DATA INPUT (VERBERGEN)'!A806 -> 0 | F6: =IFERROR(IF($A6="","",(D6-B6)/B6),"") -> 
A7: Aantal geïncludeerde patiënten in dit zorgprogramma (alleen CZ-verzekerden) | B7: ='DATA INPUT (VERBERGEN)'!A807 -> 0 | F7: =IFERROR(IF($A7="","",(D7-B7)/B7),"") -> 
A8: Percentage CZ-verzekerden | B8: =IFERROR(B7/B6,"") ->  | D8: =IFERROR(D7/D6,"") -> 
A9: Totaal aantal ingeschreven patiënten van alle huisartsen die bij dit zorgprogramma zijn aangesloten (ook de patiënten die niet aan dit zorgprogramma deelnemen; de patiënten van alle zorgverzekeraars) | B9: ='DATA INPUT (VERBERGEN)'!A809 -> 0
A10: Prevalentie | B10: =IFERROR(B6/B9,"") ->  | D10: =IFERROR(D6/D9,"") -> 
A12: Omschrijving (blauw = begroting nog invullen) | B12: =kolom1 ->  | D12: =kolom2 -> Begroting 2024 | F12: Verschil
A13: Huisarts* | B13: ='DATA INPUT (VERBERGEN)'!A813 -> 0 | F13: =IFERROR(IF($A13="","",(D13-B13)/B13),"") ->  | H13: =IF(A13<>"",IFERROR(IF(TEXT(A13,"@")=TEXT(VLOOKUP(A30,'BEHEER (VERBERGEN)'!$C$27:$C$36,1,FALSE),"@"),"","fout-ha-comp"),"fout-ha-comp"),"") -> 
A14: Praktijkondersteuner Somatiek* | B14: ='DATA INPUT (VERBERGEN)'!A814 -> 0 | F14: =IFERROR(IF($A14="","",(D14-B14)/B14),"") ->  | H14: =IF(A14<>"",IFERROR(IF(TEXT(A14,"@")=TEXT(VLOOKUP(A31,'BEHEER (VERBERGEN)'!$C$27:$C$36,1,FALSE),"@"),"","fout-ha-comp"),"fout-ha-comp"),"") -> 
A15: =IF('DATA INPUT (VERBERGEN)'!A875="","",'DATA INPUT (VERBERGEN)'!A875) ->  | B15: ='DATA INPUT (VERBERGEN)'!A815 -> 0 | F15: =IFERROR(IF($A15="","",(D15-B15)/B15),"") ->  | H15: =IF(A15<>"",IFERROR(IF(TEXT(A15,"@")=TEXT(VLOOKUP(A32,'BEHEER (VERBERGEN)'!$C$27:$C$36,1,FALSE),"@"),"","fout-ha-comp"),"fout-ha-comp"),"") -> 
A16: =IF('DATA INPUT (VERBERGEN)'!A876="","",'DATA INPUT (VERBERGEN)'!A876) ->  | B16: ='DATA INPUT (VERBERGEN)'!A816 -> 0 | H16: =IF(A16<>"",IFERROR(IF(TEXT(A16,"@")=TEXT(VLOOKUP(A33,'BEHEER (VERBERGEN)'!$C$27:$C$36,1,FALSE),"@"),"","fout-ha-comp"),"fout-ha-comp"),"") -> 
A17: =IF('DATA INPUT (VERBERGEN)'!A877="","",'DATA INPUT (VERBERGEN)'!A877) ->  | B17: ='DATA INPUT (VERBERGEN)'!A817 -> 0 | H17: =IF(A17<>"",IFERROR(IF(TEXT(A17,"@")=TEXT(VLOOKUP(A34,'BEHEER (VERBERGEN)'!$C$27:$C$36,1,FALSE),"@"),"","fout-ha-comp"),"fout-ha-comp"),"") -> 
A18: =IF('DATA INPUT (VERBERGEN)'!A878="","",'DATA INPUT (VERBERGEN)'!A878) ->  | B18: ='DATA INPUT (VERBERGEN)'!A818 -> 0 | H18: =IF(A18<>"",IFERROR(IF(TEXT(A18,"@")=TEXT(VLOOKUP(A35,'BEHEER (VERBERGEN)'!$C$27:$C$36,1,FALSE),"@"),"","fout-ha-comp"),"fout-ha-comp"),"") -> 
A19: =IF('DATA INPUT (VERBERGEN)'!A879="","",'DATA INPUT (VERBERGEN)'!A879) ->  | B19: ='DATA INPUT (VERBERGEN)'!A819 -> 0 | H19: =IF(A19<>"",IFERROR(IF(TEXT(A19,"@")=TEXT(VLOOKUP(A36,'BEHEER (VERBERGEN)'!$C$27:$C$36,1,FALSE),"@"),"","fout-ha-comp"),"fout-ha-comp"),"") -> 
A20: =IF('DATA INPUT (VERBERGEN)'!A880="","",'DATA INPUT (VERBERGEN)'!A880) ->  | B20: ='DATA INPUT (VERBERGEN)'!A820 -> 0 | H20: =IF(A20<>"",IFERROR(IF(TEXT(A20,"@")=TEXT(VLOOKUP(A37,'BEHEER (VERBERGEN)'!$C$27:$C$36,1,FALSE),"@"),"","fout-ha-comp"),"fout-ha-comp"),"") -> 
A21: =IF('DATA INPUT (VERBERGEN)'!A881="","",'DATA INPUT (VERBERGEN)'!A881) ->  | B21: ='DATA INPUT (VERBERGEN)'!A821 -> 0 | H21: =IF(A21<>"",IFERROR(IF(TEXT(A21,"@")=TEXT(VLOOKUP(A38,'BEHEER (VERBERGEN)'!$C$27:$C$36,1,FALSE),"@"),"","fout-ha-comp"),"fout-ha-comp"),"") -> 
A22: =IF('DATA INPUT (VERBERGEN)'!A882="","",'DATA INPUT (VERBERGEN)'!A882) ->  | B22: ='DATA INPUT (VERBERGEN)'!A822 -> 0 | H22: =IF(A22<>"",IFERROR(IF(TEXT(A22,"@")=TEXT(VLOOKUP(A39,'BEHEER (VERBERGEN)'!$C$27:$C$36,1,FALSE),"@"),"","fout-ha-comp"),"fout-ha-comp"),"") -> 
A23: =IF('DATA INPUT (VERBERGEN)'!A883="","",'DATA INPUT (VERBERGEN)'!A883) ->  | B23: ='DATA INPUT (VERBERGEN)'!A823 -> 0 | H23: =IF(A23<>"",IFERROR(IF(TEXT(A23,"@")=TEXT(VLOOKUP(A40,'BEHEER (VERBERGEN)'!$C$27:$C$36,1,FALSE),"@"),"","fout-ha-comp"),"fout-ha-comp"),"") -> 
A24: =IF('DATA INPUT (VERBERGEN)'!A884="","",'DATA INPUT (VERBERGEN)'!A884) ->  | B24: ='DATA INPUT (VERBERGEN)'!A824 -> 0 | H24: =IF(A24<>"",IFERROR(IF(TEXT(A24,"@")=TEXT(VLOOKUP(A41,'BEHEER (VERBERGEN)'!$C$27:$C$36,1,FALSE),"@"),"","fout-ha-comp"),"fout-ha-comp"),"") -> 
A25: =IF('DATA INPUT (VERBERGEN)'!A885="","",'DATA INPUT (VERBERGEN)'!A885) ->  | B25: ='DATA INPUT (VERBERGEN)'!A825 -> 0 | H25: =IF(A25<>"",IFERROR(IF(TEXT(A25,"@")=TEXT(VLOOKUP(A42,'BEHEER (VERBERGEN)'!$C$27:$C$36,1,FALSE),"@"),"","fout-ha-comp"),"fout-ha-comp"),"") -> 
A26: =IF('DATA INPUT (VERBERGEN)'!A886="","",'DATA INPUT (VERBERGEN)'!A886) ->  | B26: ='DATA INPUT (VERBERGEN)'!A826 -> 0 | H26: =IF(A26<>"",IFERROR(IF(TEXT(A26,"@")=TEXT(VLOOKUP(A43,'BEHEER (VERBERGEN)'!$C$27:$C$36,1,FALSE),"@"),"","fout-ha-comp"),"fout-ha-comp"),"") -> 
A27: Totaal begrote zorgkosten | B27: =SUM(B13:B26) -> 0 | D27: =SUM(D13:D26) -> 0
A29: Omschrijving | B29: =kolom1pp ->  | D29: =kolom2pp -> Begr.p.p. 2024 | F29: Verschil | H29: CZ-kader p.p.
A30: =IF(A13="","",A13) -> Huisarts* | B30: =IFERROR(IF(B13="","",B13/B$6),"") ->  | C30: =IF(RIGHT($A13,1)="*",B30,0) ->  | D30: =IFERROR(IF(D13="","",D13/D$6),"") ->  | E30: =IF(RIGHT($A13,1)="*",D30,0) ->  | F30: =IFERROR(IF($A30="","",(D30-B30)/B30),"") ->  | G30: =IF(RIGHT($A13,1)="*",H30,0) -> 0
A31: =IF(A14="","",A14) -> Praktijkondersteuner Somatiek* | B31: =IFERROR(IF(B14="","",B14/B$6),"") ->  | F31: =IFERROR(IF($A31="","",(D31-B31)/B31),"") ->  | G31: 0
A32: =IF(A15="","",A15) ->  | B32: =IFERROR(IF(B15="","",B15/B$6),"") ->  | C32: =IF(RIGHT($A15,1)="*",B32,0) -> 0 | E32: =IF(RIGHT($A15,1)="*",D32,0) -> 0 | G32: =IF(RIGHT($A15,1)="*",H32,0) -> 0
C33: 0 | E33: 0 | G33: 0
C34: 0 | E34: 0 | G34: 0
C35: 0 | D35: =IFERROR(IF(D18="","",D18/D$6),"") ->  | E35: 0 | G35: 0
C36: 0 | E36: 0 | G36: 0
C37: 0 | E37: 0 | G37: 0
C38: 0 | E38: 0 | G38: 0
C39: 0 | E39: 0 | G39: 0
C40: 0 | E40: 0 | G40: 0
C41: 0 | E41: 0 | G41: 0
C42: 0 | E42: 0 | G42: 0
C43: 0 | E43: 0 | G43: 0
A44: Totaal begrote zorgkosten per geïncludeerde patiënt | B44: =SUM(B30:B43) -> 0 | D44: =SUM(D30:D43) -> 0 | E44: =IF(D44>_xlfn.XLOOKUP($A$1,'BEHEER (VERBERGEN)'!A65:A73,'BEHEER (VERBERGEN)'!B65:B73),"*","") ->  | H44: =SUM(H30:H43) -> 0
A45: =IF(OR(E44="*",E47="*"),"De rode cel is hoger dan het maximum. Stel uw begroting naar beneden bij.","") -> 
A46: * = Huisartsgebonden component zorgkosten | B46: =kolom1pp ->  | D46: =kolom2pp -> Begr.p.p. 2024 | F46: Verschil | H46: CZ-kader p.p.
A47: Huisartsgebonden component | B47: =SUM(C30:C43) -> 0 | D47: =SUM(E30:E43) -> 0 | E47: =IF(D47>_xlfn.XLOOKUP($A$1,'BEHEER (VERBERGEN)'!A65:A73,'BEHEER (VERBERGEN)'!D65:D73),"*","") ->  | F47: =IFERROR(IF($A47="","",(D47-B47)/B47),"") ->  | H47: =SUM(G30:G43) -> 0
A48: Overige zorgverleners | B48: =B44-B47 -> 0 | D48: =D44-D47 -> 0 | F48: =IFERROR(IF($A48="","",(D48-B48)/B48),"") ->  | H48: =H44-H47 -> 0
A50: * = Huisartsgebonden component zorgkosten percentages | B50: =kolom1pp ->  | D50: =kolom2pp -> Begr.p.p. 2024 | H50: CZ-kader p.p.
A51: Huisartsgebonden component | B51: =IFERROR(B47/B44,"") ->  | D51: =IFERROR(D47/D44,"") ->  | H51: =IFERROR(H47/H44,"") -> 
A52: Overige zorgverleners | B52: =IFERROR(B48/B44,"") ->  | D52: =IFERROR(D48/D44,"") ->  | H52: =IFERROR(H48/H44,"") -> 
A55: Geïncludeerde patiënten | B55: =kolom1pp ->  | D55: =kolom2pp -> Begr.p.p. 2024
A56: Zorgkosten per jaar per geïncludeerde patiënt | B56: =IFERROR(B57*4,"") -> 0 | D56: =IFERROR(D57*4,"") -> 0
A57: Zorgkosten per kwartaal per geïncludeerde patiënt | B57: =IFERROR(ROUND(B44/4,2),"") -> 0 | D57: =IFERROR(ROUND(D44/4,2),"") -> 0
A59: =IF(OR(ROUND($B$56,2)<>ROUND($B$44,2),ROUND($D$56,2)<>ROUND($D$44,2)),CONCATENATE("N.B. De zorgkosten per jaar per geïncluderde patiënt wijken mogelijk iets af van de totale begrote zorgkosten per geïncludeerde patiënt. Reden:"),"") -> 
A60: =IF(A59="","","Er wordt per kwartaal gedeclareerd, dus het kwartaalbedrag is afgerond op hele centen. Dit bedrag is met vier vermenigvuldigd om de jaarkosten te berekenen.") -> 
A62: Vergelijking voorgaande jaren | B62: Bedrag | D62: Vergelijking met | F62: Verschil
A63: =CONCATENATE("Zorgkosten per geincludeerde patiënt ",kolom1) -> Zorgkosten per geincludeerde patiënt | B63: =B56 -> 0
A64: =CONCATENATE("Zorgkosten per geincludeerde patiënt ",vergelijking1pp) -> Zorgkosten per geincludeerde patiënt | B64: 180
A65: =CONCATENATE("Zorgkosten per geincludeerde patiënt ",kolom2) -> Zorgkosten per geincludeerde patiënt Begroting 2024 | B65: =$D$56 -> 0 | D65: =kolom1 ->  | F65: =IFERROR((B65-B63)/B63,"") -> 
A66: =CONCATENATE("Zorgkosten per geincludeerde patiënt ",kolom2) -> Zorgkosten per geincludeerde patiënt Begroting 2024 | B66: =$D$56 -> 0 | D66: =vergelijking1pp -> 0 | F66: =IFERROR((B66-B64)/B64,"") -> -1
D67: =CONCATENATE("Verschil t.o.v. ",vergelijking1pp) -> Verschil t.o.v.
A68: Per patiënt zorgkosten + O&I | B68: =kolom1pp ->  | D68: =kolom2pp -> Begr.p.p. 2024
A69: Zorgkosten + O&I per jaar per geïncludeerde patiënt | B69: =IFERROR(B56+'11611 O&I regio'!$B$68,"") ->  | D69: =IFERROR(D56+'11611 O&I regio'!B70,"") ->  | F69: t.b.v. tabblad RZ
A70: Zorgkosten + O&I per kwartaal per geïncludeerde patiënt | B70: =IFERROR(B57+'11611 O&I regio'!B72,"") -> 0 | D70: =IFERROR(D57+'11611 O&I regio'!B73,"") -> 0 | F70: =F69 -> t.b.v. tabblad RZ

Sheet VERBERGEN3 (hidden)
A1: =MID(CELL("bestandsnaam",A1),SEARCH("]",CELL("bestandsnaam",A1),1)+1,99) -> VERBERGEN3 | H1: ='11611 O&I regio'!$F$1 -> 0 | U1: Tabblad beveiligen
A2: =swv_naam -> Naam Regionale Huisartsen Organisatie: Invullen op tabblad basis. | U2: Tabblad verbergen
A3: =CONCATENATE("AGB-code: ",swv_agb) -> AGB-code: Invullen op tabblad basis. | U3: D6
A5: Aantallen (blauw = begroting nog invullen) | B5: =kolom1 ->  | D5: =kolom2 -> Begroting 2024 | F5: Verschil
A6: Aantal geïncludeerde patiënten in dit zorgprogramma (de patiënten van alle zorgverzekeraars) | B6: ='DATA INPUT (VERBERGEN)'!A906 -> 0 | F6: =IFERROR(IF($A6="","",(D6-B6)/B6),"") -> 
A7: Aantal geïncludeerde patiënten in dit zorgprogramma (alleen CZ-verzekerden) | B7: ='DATA INPUT (VERBERGEN)'!A907 -> 0 | F7: =IFERROR(IF($A7="","",(D7-B7)/B7),"") -> 
A8: Percentage CZ-verzekerden | B8: =IFERROR(B7/B6,"") ->  | D8: =IFERROR(D7/D6,"") -> 
A9: Totaal aantal ingeschreven patiënten van alle huisartsen die bij dit zorgprogramma zijn aangesloten (ook de patiënten die niet aan dit zorgprogramma deelnemen; de patiënten van alle zorgverzekeraars) | B9: ='DATA INPUT (VERBERGEN)'!A909 -> 0
A10: Prevalentie | B10: =IFERROR(B6/B9,"") ->  | D10: =IFERROR(D6/D9,"") -> 
A12: Omschrijving (blauw = begroting nog invullen) | B12: =kolom1 ->  | D12: =kolom2 -> Begroting 2024 | F12: Verschil
A13: Huisarts* | B13: ='DATA INPUT (VERBERGEN)'!A913 -> 0 | F13: =IFERROR(IF($A13="","",(D13-B13)/B13),"") ->  | H13: =IF(A13<>"",IFERROR(IF(TEXT(A13,"@")=TEXT(VLOOKUP(A30,'BEHEER (VERBERGEN)'!$C$27:$C$36,1,FALSE),"@"),"","fout-ha-comp"),"fout-ha-comp"),"") -> 
A14: Praktijkondersteuner Somatiek* | B14: ='DATA INPUT (VERBERGEN)'!A914 -> 0 | F14: =IFERROR(IF($A14="","",(D14-B14)/B14),"") ->  | H14: =IF(A14<>"",IFERROR(IF(TEXT(A14,"@")=TEXT(VLOOKUP(A31,'BEHEER (VERBERGEN)'!$C$27:$C$36,1,FALSE),"@"),"","fout-ha-comp"),"fout-ha-comp"),"") -> 
A15: =IF('DATA INPUT (VERBERGEN)'!A975="","",'DATA INPUT (VERBERGEN)'!A975) ->  | B15: ='DATA INPUT (VERBERGEN)'!A915 -> 0 | H15: =IF(A15<>"",IFERROR(IF(TEXT(A15,"@")=TEXT(VLOOKUP(A32,'BEHEER (VERBERGEN)'!$C$27:$C$36,1,FALSE),"@"),"","fout-ha-comp"),"fout-ha-comp"),"") -> 
A16: =IF('DATA INPUT (VERBERGEN)'!A976="","",'DATA INPUT (VERBERGEN)'!A976) ->  | B16: ='DATA INPUT (VERBERGEN)'!A916 -> 0 | H16: =IF(A16<>"",IFERROR(IF(TEXT(A16,"@")=TEXT(VLOOKUP(A33,'BEHEER (VERBERGEN)'!$C$27:$C$36,1,FALSE),"@"),"","fout-ha-comp"),"fout-ha-comp"),"") -> 
A17: =IF('DATA INPUT (VERBERGEN)'!A977="","",'DATA INPUT (VERBERGEN)'!A977) ->  | B17: ='DATA INPUT (VERBERGEN)'!A917 -> 0 | H17: =IF(A17<>"",IFERROR(IF(TEXT(A17,"@")=TEXT(VLOOKUP(A34,'BEHEER (VERBERGEN)'!$C$27:$C$36,1,FALSE),"@"),"","fout-ha-comp"),"fout-ha-comp"),"") -> 
A18: =IF('DATA INPUT (VERBERGEN)'!A978="","",'DATA INPUT (VERBERGEN)'!A978) ->  | B18: ='DATA INPUT (VERBERGEN)'!A918 -> 0 | H18: =IF(A18<>"",IFERROR(IF(TEXT(A18,"@")=TEXT(VLOOKUP(A35,'BEHEER (VERBERGEN)'!$C$27:$C$36,1,FALSE),"@"),"","fout-ha-comp"),"fout-ha-comp"),"") -> 
A19: =IF('DATA INPUT (VERBERGEN)'!A979="","",'DATA INPUT (VERBERGEN)'!A979) ->  | B19: ='DATA INPUT (VERBERGEN)'!A919 -> 0 | H19: =IF(A19<>"",IFERROR(IF(TEXT(A19,"@")=TEXT(VLOOKUP(A36,'BEHEER (VERBERGEN)'!$C$27:$C$36,1,FALSE),"@"),"","fout-ha-comp"),"fout-ha-comp"),"") -> 
A20: =IF('DATA INPUT (VERBERGEN)'!A980="","",'DATA INPUT (VERBERGEN)'!A980) ->  | B20: ='DATA INPUT (VERBERGEN)'!A920 -> 0 | H20: =IF(A20<>"",IFERROR(IF(TEXT(A20,"@")=TEXT(VLOOKUP(A37,'BEHEER (VERBERGEN)'!$C$27:$C$36,1,FALSE),"@"),"","fout-ha-comp"),"fout-ha-comp"),"") -> 
A21: =IF('DATA INPUT (VERBERGEN)'!A981="","",'DATA INPUT (VERBERGEN)'!A981) ->  | B21: ='DATA INPUT (VERBERGEN)'!A921 -> 0 | H21: =IF(A21<>"",IFERROR(IF(TEXT(A21,"@")=TEXT(VLOOKUP(A38,'BEHEER (VERBERGEN)'!$C$27:$C$36,1,FALSE),"@"),"","fout-ha-comp"),"fout-ha-comp"),"") -> 
A22: =IF('DATA INPUT (VERBERGEN)'!A982="","",'DATA INPUT (VERBERGEN)'!A982) ->  | B22: ='DATA INPUT (VERBERGEN)'!A922 -> 0 | H22: =IF(A22<>"",IFERROR(IF(TEXT(A22,"@")=TEXT(VLOOKUP(A39,'BEHEER (VERBERGEN)'!$C$27:$C$36,1,FALSE),"@"),"","fout-ha-comp"),"fout-ha-comp"),"") -> 
A23: =IF('DATA INPUT (VERBERGEN)'!A983="","",'DATA INPUT (VERBERGEN)'!A983) ->  | B23: ='DATA INPUT (VERBERGEN)'!A923 -> 0 | H23: =IF(A23<>"",IFERROR(IF(TEXT(A23,"@")=TEXT(VLOOKUP(A40,'BEHEER (VERBERGEN)'!$C$27:$C$36,1,FALSE),"@"),"","fout-ha-comp"),"fout-ha-comp"),"") -> 
A24: =IF('DATA INPUT (VERBERGEN)'!A984="","",'DATA INPUT (VERBERGEN)'!A984) ->  | B24: ='DATA INPUT (VERBERGEN)'!A924 -> 0 | H24: =IF(A24<>"",IFERROR(IF(TEXT(A24,"@")=TEXT(VLOOKUP(A41,'BEHEER (VERBERGEN)'!$C$27:$C$36,1,FALSE),"@"),"","fout-ha-comp"),"fout-ha-comp"),"") -> 
A25: =IF('DATA INPUT (VERBERGEN)'!A985="","",'DATA INPUT (VERBERGEN)'!A985) ->  | B25: ='DATA INPUT (VERBERGEN)'!A925 -> 0 | H25: =IF(A25<>"",IFERROR(IF(TEXT(A25,"@")=TEXT(VLOOKUP(A42,'BEHEER (VERBERGEN)'!$C$27:$C$36,1,FALSE),"@"),"","fout-ha-comp"),"fout-ha-comp"),"") -> 
A26: =IF('DATA INPUT (VERBERGEN)'!A986="","",'DATA INPUT (VERBERGEN)'!A986) ->  | B26: ='DATA INPUT (VERBERGEN)'!A926 -> 0 | H26: =IF(A26<>"",IFERROR(IF(TEXT(A26,"@")=TEXT(VLOOKUP(A43,'BEHEER (VERBERGEN)'!$C$27:$C$36,1,FALSE),"@"),"","fout-ha-comp"),"fout-ha-comp"),"") -> 
A27: Totaal begrote zorgkosten | B27: =SUM(B13:B26) -> 0 | D27: =SUM(D13:D26) -> 0
A29: Omschrijving | B29: =kolom1pp ->  | D29: =kolom2pp -> Begr.p.p. 2024 | F29: Verschil | H29: CZ-kader p.p.
A30: =IF(A13="","",A13) -> Huisarts* | B30: =IFERROR(IF(B13="","",B13/B$6),"") ->  | C30: =IF(RIGHT($A13,1)="*",B30,0) ->  | D30: =IFERROR(IF(D13="","",D13/D$6),"") ->  | E30: =IF(RIGHT($A13,1)="*",D30,0) ->  | F30: =IFERROR(IF($A30="","",(D30-B30)/B30),"") ->  | G30: =IF(RIGHT($A13,1)="*",H30,0) -> 0
A31: =IF(A14="","",A14) -> Praktijkondersteuner Somatiek* | B31: =IFERROR(IF(B14="","",B14/B$6),"") ->  | F31: =IFERROR(IF($A31="","",(D31-B31)/B31),"") ->  | G31: 0
C32: 0 | E32: 0 | G32: 0
C33: 0 | E33: 0 | G33: 0
C34: 0 | E34: 0 | G34: 0
C35: 0 | D35: =IFERROR(IF(D18="","",D18/D$6),"") ->  | E35: 0 | G35: 0
C36: 0 | E36: 0 | G36: 0
C37: 0 | E37: 0 | G37: 0
C38: 0 | E38: 0 | G38: 0
C39: 0 | E39: 0 | G39: 0
C40: 0 | E40: 0 | G40: 0
C41: 0 | E41: 0 | G41: 0
C42: 0 | E42: 0 | G42: 0
C43: 0 | E43: 0 | G43: 0
A44: Totaal begrote zorgkosten per geïncludeerde patiënt | B44: =SUM(B30:B43) -> 0 | D44: =SUM(D30:D43) -> 0 | E44: =IF(D44>_xlfn.XLOOKUP($A$1,'BEHEER (VERBERGEN)'!A65:A73,'BEHEER (VERBERGEN)'!B65:B73),"*","") ->  | H44: =SUM(H30:H43) -> 0
A45: =IF(OR(E44="*",E47="*"),"De rode cel is hoger dan het maximum. Stel uw begroting naar beneden bij.","") -> 
A46: * = Huisartsgebonden component zorgkosten | B46: =kolom1pp ->  | D46: =kolom2pp -> Begr.p.p. 2024 | F46: Verschil | H46: CZ-kader p.p.
A47: Huisartsgebonden component | B47: =SUM(C30:C43) -> 0 | D47: =SUM(E30:E43) -> 0 | E47: =IF(D47>_xlfn.XLOOKUP($A$1,'BEHEER (VERBERGEN)'!A65:A73,'BEHEER (VERBERGEN)'!D65:D73),"*","") ->  | F47: =IFERROR(IF($A47="","",(D47-B47)/B47),"") ->  | H47: =SUM(G30:G43) -> 0
A48: Overige zorgverleners | B48: =B44-B47 -> 0 | D48: =D44-D47 -> 0 | F48: =IFERROR(IF($A48="","",(D48-B48)/B48),"") ->  | H48: =H44-H47 -> 0
A50: * = Huisartsgebonden component zorgkosten percentages | B50: =kolom1pp ->  | D50: =kolom2pp -> Begr.p.p. 2024 | H50: CZ-kader p.p.
A51: Huisartsgebonden component | B51: =IFERROR(B47/B44,"") ->  | D51: =IFERROR(D47/D44,"") ->  | H51: =IFERROR(H47/H44,"") -> 
A52: Overige zorgverleners | B52: =IFERROR(B48/B44,"") ->  | D52: =IFERROR(D48/D44,"") ->  | H52: =IFERROR(H48/H44,"") -> 
A55: Geïncludeerde patiënten | B55: =kolom1pp ->  | D55: =kolom2pp -> Begr.p.p. 2024
A56: Zorgkosten per jaar per geïncludeerde patiënt | B56: =IFERROR(B57*4,"") -> 0 | D56: =IFERROR(D57*4,"") -> 0
A57: Zorgkosten per kwartaal per geïncludeerde patiënt | B57: =IFERROR(ROUND(B44/4,2),"") -> 0 | D57: =IFERROR(ROUND(D44/4,2),"") -> 0
A59: =IF(OR(ROUND($B$56,2)<>ROUND($B$44,2),ROUND($D$56,2)<>ROUND($D$44,2)),CONCATENATE("N.B. De zorgkosten per jaar per geïncluderde patiënt wijken mogelijk iets af van de totale begrote zorgkosten per geïncludeerde patiënt. Reden:"),"") -> 
A60: =IF(A59="","","Er wordt per kwartaal gedeclareerd, dus het kwartaalbedrag is afgerond op hele centen. Dit bedrag is met vier vermenigvuldigd om de jaarkosten te berekenen.") -> 
A62: Vergelijking voorgaande jaren | B62: Bedrag | D62: Vergelijking met | F62: Verschil
A63: =CONCATENATE("Zorgkosten per geincludeerde patiënt ",kolom1) -> Zorgkosten per geincludeerde patiënt | B63: =B56 -> 0
A64: =CONCATENATE("Zorgkosten per geincludeerde patiënt ",vergelijking1pp) -> Zorgkosten per geincludeerde patiënt | B64: 180
A65: =CONCATENATE("Zorgkosten per geincludeerde patiënt ",kolom2) -> Zorgkosten per geincludeerde patiënt Begroting 2024 | B65: =$D$56 -> 0 | D65: =kolom1 ->  | F65: =IFERROR((B65-B63)/B63,"") -> 
A66: =CONCATENATE("Zorgkosten per geincludeerde patiënt ",kolom2) -> Zorgkosten per geincludeerde patiënt Begroting 2024 | B66: =$D$56 -> 0 | D66: =vergelijking1pp -> 0 | F66: =IFERROR((B66-B64)/B64,"") -> -1
D67: =CONCATENATE("Verschil t.o.v. ",vergelijking1pp) -> Verschil t.o.v.
A68: Per patiënt zorgkosten + O&I | B68: =kolom1pp ->  | D68: =kolom2pp -> Begr.p.p. 2024
A69: Zorgkosten + O&I per jaar per geïncludeerde patiënt | B69: =IFERROR(B56+'11611 O&I regio'!$B$68,"") ->  | D69: =IFERROR(D56+'11611 O&I regio'!B70,"") ->  | F69: t.b.v. tabblad RZ
A70: Zorgkosten + O&I per kwartaal per geïncludeerde patiënt | B70: =IFERROR(B57+'11611 O&I regio'!B72,"") -> 0 | D70: =IFERROR(D57+'11611 O&I regio'!B73,"") -> 0 | F70: =F69 -> t.b.v. tabblad RZ

Sheet RZ (hidden)
A1: Deel I: Individueel Deel | D1: DEZE KOLOM VERBERGEN | E1: DEZE KOLOM VERBERGEN | U1: Tabblad beveiligen
A2: Naam | B2: =swv_naam -> Naam Regionale Huisartsen Organisatie: Invullen op tabblad basis. | U2: Tabblad verbergen
A3: AGB | B3: =swv_agb -> Invullen op tabblad basis. | D3: Oranje cellen handmatig invullen. (Vervolgens worden ze vanzelf wit, want dan hoeven ze niet meer op te vallen.) | U3: B16
A4: Overeenkomstnummer | B4: 1.53.100 | D4: Volgt pas na juni. Mogelijk blijft het: 1.53.100
A5: Looptijd van Deel I | B5: 01-01-2024 t/m 31-12-2025 | D5: Zorg handmatig invoeren.
D6: JA: Dit is een keuzeveld, als het begint met JA, dan worden niet-gebruikte delen voor RZ zwart gemaakt.
A7: Placeholders getoond in deel I
A8: OVK Deel I Bijlage O&I regio | B8: =IF(AND(D8<>"",D8<>0,RIGHT(D8,19)<>"niet gecontracteerd"),"ja","nee") -> nee | D8: =CONCATENATE($B$104," ",$B$105) -> O&I regio niet gecontracteerd
A9: OVK Deel I Bijlage DM2 | B9: nee | D9: =CONCATENATE($B$204," ",$B$205) -> DM2 ex.O&I niet gecontracteerd
A10: OVK Deel I Bijlage COPD | B10: nee | D10: =CONCATENATE($B$304," ",$B$305) -> COPD ex.O&I niet gecontracteerd
A11: OVK Deel I Bijlage ASTMA | B11: nee | D11: =CONCATENATE($B$404," ",$B$405) -> ASTMA ex.O&I niet gecontracteerd
A12: OVK Deel I Bijlage VRM (HVZ en VVR) | B12: nee | D12: =CONCATENATE($B$504," ",$B$505) -> VRM (HVZ en VVR) ex.O&I niet gecontracteerd
A13: OVK Deel I Bijlage VRM (HVZ) | B13: nee | D13: =CONCATENATE($B$604," ",$B$605) -> VRM (HVZ) ex.O&I niet gecontracteerd
A14: OVK Deel I Bijlage VRM (VVR) | B14: nee | D14: =CONCATENATE($B$704," ",$B$705) -> VRM (VVR) ex.O&I niet gecontracteerd
A15: OVK Deel I Bijlage Segment 3 programmatische multidisciplinaire (eerstelijns)zorg | B15: =IF(B804="Segment 3","ja","nee") -> nee | D15: Wordt ja als in dit tabblad Segment 3 is ingevuld | E15: verbergen
A16: OVK Deel I Bijlage Zorgaanbiederspecifieke bepalingen | D16: Zorg handmatig invoeren ja of nee | E16: verbergen
A17: OVK Deel I Bijlage GEZ | B17: =IF(B904="GEZ","ja","nee") -> nee | D17: Wordt ja als in dit tabblad GEZ is ingevuld. | E17: verbergen
E18: verbergen
E19: verbergen
E20: verbergen
E21: verbergen
E22: verbergen
E23: verbergen
E24: verbergen
E25: verbergen
E26: verbergen
E27: verbergen
E28: verbergen
E29: verbergen
E30: verbergen
E31: verbergen
E32: verbergen
E33: verbergen
E34: verbergen
E35: verbergen
E36: verbergen
E37: verbergen
E38: verbergen
E39: verbergen
E40: verbergen
E41: verbergen
E42: verbergen
E43: verbergen
E44: verbergen
E45: verbergen
E46: verbergen
E47: verbergen
E48: verbergen
E49: verbergen
E50: verbergen
E51: verbergen
E52: verbergen
E53: verbergen
E54: verbergen
E55: verbergen
E56: verbergen
E57: verbergen
E58: verbergen
E59: verbergen
E60: verbergen
E61: verbergen
E62: verbergen
E63: verbergen
E64: verbergen
E65: verbergen
E66: verbergen
E67: verbergen
E68: verbergen
E69: verbergen
E70: verbergen
E71: verbergen
E72: verbergen
E73: verbergen
E74: verbergen
E75: verbergen
E76: verbergen
E77: verbergen
E78: verbergen
E79: verbergen
E80: verbergen
E81: verbergen
E82: verbergen
E83: verbergen
E84: verbergen
E85: verbergen
E86: verbergen
E87: verbergen
E88: verbergen
E89: verbergen
E90: verbergen
E91: verbergen
E92: verbergen
E93: verbergen
E94: verbergen
E95: verbergen
E96: verbergen
E97: verbergen
E98: verbergen
D99: einde pagina
A101: =CONCATENATE("Overeenkomstgegevens ",B104) -> Overeenkomstgegevens O&I regio | B101: =IF(AND(B104<>"",B105="niet gecontracteerd"),"VERDER SCROLLEN","") -> VERDER SCROLLEN
A102: Naam | B102: =swv_naam -> Naam Regionale Huisartsen Organisatie: Invullen op tabblad basis.
A103: AGB | B103: =swv_agb -> Invullen op tabblad basis.
A104: Bijlage | B104: =RIGHT(D109,LEN(D109)-6) -> O&I regio
A105: Overeenkomstnummer | B105: =IF(OR(RIGHT(D110,6)="***",RIGHT(D114,6)="gevuld"),IFERROR(VLOOKUP(B104,'BEHEER (VERBERGEN)'!$B$39:$C$59,2,FALSE),"niet gecontracteerd"),"niet gecontracteerd") -> niet gecontracteerd
E107: verbergen
A108: =CONCATENATE("Tarief per geïncludeerde verzekerde ","n.v.t."," O&I Regio") -> Tarief per geïncludeerde verzekerde n.v.t. O&I Regio | E108: verbergen
A109: Verrichtingscode | B109: =IF(RIGHT(D110,4)<>"leeg",LEFT(D109,5),"") -> 11611 | D109: ='11611 O&I regio'!A1 -> 11611 O&I regio | E109: verbergen
A110: Kwartaaltarief | B110: ='11611 O&I regio'!B50 ->  | D110: =IF(AND(INDIRECT(CONCATENATE("'",D109,"'!B6"))="",INDIRECT(CONCATENATE("'",D109,"'!B46"))=""),CONCATENATE(D109," leeg"),CONCATENATE(D109," gevuld")) -> 11611 O&I regio gevuld | E110: verbergen
E111: verbergen
A112: =CONCATENATE("Tarief per ingeschreven verzekerde ",begroting_jaar," O&I Regio") -> Tarief per ingeschreven verzekerde 2024 O&I Regio
A113: Verrichtingscode | B113: =IF(RIGHT(D114,4)<>"leeg",LEFT(D113,5),"") ->  | D113: =D109 -> 11611 O&I regio
A114: Kwartaaltarief | B114: ='11611 O&I regio'!D50 ->  | D114: =IF(OR(INDIRECT(CONCATENATE("'",D113,"'!D6"))="",INDIRECT(CONCATENATE("'",D113,"'!D46"))=0),CONCATENATE(D113," leeg"),CONCATENATE(D113," gevuld")) -> 11611 O&I regio leeg
E116: verbergen
E117: verbergen
E118: verbergen
E119: verbergen
E120: verbergen
E121: verbergen
E122: verbergen
E123: verbergen
E124: verbergen
E125: verbergen
E126: verbergen
E127: verbergen
E128: verbergen
E129: verbergen
E130: verbergen
E131: verbergen
E132: verbergen
E133: verbergen
E134: verbergen
E135: verbergen
E136: verbergen
E137: verbergen
E138: verbergen
E139: verbergen
E140: verbergen
E141: verbergen
E142: verbergen
E143: verbergen
E144: verbergen
E145: verbergen
E146: verbergen
E147: verbergen
E148: verbergen
E149: verbergen
E150: verbergen
E151: verbergen
E152: verbergen
E153: verbergen
E154: verbergen
E155: verbergen
E156: verbergen
E157: verbergen
E158: verbergen
E159: verbergen
E160: verbergen
E161: verbergen
E162: verbergen
E163: verbergen
E164: verbergen
E165: verbergen
E166: verbergen
E167: verbergen
E168: verbergen
E169: verbergen
E170: verbergen
E171: verbergen
E172: verbergen
E173: verbergen
E174: verbergen
E175: verbergen
E176: verbergen
E177: verbergen
E178: verbergen
E179: verbergen
E180: verbergen
E181: verbergen
E182: verbergen
E183: verbergen
E184: verbergen
E185: verbergen
E186: verbergen
E187: verbergen
E188: verbergen
E189: verbergen
E190: verbergen
E191: verbergen
E192: verbergen
E193: verbergen
E194: verbergen
E195: verbergen
E196: verbergen
E197: verbergen
E198: verbergen
D199: einde pagina
A201: =CONCATENATE("Overeenkomstgegevens ",B204,IF(B205="niet gecontracteerd"," niet gecontracteerd","")) -> Overeenkomstgegevens DM2 ex.O&I niet gecontracteerd | B201: =IF(B205="niet gecontracteerd","VERDER SCROLLEN","") -> VERDER SCROLLEN
A202: Naam | B202: =swv_naam -> Naam Regionale Huisartsen Organisatie: Invullen op tabblad basis.
A203: AGB | B203: =swv_agb -> Invullen op tabblad basis.
A204: Bijlage | B204: =RIGHT(D209,LEN(D209)-6) -> DM2 ex.O&I
... 770 more rows

Sheet DATA (VERBERGEN) (hidden)
A1: ='11611 O&I regio'!$A1 -> 11611 O&I regio | B1: =A1 -> 11611 O&I regio | D1: ='11611 O&I regio'!$A1 -> 11611 O&I regio | E1: =D1 -> 11611 O&I regio | G1: =IF('11611 O&I regio'!A1="","",'11611 O&I regio'!A1) -> 11611 O&I regio | U1: Tabblad beveiligen
A2: ='11611 O&I regio'!$A2 -> Naam Regionale Huisartsen Organisatie: Invullen op tabblad basis. | B2: =B1 -> 11611 O&I regio | D2: ='11611 O&I regio'!$A2 -> Naam Regionale Huisartsen Organisatie: Invullen op tabblad basis. | E2: =E1 -> 11611 O&I regio | G2: =IF('11611 O&I regio'!A2="","",'11611 O&I regio'!A2) -> Naam Regionale Huisartsen Organisatie: Invullen op tabblad basis. | U2: Tabblad verbergen
A3: ='11611 O&I regio'!$A3 -> AGB-code: Invullen op tabblad basis. | B3: =B2 -> 11611 O&I regio | D3: ='11611 O&I regio'!$A3 -> AGB-code: Invullen op tabblad basis. | E3: =E2 -> 11611 O&I regio | G3: =IF('11611 O&I regio'!A3="","",'11611 O&I regio'!A3) -> AGB-code: Invullen op tabblad basis. | U3: A1
B4: 11611 O&I regio | E4: 11611 O&I regio | G4: =IF('11611 O&I regio'!A4="","",'11611 O&I regio'!A4) -> 
A5: ='11611 O&I regio'!$B5 ->  | B5: 11611 O&I regio | D5: ='11611 O&I regio'!$D5 -> Begroting 2024 | E5: 11611 O&I regio | G5: =IF('11611 O&I regio'!A5="","",'11611 O&I regio'!A5) -> Aantallen
A6: ='11611 O&I regio'!$B6 -> 0 | B6: 11611 O&I regio | D6: ='11611 O&I regio'!$D6 -> 0 | E6: 11611 O&I regio | G6: =IF('11611 O&I regio'!A6="","",'11611 O&I regio'!A6) -> Totaal aantal ingeschreven patiënten van alle aangesloten huisartsen (ook de patiënten die niet aan een zorgprogramma deelnemen; de patiënten van alle zorgverzekeraars)
A7: ='11611 O&I regio'!$B7 -> 0 | B7: 11611 O&I regio | D7: ='11611 O&I regio'!$D7 -> 0 | E7: 11611 O&I regio | G7: =IF('11611 O&I regio'!A7="","",'11611 O&I regio'!A7) -> Totaal aantal ingeschreven patiënten van alle aangesloten huisartsen, alleen de CZ-verzekerden (ook de patiënten die niet aan een zorgprogramma deelnemen)
A8: ='11611 O&I regio'!$B8 ->  | B8: 11611 O&I regio | D8: ='11611 O&I regio'!$D8 ->  | E8: 11611 O&I regio | G8: =IF('11611 O&I regio'!A8="","",'11611 O&I regio'!A8) -> Percentage CZ-verzekerden
A9: ='11611 O&I regio'!$B9 -> 0 | B9: 11611 O&I regio | D9: ='11611 O&I regio'!$D9 -> 0 | E9: 11611 O&I regio | G9: =IF('11611 O&I regio'!A9="","",'11611 O&I regio'!A9) -> 
A10: ='11611 O&I regio'!$B10 ->  | B10: 11611 O&I regio | D10: ='11611 O&I regio'!$D10 -> Begroting 2024 | E10: 11611 O&I regio | G10: =IF('11611 O&I regio'!A10="","",'11611 O&I regio'!A10) -> Personeelskosten
A11: ='11611 O&I regio'!$B11 -> 0 | B11: 11611 O&I regio | D11: ='11611 O&I regio'!$D11 -> 0 | E11: 11611 O&I regio | G11: =IF('11611 O&I regio'!A11="","",'11611 O&I regio'!A11) -> Loonkosten
A12: ='11611 O&I regio'!$B12 -> 0 | B12: 11611 O&I regio | D12: ='11611 O&I regio'!$D12 -> 0 | E12: 11611 O&I regio | G12: =IF('11611 O&I regio'!A12="","",'11611 O&I regio'!A12) -> Vacatiegelden
A13: ='11611 O&I regio'!$B13 -> 0 | B13: 11611 O&I regio | D13: ='11611 O&I regio'!$D13 -> 0 | E13: 11611 O&I regio | G13: =IF('11611 O&I regio'!A13="","",'11611 O&I regio'!A13) -> Scholing
A14: ='11611 O&I regio'!$B14 -> 0 | B14: 11611 O&I regio | D14: ='11611 O&I regio'!$D14 -> 0 | E14: 11611 O&I regio | G14: =IF('11611 O&I regio'!A14="","",'11611 O&I regio'!A14) -> 
A15: ='11611 O&I regio'!$B15 -> 0 | B15: 11611 O&I regio | D15: ='11611 O&I regio'!$D15 -> 0 | E15: 11611 O&I regio | G15: =IF('11611 O&I regio'!A15="","",'11611 O&I regio'!A15) -> 
A16: ='11611 O&I regio'!$B16 -> 0 | B16: 11611 O&I regio | D16: ='11611 O&I regio'!$D16 -> 0 | E16: 11611 O&I regio | G16: =IF('11611 O&I regio'!A16="","",'11611 O&I regio'!A16) -> Totaal personeelskosten
A17: ='11611 O&I regio'!$B17 -> 0 | B17: 11611 O&I regio | D17: ='11611 O&I regio'!$D17 -> 0 | E17: 11611 O&I regio | G17: =IF('11611 O&I regio'!A17="","",'11611 O&I regio'!A17) -> 
A18: ='11611 O&I regio'!$B18 ->  | B18: 11611 O&I regio | D18: ='11611 O&I regio'!$D18 -> Begroting 2024 | E18: 11611 O&I regio | G18: =IF('11611 O&I regio'!A18="","",'11611 O&I regio'!A18) -> Huisvestingskosten
A19: ='11611 O&I regio'!$B19 -> 0 | B19: 11611 O&I regio | D19: ='11611 O&I regio'!$D19 -> 0 | E19: 11611 O&I regio | G19: =IF('11611 O&I regio'!A19="","",'11611 O&I regio'!A19) -> 
A20: ='11611 O&I regio'!$B20 -> 0 | B20: 11611 O&I regio | D20: ='11611 O&I regio'!$D20 -> 0 | E20: 11611 O&I regio | G20: =IF('11611 O&I regio'!A20="","",'11611 O&I regio'!A20) -> 
A21: ='11611 O&I regio'!$B21 -> 0 | B21: 11611 O&I regio | D21: ='11611 O&I regio'!$D21 -> 0 | E21: 11611 O&I regio | G21: =IF('11611 O&I regio'!A21="","",'11611 O&I regio'!A21) -> Totaal huisvestingskosten
A22: ='11611 O&I regio'!$B22 -> 0 | B22: 11611 O&I regio | D22: ='11611 O&I regio'!$D22 -> 0 | E22: 11611 O&I regio | G22: =IF('11611 O&I regio'!A22="","",'11611 O&I regio'!A22) -> 
A23: ='11611 O&I regio'!$B23 ->  | B23: 11611 O&I regio | D23: ='11611 O&I regio'!$D23 -> Begroting 2024 | E23: 11611 O&I regio | G23: =IF('11611 O&I regio'!A23="","",'11611 O&I regio'!A23) -> Algemene kosten
A24: ='11611 O&I regio'!$B24 -> 0 | B24: 11611 O&I regio | D24: ='11611 O&I regio'!$D24 -> 0 | E24: 11611 O&I regio | G24: =IF('11611 O&I regio'!A24="","",'11611 O&I regio'!A24) -> ICT (o.a. KIS en overige informatiesystemen)
A25: ='11611 O&I regio'!$B25 -> 0 | B25: 11611 O&I regio | D25: ='11611 O&I regio'!$D25 -> 0 | E25: 11611 O&I regio | G25: =IF('11611 O&I regio'!A25="","",'11611 O&I regio'!A25) -> Bureaukosten
A26: ='11611 O&I regio'!$B26 -> 0 | B26: 11611 O&I regio | D26: ='11611 O&I regio'!$D26 -> 0 | E26: 11611 O&I regio | G26: =IF('11611 O&I regio'!A26="","",'11611 O&I regio'!A26) -> Vergaderkosten
A27: ='11611 O&I regio'!$B27 -> 0 | B27: 11611 O&I regio | D27: ='11611 O&I regio'!$D27 -> 0 | E27: 11611 O&I regio | G27: =IF('11611 O&I regio'!A27="","",'11611 O&I regio'!A27) -> Representatiekosten
A28: ='11611 O&I regio'!$B28 -> 0 | B28: 11611 O&I regio | D28: ='11611 O&I regio'!$D28 -> 0 | E28: 11611 O&I regio | G28: =IF('11611 O&I regio'!A28="","",'11611 O&I regio'!A28) -> Administratie- en facturatiekosten
A29: ='11611 O&I regio'!$B29 -> 0 | B29: 11611 O&I regio | D29: ='11611 O&I regio'!$D29 -> 0 | E29: 11611 O&I regio | G29: =IF('11611 O&I regio'!A29="","",'11611 O&I regio'!A29) -> Accountantskosten
A30: ='11611 O&I regio'!$B30 -> 0 | B30: 11611 O&I regio | D30: ='11611 O&I regio'!$D30 -> 0 | E30: 11611 O&I regio | G30: =IF('11611 O&I regio'!A30="","",'11611 O&I regio'!A30) -> Advieskosten
A31: ='11611 O&I regio'!$B31 -> 0 | B31: 11611 O&I regio | D31: ='11611 O&I regio'!$D31 -> 0 | E31: 11611 O&I regio | G31: =IF('11611 O&I regio'!A31="","",'11611 O&I regio'!A31) -> Abonnementen en contributies
A32: ='11611 O&I regio'!$B32 -> 0 | B32: 11611 O&I regio | D32: ='11611 O&I regio'!$D32 -> 0 | E32: 11611 O&I regio | G32: =IF('11611 O&I regio'!A32="","",'11611 O&I regio'!A32) -> Verzekeringen
A33: ='11611 O&I regio'!$B33 -> 0 | B33: 11611 O&I regio | D33: ='11611 O&I regio'!$D33 -> 0 | E33: 11611 O&I regio | G33: =IF('11611 O&I regio'!A33="","",'11611 O&I regio'!A33) -> Bankkosten
A34: ='11611 O&I regio'!$B34 -> 0 | B34: 11611 O&I regio | D34: ='11611 O&I regio'!$D34 -> 0 | E34: 11611 O&I regio | G34: =IF('11611 O&I regio'!A34="","",'11611 O&I regio'!A34) -> Vennootschapsbelasting
A35: ='11611 O&I regio'!$B35 -> 0 | B35: 11611 O&I regio | D35: ='11611 O&I regio'!$D35 -> 0 | E35: 11611 O&I regio | G35: =IF('11611 O&I regio'!A35="","",'11611 O&I regio'!A35) -> Patiënttevredenheidsonderzoek
A36: ='11611 O&I regio'!$B36 -> 0 | B36: 11611 O&I regio | D36: ='11611 O&I regio'!$D36 -> 0 | E36: 11611 O&I regio | G36: =IF('11611 O&I regio'!A36="","",'11611 O&I regio'!A36) -> Overig
A37: ='11611 O&I regio'!$B37 -> 0 | B37: 11611 O&I regio | D37: ='11611 O&I regio'!$D37 -> 0 | E37: 11611 O&I regio | G37: =IF('11611 O&I regio'!A37="","",'11611 O&I regio'!A37) -> 
A38: ='11611 O&I regio'!$B38 -> 0 | B38: 11611 O&I regio | D38: ='11611 O&I regio'!$D38 -> 0 | E38: 11611 O&I regio | G38: =IF('11611 O&I regio'!A38="","",'11611 O&I regio'!A38) -> Totaal algemene kosten
A39: ='11611 O&I regio'!$B39 -> 0 | B39: 11611 O&I regio | D39: ='11611 O&I regio'!$D39 -> 0 | E39: 11611 O&I regio | G39: =IF('11611 O&I regio'!A39="","",'11611 O&I regio'!A39) -> 
A40: ='11611 O&I regio'!$B40 ->  | B40: 11611 O&I regio | D40: ='11611 O&I regio'!$D40 -> Begroting 2024 | E40: 11611 O&I regio | G40: =IF('11611 O&I regio'!A40="","",'11611 O&I regio'!A40) -> Overige kosten
A41: ='11611 O&I regio'!$B41 -> 0 | B41: 11611 O&I regio | D41: ='11611 O&I regio'!$D41 -> 0 | E41: 11611 O&I regio | G41: =IF('11611 O&I regio'!A41="","",'11611 O&I regio'!A41) -> SPECIFIEKE KOSTEN
A42: ='11611 O&I regio'!$B42 -> 0 | B42: 11611 O&I regio | D42: ='11611 O&I regio'!$D42 -> 0 | E42: 11611 O&I regio | G42: =IF('11611 O&I regio'!A42="","",'11611 O&I regio'!A42) -> 
A43: ='11611 O&I regio'!$B43 -> 0 | B43: 11611 O&I regio | D43: ='11611 O&I regio'!$D43 -> 0 | E43: 11611 O&I regio | G43: =IF('11611 O&I regio'!A43="","",'11611 O&I regio'!A43) -> Totaal overige kosten
A44: ='11611 O&I regio'!$B44 -> 0 | B44: 11611 O&I regio | D44: ='11611 O&I regio'!$D44 -> 0 | E44: 11611 O&I regio | G44: =IF('11611 O&I regio'!A44="","",'11611 O&I regio'!A44) -> 
A45: ='11611 O&I regio'!$B45 ->  | B45: 11611 O&I regio | D45: ='11611 O&I regio'!$D45 -> Begroting 2024 | E45: 11611 O&I regio | G45: =IF('11611 O&I regio'!A45="","",'11611 O&I regio'!A45) -> Totaal
A46: ='11611 O&I regio'!$B46 -> 0 | B46: 11611 O&I regio | D46: ='11611 O&I regio'!$D46 -> 0 | E46: 11611 O&I regio | G46: =IF('11611 O&I regio'!A46="","",'11611 O&I regio'!A46) -> Totale O&I kosten
A47: ='11611 O&I regio'!$B47 -> 0 | B47: 11611 O&I regio | D47: ='11611 O&I regio'!$D47 -> 0 | E47: 11611 O&I regio | G47: =IF('11611 O&I regio'!A47="","",'11611 O&I regio'!A47) -> 
A48: ='11611 O&I regio'!$B48 ->  | B48: 11611 O&I regio | D48: ='11611 O&I regio'!$D48 -> Begroting 2024 | E48: 11611 O&I regio | G48: =IF('11611 O&I regio'!A48="","",'11611 O&I regio'!A48) -> Per ingeschreven verzekerde per jaar en per kwartaal
A49: ='11611 O&I regio'!$B49 ->  | B49: 11611 O&I regio | D49: ='11611 O&I regio'!$D49 ->  | E49: 11611 O&I regio | G49: =IF('11611 O&I regio'!A49="","",'11611 O&I regio'!A49) -> Per jaar per ingeschreven verzekerde
A50: ='11611 O&I regio'!$B50 ->  | B50: 11611 O&I regio | D50: ='11611 O&I regio'!$D50 ->  | E50: 11611 O&I regio | G50: =IF('11611 O&I regio'!A50="","",'11611 O&I regio'!A50) -> Per kwartaal per ingeschreven verzekerde
A51: ='11611 O&I regio'!$B51 -> 0 | B51: 11611 O&I regio | D51: ='11611 O&I regio'!$D51 -> 0 | E51: 11611 O&I regio | G51: =IF('11611 O&I regio'!A51="","",'11611 O&I regio'!A51) -> 
A52: ='11611 O&I regio'!$B52 -> 0 | B52: 11611 O&I regio | D52: ='11611 O&I regio'!$D52 -> 0 | E52: 11611 O&I regio | G52: =IF('11611 O&I regio'!A52="","",'11611 O&I regio'!A52) -> 
A53: ='11611 O&I regio'!$B53 -> 0 | B53: 11611 O&I regio | D53: ='11611 O&I regio'!$D53 -> 0 | E53: 11611 O&I regio | G53: =IF('11611 O&I regio'!A53="","",'11611 O&I regio'!A53) -> 
A54: ='11611 O&I regio'!$B54 -> 0 | B54: 11611 O&I regio | D54: ='11611 O&I regio'!$D54 -> 0 | E54: 11611 O&I regio | G54: =IF('11611 O&I regio'!A54="","",'11611 O&I regio'!A54) -> 
A55: ='11611 O&I regio'!$B55 ->  | B55: 11611 O&I regio | D55: ='11611 O&I regio'!$D55 -> Begroting 2024 | E55: 11611 O&I regio | G55: =IF('11611 O&I regio'!A55="","",'11611 O&I regio'!A55) -> Geïncludeerde patiënten
A56: ='11611 O&I regio'!$B56 -> 0 | B56: 11611 O&I regio | D56: ='11611 O&I regio'!$D56 -> 0 | E56: 11611 O&I regio | G56: =IF('11611 O&I regio'!A56="","",'11611 O&I regio'!A56) -> 11616 DM2 ex.O&I
A57: ='11611 O&I regio'!$B57 -> 0 | B57: 11611 O&I regio | D57: ='11611 O&I regio'!$D57 -> 0 | E57: 11611 O&I regio | G57: =IF('11611 O&I regio'!A57="","",'11611 O&I regio'!A57) -> 11623 COPD ex.O&I
A58: ='11611 O&I regio'!$B58 -> 0 | B58: 11611 O&I regio | D58: ='11611 O&I regio'!$D58 -> 0 | E58: 11611 O&I regio | G58: =IF('11611 O&I regio'!A58="","",'11611 O&I regio'!A58) -> 11618 ASTMA ex.O&I
A59: ='11611 O&I regio'!$B59 -> 0 | B59: 11611 O&I regio | D59: ='11611 O&I regio'!$D59 -> 0 | E59: 11611 O&I regio | G59: =IF('11611 O&I regio'!A59="","",'11611 O&I regio'!A59) -> 11617 VRM (HVZ en VVR) ex.O&I
A60: ='11611 O&I regio'!$B60 -> 0 | B60: 11611 O&I regio | D60: ='11611 O&I regio'!$D60 -> 0 | E60: 11611 O&I regio | G60: =IF('11611 O&I regio'!A60="","",'11611 O&I regio'!A60) -> 11614 VRM (HVZ) ex.O&I
A61: ='11611 O&I regio'!$B61 -> 0 | B61: 11611 O&I regio | D61: ='11611 O&I regio'!$D61 -> 0 | E61: 11611 O&I regio | G61: =IF('11611 O&I regio'!A61="","",'11611 O&I regio'!A61) -> 11615 VRM (VVR) ex.O&I
A62: ='11611 O&I regio'!$B62 -> 0 | B62: 11611 O&I regio | D62: ='11611 O&I regio'!$D62 -> 0 | E62: 11611 O&I regio | G62: =IF('11611 O&I regio'!A62="","",'11611 O&I regio'!A62) -> VERBERGEN1
A63: ='11611 O&I regio'!$B63 -> 0 | B63: 11611 O&I regio | D63: ='11611 O&I regio'!$D63 -> 0 | E63: 11611 O&I regio | G63: =IF('11611 O&I regio'!A63="","",'11611 O&I regio'!A63) -> VERBERGEN2
A64: ='11611 O&I regio'!$B64 -> 0 | B64: 11611 O&I regio | D64: ='11611 O&I regio'!$D64 -> 0 | E64: 11611 O&I regio | G64: =IF('11611 O&I regio'!A64="","",'11611 O&I regio'!A64) -> VERBERGEN3
A65: ='11611 O&I regio'!$B65 -> 0 | B65: 11611 O&I regio | D65: ='11611 O&I regio'!$D65 -> 0 | E65: 11611 O&I regio | G65: =IF('11611 O&I regio'!A65="","",'11611 O&I regio'!A65) -> Totaal
A66: ='11611 O&I regio'!$B66 -> 0 | B66: 11611 O&I regio | D66: ='11611 O&I regio'!$D66 -> 0 | E66: 11611 O&I regio | G66: =IF('11611 O&I regio'!A66="","",'11611 O&I regio'!A66) -> 
A67: ='11611 O&I regio'!$B67 -> Bedrag | B67: =B66 -> 11611 O&I regio | D67: ='11611 O&I regio'!$F67 -> Verschil | E67: =E66 -> 11611 O&I regio | G67: =IF('11611 O&I regio'!A67="","",'11611 O&I regio'!A67) -> Per geïncludeerde patiënt en vergelijking voorgaande jaren
A68: ='11611 O&I regio'!$B69 -> 0 | B68: 11611 O&I regio | D68: ='11611 O&I regio'!$D68 -> 0 | E68: 11611 O&I regio | G68: =IF('11611 O&I regio'!A69="","",'11611 O&I regio'!A69) -> Kosten O&I per geincludeerde patiënt per jaar
A69: ='11611 O&I regio'!#REF! ->  | B69: 11611 O&I regio | D69: ='11611 O&I regio'!#REF! ->  | E69: 11611 O&I regio | G69: =IF('11611 O&I regio'!#REF!="","",'11611 O&I regio'!#REF!) -> 
A70: ='11611 O&I regio'!$B68 ->  | B70: 11611 O&I regio | D70: ='11611 O&I regio'!$F69 -> 0 | E70: 11611 O&I regio | G70: =IF('11611 O&I regio'!A68="","",'11611 O&I regio'!A68) -> Kosten O&I per geincludeerde patiënt per jaar
A71: ='11611 O&I regio'!$B70 ->  | B71: 11611 O&I regio | D71: ='11611 O&I regio'!$D70 ->  | E71: 11611 O&I regio | G71: =IF('11611 O&I regio'!A70="","",'11611 O&I regio'!A70) -> Kosten O&I per geincludeerde patiënt per jaar Begroting 2024
A72: ='11611 O&I regio'!$B72 -> 0 | B72: 11611 O&I regio | D72: ='11611 O&I regio'!$D72 -> t.b.v tabblad RZ | E72: 11611 O&I regio | G72: =IF('11611 O&I regio'!A72="","",'11611 O&I regio'!A72) -> Kosten O&I per geincludeerde patiënt per kwartaal
A73: ='11611 O&I regio'!$B73 -> 0 | B73: 11611 O&I regio | D73: ='11611 O&I regio'!$D73 -> t.b.v tabblad RZ | E73: 11611 O&I regio | G73: =IF('11611 O&I regio'!A73="","",'11611 O&I regio'!A73) -> Kosten O&I per geincludeerde patiënt per kwartaal Begroting 2024
B74: 11611 O&I regio | E74: 11611 O&I regio | G74: =IF('11611 O&I regio'!A74="","",'11611 O&I regio'!A74) -> 
A75: ='11611 O&I regio'!$A14 ->  | B75: 11611 O&I regio | D75: ='11611 O&I regio'!$A14 ->  | E75: 11611 O&I regio | G75: =IF('11611 O&I regio'!A75="","",'11611 O&I regio'!A75) -> 
A76: ='11611 O&I regio'!$A15 ->  | B76: 11611 O&I regio | D76: ='11611 O&I regio'!$A15 ->  | E76: 11611 O&I regio | G76: =IF('11611 O&I regio'!#REF!="","",'11611 O&I regio'!#REF!) -> 
B77: 11611 O&I regio | E77: 11611 O&I regio | G77: =IF('11611 O&I regio'!A77="","",'11611 O&I regio'!A77) -> 
A78: ='11611 O&I regio'!$A19 ->  | B78: 11611 O&I regio | D78: ='11611 O&I regio'!$A19 ->  | E78: 11611 O&I regio | G78: =IF('11611 O&I regio'!A78="","",'11611 O&I regio'!A78) -> 
A79: ='11611 O&I regio'!$A20 ->  | B79: 11611 O&I regio | D79: ='11611 O&I regio'!$A20 ->  | E79: 11611 O&I regio | G79: =IF('11611 O&I regio'!A79="","",'11611 O&I regio'!A79) -> 
B80: 11611 O&I regio | E80: 11611 O&I regio | G80: =IF('11611 O&I regio'!A80="","",'11611 O&I regio'!A80) -> 
A81: ='11611 O&I regio'!$A36 -> Overig | B81: 11611 O&I regio | D81: ='11611 O&I regio'!$A36 -> Overig | E81: 11611 O&I regio | G81: =IF('11611 O&I regio'!A81="","",'11611 O&I regio'!A81) -> 
A82: ='11611 O&I regio'!$A37 -> 0 | B82: 11611 O&I regio | D82: ='11611 O&I regio'!$A37 -> 0 | E82: 11611 O&I regio | G82: =IF('11611 O&I regio'!A82="","",'11611 O&I regio'!A82) -> 
B83: 11611 O&I regio | E83: 11611 O&I regio | G83: =IF('11611 O&I regio'!A83="","",'11611 O&I regio'!A83) -> 
A84: ='11611 O&I regio'!$A41 -> SPECIFIEKE KOSTEN | B84: 11611 O&I regio | D84: ='11611 O&I regio'!$A41 -> SPECIFIEKE KOSTEN | E84: 11611 O&I regio | G84: =IF('11611 O&I regio'!A84="","",'11611 O&I regio'!A84) -> 
A85: ='11611 O&I regio'!$A42 ->  | B85: 11611 O&I regio | D85: ='11611 O&I regio'!$A42 ->  | E85: 11611 O&I regio | G85: =IF('11611 O&I regio'!A85="","",'11611 O&I regio'!A85) -> 
B86: 11611 O&I regio | E86: 11611 O&I regio | G86: =IF('11611 O&I regio'!A86="","",'11611 O&I regio'!A86) -> 
B87: 11611 O&I regio | E87: 11611 O&I regio | G87: =IF('11611 O&I regio'!A87="","",'11611 O&I regio'!A87) -> 
B88: 11611 O&I regio | E88: 11611 O&I regio | G88: =IF('11611 O&I regio'!A88="","",'11611 O&I regio'!A88) -> 
B89: 11611 O&I regio | E89: 11611 O&I regio | G89: =IF('11611 O&I regio'!A89="","",'11611 O&I regio'!A89) -> 
B90: 11611 O&I regio | E90: 11611 O&I regio | G90: =IF('11611 O&I regio'!A90="","",'11611 O&I regio'!A90) -> 
B91: 11611 O&I regio | E91: 11611 O&I regio | G91: =IF('11611 O&I regio'!A91="","",'11611 O&I regio'!A91) -> 
B92: 11611 O&I regio | E92: 11611 O&I regio | G92: =IF('11611 O&I regio'!A92="","",'11611 O&I regio'!A92) -> 
B93: 11611 O&I regio | E93: 11611 O&I regio | G93: =IF('11611 O&I regio'!A93="","",'11611 O&I regio'!A93) -> 
B94: 11611 O&I regio | E94: 11611 O&I regio | G94: =IF('11611 O&I regio'!A94="","",'11611 O&I regio'!A94) -> 
A95: =IF(BASIS!$B6="","",BASIS!$B6) ->  | B95: BASIS | D95: =IF(BASIS!$B6="","",BASIS!$B6) ->  | E95: BASIS | G95: =BASIS!A6 -> Naam
A96: =IF(BASIS!$B7="","",BASIS!$B7) ->  | B96: BASIS | D96: =IF(BASIS!$B7="","",BASIS!$B7) ->  | E96: BASIS | G96: =BASIS!A7 -> AGB-code
A97: =IF(BASIS!$B8="","",BASIS!$B8) ->  | B97: BASIS | D97: =IF(BASIS!$B8="","",BASIS!$B8) ->  | E97: BASIS | G97: =BASIS!A8 -> Naam contactpersoon
A98: =IF(BASIS!$B9="","",BASIS!$B9) ->  | B98: BASIS | D98: =IF(BASIS!$B9="","",BASIS!$B9) ->  | E98: BASIS | G98: =BASIS!A9 -> Telefoon contactpersoon
A99: =IF(BASIS!$B10="","",BASIS!$B10) ->  | B99: BASIS | D99: =IF(BASIS!$B10="","",BASIS!$B10) ->  | E99: BASIS | G99: =BASIS!A10 -> E-mail contactpersoon
A100: =IF(BASIS!$B11="","",BASIS!$B11) ->  | B100: BASIS | D100: =IF(BASIS!$B11="","",BASIS!$B11) ->  | E100: BASIS | G100: =BASIS!A11 -> Datum
A101: ='11616 DM2 ex.O&I'!$A1 -> 11616 DM2 ex.O&I | B101: =A101 -> 11616 DM2 ex.O&I | D101: ='11616 DM2 ex.O&I'!$A1 -> 11616 DM2 ex.O&I | E101: =D101 -> 11616 DM2 ex.O&I | G101: =IF('11616 DM2 ex.O&I'!A1="","",'11616 DM2 ex.O&I'!A1) -> 11616 DM2 ex.O&I
A102: ='11616 DM2 ex.O&I'!$A2 -> Naam Regionale Huisartsen Organisatie: Invullen op tabblad basis. | B102: =B101 -> 11616 DM2 ex.O&I | D102: ='11616 DM2 ex.O&I'!$A2 -> Naam Regionale Huisartsen Organisatie: Invullen op tabblad basis. | E102: =E101 -> 11616 DM2 ex.O&I | G102: =IF('11616 DM2 ex.O&I'!A2="","",'11616 DM2 ex.O&I'!A2) -> Naam Regionale Huisartsen Organisatie: Invullen op tabblad basis.
A103: ='11616 DM2 ex.O&I'!$A3 -> AGB-code: Invullen op tabblad basis. | B103: 11616 DM2 ex.O&I | D103: ='11616 DM2 ex.O&I'!$A3 -> AGB-code: Invullen op tabblad basis. | E103: 11616 DM2 ex.O&I | G103: =IF('11616 DM2 ex.O&I'!A3="","",'11616 DM2 ex.O&I'!A3) -> AGB-code: Invullen op tabblad basis.
B104: 11616 DM2 ex.O&I | E104: 11616 DM2 ex.O&I | G104: =IF('11616 DM2 ex.O&I'!A4="","",'11616 DM2 ex.O&I'!A4) -> 
A105: ='11616 DM2 ex.O&I'!$B5 ->  | B105: 11616 DM2 ex.O&I | D105: ='11616 DM2 ex.O&I'!$D5 -> Begroting 2024 | E105: 11616 DM2 ex.O&I | G105: =IF('11616 DM2 ex.O&I'!A5="","",'11616 DM2 ex.O&I'!A5) -> Aantallen (blauw = begroting nog invullen)
A106: ='11616 DM2 ex.O&I'!$B6 -> 0 | B106: 11616 DM2 ex.O&I | D106: ='11616 DM2 ex.O&I'!$D6 -> 0 | E106: 11616 DM2 ex.O&I | G106: =IF('11616 DM2 ex.O&I'!A6="","",'11616 DM2 ex.O&I'!A6) -> Aantal geïncludeerde patiënten in dit zorgprogramma (de patiënten van alle zorgverzekeraars)
A107: ='11616 DM2 ex.O&I'!$B7 -> 0 | B107: 11616 DM2 ex.O&I | D107: ='11616 DM2 ex.O&I'!$D7 -> 0 | E107: 11616 DM2 ex.O&I | G107: =IF('11616 DM2 ex.O&I'!A7="","",'11616 DM2 ex.O&I'!A7) -> Aantal geïncludeerde patiënten in dit zorgprogramma (alleen CZ-verzekerden)
A108: ='11616 DM2 ex.O&I'!$B8 ->  | B108: 11616 DM2 ex.O&I | D108: ='11616 DM2 ex.O&I'!$D8 ->  | E108: 11616 DM2 ex.O&I | G108: =IF('11616 DM2 ex.O&I'!A8="","",'11616 DM2 ex.O&I'!A8) -> Percentage CZ-verzekerden
A109: ='11616 DM2 ex.O&I'!$B9 -> 0 | B109: 11616 DM2 ex.O&I | D109: ='11616 DM2 ex.O&I'!$D9 -> 0 | E109: 11616 DM2 ex.O&I | G109: =IF('11616 DM2 ex.O&I'!A9="","",'11616 DM2 ex.O&I'!A9) -> Totaal aantal ingeschreven patiënten van alle huisartsen die bij dit zorgprogramma zijn aangesloten (ook de patiënten die niet aan dit zorgprogramma deelnemen; de patiënten van alle zorgverzekeraars)
A110: ='11616 DM2 ex.O&I'!$B10 ->  | B110: 11616 DM2 ex.O&I | D110: ='11616 DM2 ex.O&I'!$D10 ->  | E110: 11616 DM2 ex.O&I | G110: =IF('11616 DM2 ex.O&I'!A10="","",'11616 DM2 ex.O&I'!A10) -> Prevalentie
A111: ='11616 DM2 ex.O&I'!$B11 -> 0 | B111: 11616 DM2 ex.O&I | D111: ='11616 DM2 ex.O&I'!$D11 -> 0 | E111: 11616 DM2 ex.O&I | G111: =IF('11616 DM2 ex.O&I'!A11="","",'11616 DM2 ex.O&I'!A11) -> 
A112: ='11616 DM2 ex.O&I'!$B12 ->  | B112: 11616 DM2 ex.O&I | D112: ='11616 DM2 ex.O&I'!$D12 -> Begroting 2024 | E112: 11616 DM2 ex.O&I | G112: =IF('11616 DM2 ex.O&I'!A12="","",'11616 DM2 ex.O&I'!A12) -> Omschrijving (blauw = begroting nog invullen)
A113: ='11616 DM2 ex.O&I'!$B13 -> 0 | B113: 11616 DM2 ex.O&I | D113: ='11616 DM2 ex.O&I'!$D13 -> 0 | E113: 11616 DM2 ex.O&I | G113: =IF('11616 DM2 ex.O&I'!A13="","",'11616 DM2 ex.O&I'!A13) -> Huisarts*
A114: ='11616 DM2 ex.O&I'!$B14 -> 0 | B114: 11616 DM2 ex.O&I | D114: ='11616 DM2 ex.O&I'!$D14 -> 0 | E114: 11616 DM2 ex.O&I | G114: =IF('11616 DM2 ex.O&I'!A14="","",'11616 DM2 ex.O&I'!A14) -> Praktijkondersteuner Somatiek*
A115: ='11616 DM2 ex.O&I'!$B15 -> 0 | B115: 11616 DM2 ex.O&I | D115: ='11616 DM2 ex.O&I'!$D15 -> 0 | E115: 11616 DM2 ex.O&I | G115: =IF('11616 DM2 ex.O&I'!A15="","",'11616 DM2 ex.O&I'!A15) -> Gespecialiseerd verpleegkundige*
A116: ='11616 DM2 ex.O&I'!$B16 -> 0 | B116: 11616 DM2 ex.O&I | D116: ='11616 DM2 ex.O&I'!$D16 -> 0 | E116: 11616 DM2 ex.O&I | G116: =IF('11616 DM2 ex.O&I'!A16="","",'11616 DM2 ex.O&I'!A16) -> Diëtist
A117: ='11616 DM2 ex.O&I'!$B17 -> 0 | B117: 11616 DM2 ex.O&I | D117: ='11616 DM2 ex.O&I'!$D17 -> 0 | E117: 11616 DM2 ex.O&I | G117: =IF('11616 DM2 ex.O&I'!A17="","",'11616 DM2 ex.O&I'!A17) -> Fundus
A118: ='11616 DM2 ex.O&I'!$B18 -> 0 | B118: 11616 DM2 ex.O&I | D118: ='11616 DM2 ex.O&I'!$D18 -> 0 | E118: 11616 DM2 ex.O&I | G118: =IF('11616 DM2 ex.O&I'!A18="","",'11616 DM2 ex.O&I'!A18) -> Specialist
A119: ='11616 DM2 ex.O&I'!$B19 -> 0 | B119: 11616 DM2 ex.O&I | D119: ='11616 DM2 ex.O&I'!$D19 -> 0 | E119: 11616 DM2 ex.O&I | G119: =IF('11616 DM2 ex.O&I'!A19="","",'11616 DM2 ex.O&I'!A19) -> Gedragsondersteuning SMR*
A120: ='11616 DM2 ex.O&I'!$B20 -> 0 | B120: 11616 DM2 ex.O&I | D120: ='11616 DM2 ex.O&I'!$D20 -> 0 | E120: 11616 DM2 ex.O&I | G120: =IF('11616 DM2 ex.O&I'!A20="","",'11616 DM2 ex.O&I'!A20) -> 
A121: ='11616 DM2 ex.O&I'!$B21 -> 0 | B121: 11616 DM2 ex.O&I | D121: ='11616 DM2 ex.O&I'!$D21 -> 0 | E121: 11616 DM2 ex.O&I | G121: =IF('11616 DM2 ex.O&I'!A21="","",'11616 DM2 ex.O&I'!A21) -> 
A122: ='11616 DM2 ex.O&I'!$B22 -> 0 | B122: 11616 DM2 ex.O&I | D122: ='11616 DM2 ex.O&I'!$D22 -> 0 | E122: 11616 DM2 ex.O&I | G122: =IF('11616 DM2 ex.O&I'!A22="","",'11616 DM2 ex.O&I'!A22) -> 
A123: ='11616 DM2 ex.O&I'!$B23 -> 0 | B123: 11616 DM2 ex.O&I | D123: ='11616 DM2 ex.O&I'!$D23 -> 0 | E123: 11616 DM2 ex.O&I | G123: =IF('11616 DM2 ex.O&I'!A23="","",'11616 DM2 ex.O&I'!A23) -> 
A124: ='11616 DM2 ex.O&I'!$B24 -> 0 | B124: 11616 DM2 ex.O&I | D124: ='11616 DM2 ex.O&I'!$D24 -> 0 | E124: 11616 DM2 ex.O&I | G124: =IF('11616 DM2 ex.O&I'!A24="","",'11616 DM2 ex.O&I'!A24) -> 
A125: ='11616 DM2 ex.O&I'!$B25 -> 0 | B125: 11616 DM2 ex.O&I | D125: ='11616 DM2 ex.O&I'!$D25 -> 0 | E125: 11616 DM2 ex.O&I | G125: =IF('11616 DM2 ex.O&I'!A25="","",'11616 DM2 ex.O&I'!A25) -> 
A126: ='11616 DM2 ex.O&I'!$B26 -> 0 | B126: 11616 DM2 ex.O&I | D126: ='11616 DM2 ex.O&I'!$D26 -> 0 | E126: 11616 DM2 ex.O&I | G126: =IF('11616 DM2 ex.O&I'!A26="","",'11616 DM2 ex.O&I'!A26) -> 
A127: ='11616 DM2 ex.O&I'!$B27 -> 0 | B127: 11616 DM2 ex.O&I | D127: ='11616 DM2 ex.O&I'!$D27 -> 0 | E127: 11616 DM2 ex.O&I | G127: =IF('11616 DM2 ex.O&I'!A27="","",'11616 DM2 ex.O&I'!A27) -> Totaal begrote zorgkosten
A128: ='11616 DM2 ex.O&I'!$B28 -> 0 | B128: 11616 DM2 ex.O&I | D128: ='11616 DM2 ex.O&I'!$D28 -> 0 | E128: 11616 DM2 ex.O&I | G128: =IF('11616 DM2 ex.O&I'!A28="","",'11616 DM2 ex.O&I'!A28) -> 
A129: ='11616 DM2 ex.O&I'!$B29 ->  | B129: 11616 DM2 ex.O&I | D129: ='11616 DM2 ex.O&I'!$D29 -> Begr.p.p. 2024 | E129: 11616 DM2 ex.O&I | G129: =IF('11616 DM2 ex.O&I'!A29="","",'11616 DM2 ex.O&I'!A29) -> Omschrijving
A130: ='11616 DM2 ex.O&I'!$B30 ->  | B130: 11616 DM2 ex.O&I | D130: ='11616 DM2 ex.O&I'!$D30 ->  | E130: 11616 DM2 ex.O&I | G130: =IF('11616 DM2 ex.O&I'!A30="","",'11616 DM2 ex.O&I'!A30) -> Huisarts*
A131: ='11616 DM2 ex.O&I'!$B31 ->  | B131: 11616 DM2 ex.O&I | D131: ='11616 DM2 ex.O&I'!$D31 ->  | E131: 11616 DM2 ex.O&I | G131: =IF('11616 DM2 ex.O&I'!A31="","",'11616 DM2 ex.O&I'!A31) -> Praktijkondersteuner Somatiek*
A132: ='11616 DM2 ex.O&I'!$B32 ->  | B132: 11616 DM2 ex.O&I | D132: ='11616 DM2 ex.O&I'!$D32 ->  | E132: 11616 DM2 ex.O&I | G132: =IF('11616 DM2 ex.O&I'!A32="","",'11616 DM2 ex.O&I'!A32) -> Gespecialiseerd verpleegkundige*
A133: ='11616 DM2 ex.O&I'!$B33 ->  | B133: 11616 DM2 ex.O&I | D133: ='11616 DM2 ex.O&I'!$D33 ->  | E133: 11616 DM2 ex.O&I | G133: =IF('11616 DM2 ex.O&I'!A33="","",'11616 DM2 ex.O&I'!A33) -> Diëtist
A134: ='11616 DM2 ex.O&I'!$B34 ->  | B134: =B133 -> 11616 DM2 ex.O&I | D134: ='11616 DM2 ex.O&I'!$D34 ->  | E134: =E133 -> 11616 DM2 ex.O&I | G134: =IF('11616 DM2 ex.O&I'!A34="","",'11616 DM2 ex.O&I'!A34) -> Fundus
A135: ='11616 DM2 ex.O&I'!$B35 ->  | B135: 11616 DM2 ex.O&I | D135: ='11616 DM2 ex.O&I'!$D35 ->  | E135: 11616 DM2 ex.O&I | G135: =IF('11616 DM2 ex.O&I'!A35="","",'11616 DM2 ex.O&I'!A35) -> Specialist
A136: ='11616 DM2 ex.O&I'!$B36 ->  | B136: 11616 DM2 ex.O&I | D136: ='11616 DM2 ex.O&I'!$D36 ->  | E136: 11616 DM2 ex.O&I | G136: =IF('11616 DM2 ex.O&I'!A36="","",'11616 DM2 ex.O&I'!A36) -> Gedragsondersteuning SMR*
A137: ='11616 DM2 ex.O&I'!$B37 ->  | B137: 11616 DM2 ex.O&I | D137: ='11616 DM2 ex.O&I'!$D37 ->  | E137: 11616 DM2 ex.O&I | G137: =IF('11616 DM2 ex.O&I'!A37="","",'11616 DM2 ex.O&I'!A37) -> 
A138: ='11616 DM2 ex.O&I'!$B38 ->  | B138: 11616 DM2 ex.O&I | D138: ='11616 DM2 ex.O&I'!$D38 ->  | E138: 11616 DM2 ex.O&I | G138: =IF('11616 DM2 ex.O&I'!A38="","",'11616 DM2 ex.O&I'!A38) -> 
A139: ='11616 DM2 ex.O&I'!$B39 ->  | B139: 11616 DM2 ex.O&I | D139: ='11616 DM2 ex.O&I'!$D39 ->  | E139: 11616 DM2 ex.O&I | G139: =IF('11616 DM2 ex.O&I'!A39="","",'11616 DM2 ex.O&I'!A39) -> 
A140: ='11616 DM2 ex.O&I'!$B40 ->  | B140: 11616 DM2 ex.O&I | D140: ='11616 DM2 ex.O&I'!$D40 ->  | E140: 11616 DM2 ex.O&I | G140: =IF('11616 DM2 ex.O&I'!A40="","",'11616 DM2 ex.O&I'!A40) -> 
A141: ='11616 DM2 ex.O&I'!$B41 ->  | B141: 11616 DM2 ex.O&I | D141: ='11616 DM2 ex.O&I'!$D41 ->  | E141: 11616 DM2 ex.O&I | G141: =IF('11616 DM2 ex.O&I'!A41="","",'11616 DM2 ex.O&I'!A41) -> 
A142: ='11616 DM2 ex.O&I'!$B42 ->  | B142: 11616 DM2 ex.O&I | D142: ='11616 DM2 ex.O&I'!$D42 ->  | E142: 11616 DM2 ex.O&I | G142: =IF('11616 DM2 ex.O&I'!A42="","",'11616 DM2 ex.O&I'!A42) -> 
A143: ='11616 DM2 ex.O&I'!$B43 ->  | B143: 11616 DM2 ex.O&I | D143: ='11616 DM2 ex.O&I'!$D43 ->  | E143: 11616 DM2 ex.O&I | G143: =IF('11616 DM2 ex.O&I'!A43="","",'11616 DM2 ex.O&I'!A43) -> 
A144: ='11616 DM2 ex.O&I'!$B44 -> 0 | B144: 11616 DM2 ex.O&I | D144: ='11616 DM2 ex.O&I'!$D44 -> 0 | E144: 11616 DM2 ex.O&I | G144: =IF('11616 DM2 ex.O&I'!A44="","",'11616 DM2 ex.O&I'!A44) -> Totaal begrote zorgkosten per geïncludeerde patiënt
A145: ='11616 DM2 ex.O&I'!$B45 -> 0 | B145: 11616 DM2 ex.O&I | D145: ='11616 DM2 ex.O&I'!$D45 -> 0 | E145: 11616 DM2 ex.O&I | G145: =IF('11616 DM2 ex.O&I'!A45="","",'11616 DM2 ex.O&I'!A45) -> 
A146: ='11616 DM2 ex.O&I'!$B46 ->  | B146: 11616 DM2 ex.O&I | D146: ='11616 DM2 ex.O&I'!$D46 -> Begr.p.p. 2024 | E146: 11616 DM2 ex.O&I | G146: =IF('11616 DM2 ex.O&I'!A46="","",'11616 DM2 ex.O&I'!A46) -> * = Huisartsgebonden component zorgkosten
A147: ='11616 DM2 ex.O&I'!$B47 -> 0 | B147: 11616 DM2 ex.O&I | D147: ='11616 DM2 ex.O&I'!$D47 -> 0 | E147: 11616 DM2 ex.O&I | G147: =IF('11616 DM2 ex.O&I'!A47="","",'11616 DM2 ex.O&I'!A47) -> Huisartsgebonden component
A148: ='11616 DM2 ex.O&I'!$B48 -> 0 | B148: 11616 DM2 ex.O&I | D148: ='11616 DM2 ex.O&I'!$D48 -> 0 | E148: 11616 DM2 ex.O&I | G148: =IF('11616 DM2 ex.O&I'!A48="","",'11616 DM2 ex.O&I'!A48) -> Overige zorgverleners
A149: ='11616 DM2 ex.O&I'!$B49 -> 0 | B149: 11616 DM2 ex.O&I | D149: ='11616 DM2 ex.O&I'!$D49 -> 0 | E149: 11616 DM2 ex.O&I | G149: =IF('11616 DM2 ex.O&I'!A49="","",'11616 DM2 ex.O&I'!A49) -> 
A150: ='11616 DM2 ex.O&I'!$B50 ->  | B150: 11616 DM2 ex.O&I | D150: ='11616 DM2 ex.O&I'!$D50 -> Begr.p.p. 2024 | E150: 11616 DM2 ex.O&I | G150: =IF('11616 DM2 ex.O&I'!A50="","",'11616 DM2 ex.O&I'!A50) -> * = Huisartsgebonden component zorgkosten percentages
A151: ='11616 DM2 ex.O&I'!$B51 ->  | B151: 11616 DM2 ex.O&I | D151: ='11616 DM2 ex.O&I'!$D51 ->  | E151: 11616 DM2 ex.O&I | G151: =IF('11616 DM2 ex.O&I'!A51="","",'11616 DM2 ex.O&I'!A51) -> Huisartsgebonden component
A152: ='11616 DM2 ex.O&I'!$B52 ->  | B152: 11616 DM2 ex.O&I | D152: ='11616 DM2 ex.O&I'!$D52 ->  | E152: 11616 DM2 ex.O&I | G152: =IF('11616 DM2 ex.O&I'!A52="","",'11616 DM2 ex.O&I'!A52) -> Overige zorgverleners
A153: ='11616 DM2 ex.O&I'!$B53 -> 0 | B153: 11616 DM2 ex.O&I | D153: ='11616 DM2 ex.O&I'!$D53 -> 0 | E153: 11616 DM2 ex.O&I | G153: =IF('11616 DM2 ex.O&I'!A53="","",'11616 DM2 ex.O&I'!A53) -> 
A154: ='11616 DM2 ex.O&I'!$B54 -> 0 | B154: 11616 DM2 ex.O&I | D154: ='11616 DM2 ex.O&I'!$D54 -> 0 | E154: 11616 DM2 ex.O&I | G154: =IF('11616 DM2 ex.O&I'!A54="","",'11616 DM2 ex.O&I'!A54) -> 
A155: ='11616 DM2 ex.O&I'!$B55 ->  | B155: 11616 DM2 ex.O&I | D155: ='11616 DM2 ex.O&I'!$D55 -> Begr.p.p. 2024 | E155: 11616 DM2 ex.O&I | G155: =IF('11616 DM2 ex.O&I'!A55="","",'11616 DM2 ex.O&I'!A55) -> Geïncludeerde patiënten
A156: ='11616 DM2 ex.O&I'!$B56 -> 0 | B156: 11616 DM2 ex.O&I | D156: ='11616 DM2 ex.O&I'!$D56 -> 0 | E156: 11616 DM2 ex.O&I | G156: =IF('11616 DM2 ex.O&I'!A56="","",'11616 DM2 ex.O&I'!A56) -> Zorgkosten per jaar per geïncludeerde patiënt
A157: ='11616 DM2 ex.O&I'!$B57 -> 0 | B157: 11616 DM2 ex.O&I | D157: ='11616 DM2 ex.O&I'!$D57 -> 0 | E157: 11616 DM2 ex.O&I | G157: =IF('11616 DM2 ex.O&I'!A57="","",'11616 DM2 ex.O&I'!A57) -> Zorgkosten per kwartaal per geïncludeerde patiënt
A158: ='11616 DM2 ex.O&I'!$B58 -> 0 | B158: 11616 DM2 ex.O&I | D158: ='11616 DM2 ex.O&I'!$D58 -> 0 | E158: 11616 DM2 ex.O&I | G158: =IF('11616 DM2 ex.O&I'!A58="","",'11616 DM2 ex.O&I'!A58) -> 
A159: ='11616 DM2 ex.O&I'!$B59 -> 0 | B159: 11616 DM2 ex.O&I | D159: ='11616 DM2 ex.O&I'!$D59 -> 0 | E159: 11616 DM2 ex.O&I | G159: =IF('11616 DM2 ex.O&I'!A59="","",'11616 DM2 ex.O&I'!A59) -> 
A160: ='11616 DM2 ex.O&I'!$B60 -> 0 | B160: 11616 DM2 ex.O&I | D160: ='11616 DM2 ex.O&I'!$D60 -> 0 | E160: 11616 DM2 ex.O&I | G160: =IF('11616 DM2 ex.O&I'!A60="","",'11616 DM2 ex.O&I'!A60) -> 
A161: ='11616 DM2 ex.O&I'!$B61 -> 0 | B161: 11616 DM2 ex.O&I | D161: ='11616 DM2 ex.O&I'!$D61 -> 0 | E161: 11616 DM2 ex.O&I | G161: =IF('11616 DM2 ex.O&I'!A61="","",'11616 DM2 ex.O&I'!A61) -> 
A162: ='11616 DM2 ex.O&I'!$B62 -> Bedrag | B162: 11616 DM2 ex.O&I | D162: ='11616 DM2 ex.O&I'!$D62 -> Vergelijking met | E162: 11616 DM2 ex.O&I | G162: =IF('11616 DM2 ex.O&I'!A62="","",'11616 DM2 ex.O&I'!A62) -> Vergelijking voorgaande jaren
A163: ='11616 DM2 ex.O&I'!#REF! ->  | B163: 11616 DM2 ex.O&I | D163: ='11616 DM2 ex.O&I'!$D63 -> 0 | E163: 11616 DM2 ex.O&I | G163: =IF('11616 DM2 ex.O&I'!#REF!="","",'11616 DM2 ex.O&I'!#REF!) -> 
A164: ='11616 DM2 ex.O&I'!$B64 -> 0 | B164: 11616 DM2 ex.O&I | D164: ='11616 DM2 ex.O&I'!$D64 -> 0 | E164: 11616 DM2 ex.O&I | G164: =IF('11616 DM2 ex.O&I'!A64="","",'11616 DM2 ex.O&I'!A64) -> Zorgkosten per geincludeerde patiënt
A165: ='11616 DM2 ex.O&I'!$B63 -> 0 | B165: 11616 DM2 ex.O&I | D165: ='11616 DM2 ex.O&I'!$D65 ->  | E165: 11616 DM2 ex.O&I | G165: =IF('11616 DM2 ex.O&I'!A63="","",'11616 DM2 ex.O&I'!A63) -> Zorgkosten per geincludeerde patiënt
A166: ='11616 DM2 ex.O&I'!$B66 -> 0 | B166: 11616 DM2 ex.O&I | D166: ='11616 DM2 ex.O&I'!$D66 -> 0 | E166: 11616 DM2 ex.O&I | G166: =IF('11616 DM2 ex.O&I'!A66="","",'11616 DM2 ex.O&I'!A66) -> Zorgkosten per geincludeerde patiënt Begroting 2024
A167: ='11616 DM2 ex.O&I'!$B67 -> 0 | B167: =B166 -> 11616 DM2 ex.O&I | D167: ='11616 DM2 ex.O&I'!$D67 -> Verschil t.o.v. | E167: =E166 -> 11616 DM2 ex.O&I | G167: =IF('11616 DM2 ex.O&I'!A67="","",'11616 DM2 ex.O&I'!A67) -> 
A168: ='11616 DM2 ex.O&I'!$B68 ->  | B168: 11616 DM2 ex.O&I | D168: ='11616 DM2 ex.O&I'!$D68 -> Begr.p.p. 2024 | E168: 11616 DM2 ex.O&I | G168: =IF('11616 DM2 ex.O&I'!A68="","",'11616 DM2 ex.O&I'!A68) -> Per patiënt zorgkosten + O&I
A169: ='11616 DM2 ex.O&I'!$B69 ->  | B169: 11616 DM2 ex.O&I | D169: ='11616 DM2 ex.O&I'!$D69 ->  | E169: 11616 DM2 ex.O&I | G169: =IF('11616 DM2 ex.O&I'!A69="","",'11616 DM2 ex.O&I'!A69) -> Zorgkosten + O&I-kosten per jaar per geïncludeerde patiënt
A170: ='11616 DM2 ex.O&I'!$B70 -> 0 | B170: 11616 DM2 ex.O&I | D170: ='11616 DM2 ex.O&I'!$D70 -> 0 | E170: 11616 DM2 ex.O&I | G170: =IF('11616 DM2 ex.O&I'!A70="","",'11616 DM2 ex.O&I'!A70) -> Zorgkosten + O&I-kosten per kwartaal per geïncludeerde patiënt
B171: 11616 DM2 ex.O&I | E171: 11616 DM2 ex.O&I | G171: =IF('11616 DM2 ex.O&I'!A71="","",'11616 DM2 ex.O&I'!A71) -> 
B172: 11616 DM2 ex.O&I | E172: 11616 DM2 ex.O&I | G172: =IF('11616 DM2 ex.O&I'!A72="","",'11616 DM2 ex.O&I'!A72) -> 
A173: ='11616 DM2 ex.O&I'!$A13 -> Huisarts* | B173: 11616 DM2 ex.O&I | D173: ='11616 DM2 ex.O&I'!$A13 -> Huisarts* | E173: 11616 DM2 ex.O&I | G173: =IF('11616 DM2 ex.O&I'!A73="","",'11616 DM2 ex.O&I'!A73) -> 
A174: ='11616 DM2 ex.O&I'!$A14 -> Praktijkondersteuner Somatiek* | B174: 11616 DM2 ex.O&I | D174: ='11616 DM2 ex.O&I'!$A14 -> Praktijkondersteuner Somatiek* | E174: 11616 DM2 ex.O&I | G174: =IF('11616 DM2 ex.O&I'!A74="","",'11616 DM2 ex.O&I'!A74) -> 
A175: ='11616 DM2 ex.O&I'!$A15 -> Gespecialiseerd verpleegkundige* | B175: 11616 DM2 ex.O&I | D175: ='11616 DM2 ex.O&I'!$A15 -> Gespecialiseerd verpleegkundige* | E175: 11616 DM2 ex.O&I | G175: =IF('11616 DM2 ex.O&I'!A75="","",'11616 DM2 ex.O&I'!A75) -> 
A176: ='11616 DM2 ex.O&I'!$A16 -> Diëtist | B176: 11616 DM2 ex.O&I | D176: ='11616 DM2 ex.O&I'!$A16 -> Diëtist | E176: 11616 DM2 ex.O&I | G176: =IF('11616 DM2 ex.O&I'!A76="","",'11616 DM2 ex.O&I'!A76) -> 
A177: ='11616 DM2 ex.O&I'!$A17 -> Fundus | B177: 11616 DM2 ex.O&I | D177: ='11616 DM2 ex.O&I'!$A17 -> Fundus | E177: 11616 DM2 ex.O&I | G177: =IF('11616 DM2 ex.O&I'!A77="","",'11616 DM2 ex.O&I'!A77) -> 
A178: ='11616 DM2 ex.O&I'!$A18 -> Specialist | B178: 11616 DM2 ex.O&I | D178: ='11616 DM2 ex.O&I'!$A18 -> Specialist | E178: 11616 DM2 ex.O&I | G178: =IF('11616 DM2 ex.O&I'!A78="","",'11616 DM2 ex.O&I'!A78) -> 
A179: ='11616 DM2 ex.O&I'!$A19 -> Gedragsondersteuning SMR* | B179: 11616 DM2 ex.O&I | D179: ='11616 DM2 ex.O&I'!$A19 -> Gedragsondersteuning SMR* | E179: 11616 DM2 ex.O&I | G179: =IF('11616 DM2 ex.O&I'!A79="","",'11616 DM2 ex.O&I'!A79) -> 
A180: ='11616 DM2 ex.O&I'!$A20 ->  | B180: 11616 DM2 ex.O&I | D180: ='11616 DM2 ex.O&I'!$A20 ->  | E180: 11616 DM2 ex.O&I | G180: =IF('11616 DM2 ex.O&I'!A80="","",'11616 DM2 ex.O&I'!A80) -> 
A181: ='11616 DM2 ex.O&I'!$A21 ->  | B181: 11616 DM2 ex.O&I | D181: ='11616 DM2 ex.O&I'!$A21 ->  | E181: 11616 DM2 ex.O&I | G181: =IF('11616 DM2 ex.O&I'!A81="","",'11616 DM2 ex.O&I'!A81) -> 
A182: ='11616 DM2 ex.O&I'!$A22 ->  | B182: 11616 DM2 ex.O&I | D182: ='11616 DM2 ex.O&I'!$A22 ->  | E182: 11616 DM2 ex.O&I | G182: =IF('11616 DM2 ex.O&I'!A82="","",'11616 DM2 ex.O&I'!A82) -> 
A183: ='11616 DM2 ex.O&I'!$A23 ->  | B183: 11616 DM2 ex.O&I | D183: ='11616 DM2 ex.O&I'!$A23 ->  | E183: 11616 DM2 ex.O&I | G183: =IF('11616 DM2 ex.O&I'!A83="","",'11616 DM2 ex.O&I'!A83) -> 
A184: ='11616 DM2 ex.O&I'!$A24 ->  | B184: 11616 DM2 ex.O&I | D184: ='11616 DM2 ex.O&I'!$A24 ->  | E184: 11616 DM2 ex.O&I | G184: =IF('11616 DM2 ex.O&I'!A84="","",'11616 DM2 ex.O&I'!A84) -> 
A185: ='11616 DM2 ex.O&I'!$A25 ->  | B185: 11616 DM2 ex.O&I | D185: ='11616 DM2 ex.O&I'!$A25 ->  | E185: 11616 DM2 ex.O&I | G185: =IF('11616 DM2 ex.O&I'!A85="","",'11616 DM2 ex.O&I'!A85) -> 
A186: ='11616 DM2 ex.O&I'!$A26 ->  | B186: 11616 DM2 ex.O&I | D186: ='11616 DM2 ex.O&I'!$A26 ->  | E186: 11616 DM2 ex.O&I | G186: =IF('11616 DM2 ex.O&I'!A86="","",'11616 DM2 ex.O&I'!A86) -> 
B187: 11616 DM2 ex.O&I | E187: 11616 DM2 ex.O&I | G187: =IF('11616 DM2 ex.O&I'!A87="","",'11616 DM2 ex.O&I'!A87) -> 
B188: 11616 DM2 ex.O&I | E188: 11616 DM2 ex.O&I | G188: =IF('11616 DM2 ex.O&I'!A88="","",'11616 DM2 ex.O&I'!A88) -> 
B189: 11616 DM2 ex.O&I | E189: 11616 DM2 ex.O&I | G189: =IF('11616 DM2 ex.O&I'!A89="","",'11616 DM2 ex.O&I'!A89) -> 
B190: 11616 DM2 ex.O&I | E190: 11616 DM2 ex.O&I | G190: =IF('11616 DM2 ex.O&I'!A90="","",'11616 DM2 ex.O&I'!A90) -> 
B191: 11616 DM2 ex.O&I | E191: 11616 DM2 ex.O&I | G191: =IF('11616 DM2 ex.O&I'!A91="","",'11616 DM2 ex.O&I'!A91) -> 
B192: 11616 DM2 ex.O&I | E192: 11616 DM2 ex.O&I | G192: =IF('11616 DM2 ex.O&I'!A92="","",'11616 DM2 ex.O&I'!A92) -> 
B193: 11616 DM2 ex.O&I | E193: 11616 DM2 ex.O&I | G193: =IF('11616 DM2 ex.O&I'!A93="","",'11616 DM2 ex.O&I'!A93) -> 
B194: 11616 DM2 ex.O&I | E194: 11616 DM2 ex.O&I | G194: =IF('11616 DM2 ex.O&I'!A94="","",'11616 DM2 ex.O&I'!A94) -> 
B195: 11616 DM2 ex.O&I | E195: 11616 DM2 ex.O&I | G195: =IF('11616 DM2 ex.O&I'!A95="","",'11616 DM2 ex.O&I'!A95) -> 
B196: 11616 DM2 ex.O&I | E196: 11616 DM2 ex.O&I | G196: =IF('11616 DM2 ex.O&I'!A96="","",'11616 DM2 ex.O&I'!A96) -> 
B197: 11616 DM2 ex.O&I | E197: 11616 DM2 ex.O&I | G197: =IF('11616 DM2 ex.O&I'!A97="","",'11616 DM2 ex.O&I'!A97) -> 
B198: 11616 DM2 ex.O&I | E198: 11616 DM2 ex.O&I | G198: =IF('11616 DM2 ex.O&I'!A98="","",'11616 DM2 ex.O&I'!A98) -> 
B199: 11616 DM2 ex.O&I | E199: 11616 DM2 ex.O&I | G199: =IF('11616 DM2 ex.O&I'!A99="","",'11616 DM2 ex.O&I'!A99) -> 
B200: =B199 -> 11616 DM2 ex.O&I | E200: =E199 -> 11616 DM2 ex.O&I | G200: =IF('11616 DM2 ex.O&I'!A100="","",'11616 DM2 ex.O&I'!A100) -> 
... 800 more rows

Sheet DATA INPUT (VERBERGEN) (hidden)
U1: Tabblad beveiligen
U2: Tabblad verbergen
U3: A1

Sheet BEHEER (VERBERGEN) (hidden)
A1: Bestandsnaam | B1: Format MDZ | U1: Tabblad beveiligen
A2: Versie | B2: 6.0 | U2: Tabblad verbergen
A3: Info | B3: Onbeveiligde cellen zijn lichtgeel. | U3: A1
A6: Begroting
A7: Jaar | B7: 2024
A8: Ingangsdatum, indien niet 01-01
A9: Einddatum, indien niet 31-12
A12: Celnamen | B12: Waarde
A13: bestand_naam | B13: =B1 -> Format MDZ
A14: versie | B14: =B2 -> 6.0
A15: begroting_jaar | B15: =B7 -> 2024
A16: kolom1 | B16: =IF('DATA INPUT (VERBERGEN)'!A5="","",'DATA INPUT (VERBERGEN)'!A5) ->  | C16: << Wordt gevuld uit ingelezen format, anders leeg.
A17: kolom2 | B17: =CONCATENATE("Begroting ",begroting_jaar) -> Begroting 2024
A18: kolom1pp | B18: =IF(kolom1="","",CONCATENATE(LEFT(kolom1,4),".p.p.",RIGHT(kolom1,4))) -> 
A19: kolom2pp | B19: =CONCATENATE("Begr.p.p. ",begroting_jaar) -> Begr.p.p. 2024
A20: vergelijking1pp
A21: vergelijking2pp
A22: swv_naam | B22: =IF(BASIS!B6="",CONCATENATE("Naam ",swv,": Invullen op tabblad basis.",BASIS!B6)) -> Naam Regionale Huisartsen Organisatie: Invullen op tabblad basis.
A23: swv_agb | B23: =IF(BASIS!B7="","Invullen op tabblad basis.",BASIS!B7) -> Invullen op tabblad basis.
A24: swv | B24: Regionale Huisartsen Organisatie
A26: Huisartsgebonden component | B26: ja/nee | C26: controle
A27: Huisarts | B27: ja | C27: =IF(B27="ja",CONCATENATE(A27,"*"),A27) -> Huisarts*
A28: Praktijkondersteuner Somatiek | B28: ja | C28: =IF(B28="ja",CONCATENATE(A28,"*"),A28) -> Praktijkondersteuner Somatiek*
A29: Gespecialiseerd verpleegkundige | B29: ja | C29: Gespecialiseerd verpleegkundige*
A30: Diëtist | B30: nee | C30: Diëtist
A31: Fundus | B31: nee | C31: Fundus
A32: Specialist | B32: nee | C32: Specialist
A33: Gedragsondersteuning SMR | B33: ja | C33: Gedragsondersteuning SMR*
A34: Spirometrie (verrichting) | B34: ja | C34: Spirometrie (verrichting)*
A35: ECG (verrichting) | B35: nee | C35: ECG (verrichting)
B36: ja | C36: *
A39: Prestatiecode | B39: Overeenkomst | C39: Overeenkomstnummer | D39: T.b.v. tabblad naam
B40: Deel I: Individueel Deel | C40: 1.53.100 | D40: =CONCATENATE(A40," ",B40) -> Deel I: Individueel Deel
A41: 11600 | B41: GEZ | C41: 1.53.106 | D41: =CONCATENATE(A41," ",B41) -> 11600 GEZ
A42: 11611 | B42: O&I regio | C42: 1.53.400 | D42: 11611 O&I regio
A43: 11614 | B43: VRM (HVZ) ex.O&I | C43: 1.53.409 | D43: 11614 VRM (HVZ) ex.O&I
A44: 11615 | B44: VRM (VVR) ex.O&I | C44: 1.53.410 | D44: 11615 VRM (VVR) ex.O&I
A45: 11616 | B45: DM2 ex.O&I | C45: 1.53.403 | D45: 11616 DM2 ex.O&I
A46: 11617 | B46: VRM (HVZ en VVR) ex.O&I | C46: 1.53.408 | D46: 11617 VRM (HVZ en VVR) ex.O&I
A47: 11618 | B47: ASTMA ex.O&I | C47: 1.53.404 | D47: 11618 ASTMA ex.O&I
A48: 11623 | B48: COPD ex.O&I | C48: 1.53.401 | D48: 11623 COPD ex.O&I
A49: 11626 | B49: ASTMA in.O&I | C49: 1.53.104 | D49: 11626 ASTMA in.O&I
A50: 31292 | B50: VRM (HVZ) in.O&I | C50: 1.53.109 | D50: 31292 VRM (HVZ) in.O&I
A51: 31293 | B51: VRM (VVR) in.O&I | C51: 1.53.110 | D51: 31293 VRM (VVR) in.O&I
A52: 40001 | B52: DM2 in.O&I | C52: 1.53.103 | D52: 40001 DM2 in.O&I
A53: 40011 | B53: VRM (HVZ en VVR) in.O&I | C53: 1.53.108 | D53: 40011 VRM (HVZ en VVR) in.O&I
A54: 40021 | B54: COPD in.O&I | C54: 1.53.101 | D54: 40021 COPD in.O&I
B55: Segment 3 | C55: 1.53.105 | D55: Segment 3
A62: T.b.v. markeren bij overschrijding | B62: Maximum tarief | C62: Opmerking bij maximum tarief | D62: Max. HA-comp.
A63: ='11611 O&I regio'!$A$1 -> 11611 O&I regio | B63: 999 | C63: Per verzekerde
A64: ='11611 O&I regio'!$A$1 -> 11611 O&I regio | B64: 999 | C64: Per patiënt
A65: ='11616 DM2 ex.O&I'!A1 -> 11616 DM2 ex.O&I | B65: 999 | C65: Per patiënt | D65: 999
A66: ='11623 COPD ex.O&I'!A1 -> 11623 COPD ex.O&I | B66: 999 | C66: Per patiënt | D66: 999
A67: ='11618 ASTMA ex.O&I'!A1 -> 11618 ASTMA ex.O&I | B67: 999 | C67: Per patiënt | D67: 999
A68: ='11617 VRM (HVZ en VVR) ex.O&I'!A1 -> 11617 VRM (HVZ en VVR) ex.O&I | B68: 999 | C68: Per patiënt | D68: 999
A69: ='11614 VRM (HVZ) ex.O&I'!A1 -> 11614 VRM (HVZ) ex.O&I | B69: 999 | C69: Per patiënt | D69: 999
A70: ='11615 VRM (VVR) ex.O&I'!A1 -> 11615 VRM (VVR) ex.O&I | B70: 999 | C70: Per patiënt | D70: 999
A71: =VERBERGEN1!A1 -> VERBERGEN1 | B71: 999 | C71: Per patiënt | D71: 999
A72: =VERBERGEN2!A1 -> VERBERGEN2 | B72: 999 | C72: Per patiënt | D72: 999
A73: =VERBERGEN3!A1 -> VERBERGEN3 | B73: 999 | C73: Per patiënt | D73: 999
